Workbook

Sheet 生データ
D2: 外航船 / 内航船 | G2: 内航船
D3: レポート作成日 | G3: 2020-04-22
D4: 実施開始日 | G4: 2020-02-01
D5: 実施終了日 | G5: 2020-02-20
D6: 集団名 | G6: 株式会社○○商船
C8: 入力したデータの数 | D8: =COUNTA(A:A)-2 -> 0 | E8: 件 | F8: =IF(LOOKUP(1,0/(A10:A8547<>""),ROW(1:8547))-3=D8,"○通し番号の記入に問題がありません。","※通し番号の入力漏れがあります！！") -> ○通し番号の記入に問題がありません。
P10: 9.乗船中のあなたの仕事について | AG10: 10.乗船中の最近1か月間のあなたの状態について | BJ10: 11.乗船中のあなたの周りの方々について | BS10: 12.乗船中の満足度について | BU10: 13.乗船中のあなた自身のお仕事について | BY10: 14.乗船中のあなたが働いている職場について | CF10: 15.あなたの働いている会社や組織について | CN10: 16.乗船中のあなたの仕事の状況や成果について | CR10: 17.あなたの仕事について（外航船の方） | DB10: 17.あなたの仕事について（内航船の方）
A11: 通し番号 | B11: 部署 | C11: 氏名 | D11: 職員番号 | E11: 1.外航船員/内航船員 | F11: 2.職名 | G11: 2.職名/その他 | H11: 3.性別 | I11: 4.年代 | J11: 5.船員になってからの年数 | K11: 6.乗船中/陸上勤務 | L11: 6.直近の乗船(何ヶ月前) | M11: 7.乗組員数 | N11: 8.船種 | O11: 8.船種/その他 | P11: 9-1 | Q11: 9-2 | R11: 9-3 | S11: 9-4 | T11: 9-5 | U11: 9-6 | V11: 9-7 | W11: 9-8 | X11: 9-9 | Y11: 9-10 | Z11: 9-11 | AA11: 9-12 | AB11: 9-13 | AC11: 9-14 | AD11: 9-15 | AE11: 9-16 | AF11: 9-17 | AG11: 10-1 | AH11: 10-2 | AI11: 10-3 | AJ11: 10-4 | AK11: 10-5 | AL11: 10-6 | AM11: 10-7 | AN11: 10-8 | AO11: 10-9 | AP11: 10-10 | AQ11: 10-11 | AR11: 10-12 | AS11: 10-13 | AT11: 10-14 | AU11: 10-15 | AV11: 10-16 | AW11: 10-17 | AX11: 10-18 | AY11: 10-19 | AZ11: 10-20 | BA11: 10-21 | BB11: 10-22 | BC11: 10-23 | BD11: 10-24 | BE11: 10-25 | BF11: 10-26 | BG11: 10-27 | BH11: 10-28 | BI11: 10-29 | BJ11: 11-1 | BK11: 11-2 | BL11: 11-3 | BM11: 11-4 | BN11: 11-5 | BO11: 11-6 | BP11: 11-7 | BQ11: 11-8 | BR11: 11-9 | BS11: 12-1 | BT11: 12-2 | BU11: 13-1 | BV11: 13-2 | BW11: 13-3 | BX11: 13-4 | BY11: 14-1 | BZ11: 14-2 | CA11: 14-3 | CB11: 14-4 | CC11: 14-5 | CD11: 14-6 | CE11: 14-7 | CF11: 15-1 | CG11: 15-2 | CH11: 15-3 | CI11: 15-4 | CJ11: 15-5 | CK11: 15-6 | CL11: 15-7 | CM11: 15-8 | CN11: 16-1 | CO11: 16-2 | CP11: 16-3 | CQ11: 16-4 | CR11: 17外-1 | CS11: 17外-2 | CT11: 17外-3 | CU11: 17外-4 | CV11: 17外-5 | CW11: 17外-6 | CX11: 17外-7 | CY11: 17外-8 | CZ11: 17外-9 | DA11: 17外-10 | DB11: 17内-1 | DC11: 17内-2 | DD11: 17内-3 | DE11: 17内-4 | DF11: 17内-5 | DG11: 17内-6 | DH11: 17内-7 | DI11: 17内-8 | DJ11: 17内-9 | DK11: 17内-10
A12: ※必須項目 | E12: 選択肢の数字1～3を入力してください | F12: 選択肢の数字1～22を入力してください | G12: 自由記入欄 | H12: 男性は1、女性は2を入力してください | I12: 選択肢の数字1～6を入力してください | J12: 選択肢の数字1～6を入力してください | K12: 選択肢の数字1～3を入力してください | L12: 自由記入欄 | M12: 選択肢の数字1～7を入力してください | N12: 選択肢の数字1～13を入力してください | O12: 自由記入欄 | P12: 選択肢の数字1～4を入力してください | Q12: 選択肢の数字1～4を入力してください | R12: 選択肢の数字1～4を入力してください | S12: 選択肢の数字1～4を入力してください | T12: 選択肢の数字1～4を入力してください | U12: 選択肢の数字1～4を入力してください | V12: 選択肢の数字1～4を入力してください | W12: 選択肢の数字1～4を入力してください | X12: 選択肢の数字1～4を入力してください | Y12: 選択肢の数字1～4を入力してください | Z12: 選択肢の数字1～4を入力してください | AA12: 選択肢の数字1～4を入力してください | AB12: 選択肢の数字1～4を入力してください | AC12: 選択肢の数字1～4を入力してください | AD12: 選択肢の数字1～4を入力してください | AE12: 選択肢の数字1～4を入力してください | AF12: 選択肢の数字1～4を入力してください | AG12: 選択肢の数字1～4を入力してください | AH12: 選択肢の数字1～4を入力してください | AI12: 選択肢の数字1～4を入力してください | AJ12: 選択肢の数字1～4を入力してください | AK12: 選択肢の数字1～4を入力してください | AL12: 選択肢の数字1～4を入力してください | AM12: 選択肢の数字1～4を入力してください | AN12: 選択肢の数字1～4を入力してください | AO12: 選択肢の数字1～4を入力してください | AP12: 選択肢の数字1～4を入力してください | AQ12: 選択肢の数字1～4を入力してください | AR12: 選択肢の数字1～4を入力してください | AS12: 選択肢の数字1～4を入力してください | AT12: 選択肢の数字1～4を入力してください | AU12: 選択肢の数字1～4を入力してください | AV12: 選択肢の数字1～4を入力してください | AW12: 選択肢の数字1～4を入力してください | AX12: 選択肢の数字1～4を入力してください | AY12: 選択肢の数字1～4を入力してください | AZ12: 選択肢の数字1～4を入力してください | BA12: 選択肢の数字1～4を入力してください | BB12: 選択肢の数字1～4を入力してください | BC12: 選択肢の数字1～4を入力してください | BD12: 選択肢の数字1～4を入力してください | BE12: 選択肢の数字1～4を入力してください | BF12: 選択肢の数字1～4を入力してください | BG12: 選択肢の数字1～4を入力してください | BH12: 選択肢の数字1～4を入力してください | BI12: 選択肢の数字1～4を入力してください | BJ12: 選択肢の数字1～4を入力してください | BK12: 選択肢の数字1～4を入力してください | BL12: 選択肢の数字1～4を入力してください | BM12: 選択肢の数字1～4を入力してください | BN12: 選択肢の数字1～4を入力してください | BO12: 選択肢の数字1～4を入力してください | BP12: 選択肢の数字1～4を入力してください | BQ12: 選択肢の数字1～4を入力してください | BR12: 選択肢の数字1～4を入力してください | BS12: 選択肢の数字1～4を入力してください | BT12: 選択肢の数字1～4を入力してください | BU12: 選択肢の数字1～4を入力してください | BV12: 選択肢の数字1～4を入力してください | BW12: 選択肢の数字1～4を入力してください | BX12: 選択肢の数字1～4を入力してください | BY12: 選択肢の数字1～4を入力してください | BZ12: 選択肢の数字1～4を入力してください | CA12: 選択肢の数字1～4を入力してください | CB12: 選択肢の数字1～4を入力してください | CC12: 選択肢の数字1～4を入力してください | CD12: 選択肢の数字1～4を入力してください | CE12: 選択肢の数字1～4を入力してください | CF12: 選択肢の数字1～4を入力してください | CG12: 選択肢の数字1～4を入力してください | CH12: 選択肢の数字1～4を入力してください | CI12: 選択肢の数字1～4を入力してください | CJ12: 選択肢の数字1～4を入力してください | CK12: 選択肢の数字1～4を入力してください | CL12: 選択肢の数字1～4を入力してください | CM12: 選択肢の数字1～4を入力してください | CN12: 選択肢の数字1～4を入力してください | CO12: 選択肢の数字1～4を入力してください | CP12: 選択肢の数字1～4を入力してください | CQ12: 選択肢の数字1～4を入力してください | CR12: 選択肢の数字1～4を入力してください | CS12: 選択肢の数字1～4を入力してください | CT12: 選択肢の数字1～4を入力してください | CU12: 選択肢の数字1～4を入力してください | CV12: 選択肢の数字1～4を入力してください | CW12: 選択肢の数字1～4を入力してください | CX12: 選択肢の数字1～4を入力してください | CY12: 選択肢の数字1～4を入力してください | CZ12: 選択肢の数字1～4を入力してください | DA12: 選択肢の数字1～4を入力してください | DB12: 選択肢の数字1～4を入力してください | DC12: 選択肢の数字1～4を入力してください | DD12: 選択肢の数字1～4を入力してください | DE12: 選択肢の数字1～4を入力してください | DF12: 選択肢の数字1～4を入力してください | DG12: 選択肢の数字1～4を入力してください | DH12: 選択肢の数字1～4を入力してください | DI12: 選択肢の数字1～4を入力してください | DJ12: 選択肢の数字1～4を入力してください | DK12: 選択肢の数字1～4を入力してください

Sheet 分析データ一覧 (hidden)
A1: 通し番号 | B1: 部署 | C1: 氏名 | D1: 職員番号 | E1: 1.外航船員/内航船員 | F1: 2.職名 | G1: 2.職名/その他 | H1: 性別 | I1: 4.年代 | J1: 5.船員になってからの年数 | K1: 6.乗船中/陸上勤務 | L1: 6.直近の乗船(何ヶ月前) | M1: 7.乗組員数 | N1: 8.船種 | O1: 8.船種/その他 | P1: 回答不備 | Q1: 高ストレス判定 | R1: 心理的な仕事の負担（量） | S1: 心理的な仕事の負担（質） | T1: 自覚的な身体的負担度 | U1: 職場の対人関係上のストレス | V1: 職場環境によるストレス | W1: 仕事の裁量度 | X1: 技能の活用度 | Y1: 自覚的な仕事の適性度 | Z1: 働きがい | AA1: 仕事のストレス要因( 9尺度)合計 | AB1: 活気 | AC1: イライラ感 | AD1: 疲労感 | AE1: 不安感 | AF1: 抑うつ感 | AG1: 身体愁訴 | AH1: 心身のストレス反応( 6尺度)合計 | AI1: 上司からの支援度 | AJ1: 同僚からの支援度 | AK1: 家族や友人からの支援度 | AL1: 周囲のサポート(3尺度)合計 | AM1: 仕事や生活の満足度

Sheet 分析データ一覧元 (hidden)
A1: 部署 | B1: 氏名 | C1: 職員番号 | D1: 性別 | E1: 回答不備 | F1: 総合評価 | G1: 心理的な仕事の負担（量） | H1: 心理的な仕事の負担（質） | I1: 自覚的な身体的負担度 | J1: 職場の対人関係上のストレス | K1: 職場環境によるストレス | L1: 仕事の裁量度 | M1: 技能の活用度 | N1: 自覚的な仕事の適性度 | O1: 働きがい | P1: 仕事のストレス要因( 9尺度)合計 | Q1: 活気 | R1: イライラ感 | S1: 疲労感 | T1: 不安感 | U1: 抑うつ感 | V1: 身体愁訴 | W1: 心身のストレス反応( 6尺度)合計 | X1: 上司からの支援度 | Y1: 同僚からの支援度 | Z1: 家族や友人からの支援度 | AA1: 周囲のサポート(3尺度)合計 | AB1: 仕事や生活の満足度
A2: にっぽん丸 | B2: 日本 太郎 | C2: 12345 | D2: 男 | G2: 3 | H2: 4 | I2: 3 | J2: 3 | K2: 4 | L2: 4 | M2: 3 | N2: 3 | O2: 3 | P2: 30 | Q2: 3 | R2: 3 | S2: 2 | T2: 1 | U2: 2 | V2: 2 | W2: 13 | X2: 2 | Y2: 3 | Z2: 2 | AA2: 7 | AB2: 3
D3: 男 | G3: 3 | H3: 3 | I3: 3 | J3: 4 | K3: 4 | L3: 4 | M3: 3 | N3: 3 | O3: 3 | P3: 30 | Q3: 4 | R3: 4 | S3: 3 | T3: 3 | U3: 4 | V3: 4 | W3: 22 | X3: 4 | Y3: 4 | Z3: 5 | AA3: 13 | AB3: 3
D4: 女 | E4: 不備あり | G4: 3 | H4: 2 | I4: 4 | J4: 3 | K4: 2 | L4: 4 | M4: 4 | N4: 3 | O4: 3 | P4: 28 | Q4: 3 | R4: 3 | S4: 5 | T4: 3 | U4: 5 | V4: 4 | W4: 23 | X4: 3 | Y4: 4 | Z4: 5 | AA4: 12 | AB4: 4
D5: 女 | G5: 3 | H5: 2 | I5: 4 | J5: 4 | K5: 2 | L5: 4 | M5: 3 | N5: 3 | O5: 3 | P5: 28 | Q5: 4 | R5: 2 | S5: 2 | T5: 2 | U5: 2 | V5: 3 | W5: 15 | X5: 4 | Y5: 3 | Z5: 3 | AA5: 10 | AB5: 3
D6: 女 | G6: 3 | H6: 4 | I6: 4 | J6: 4 | K6: 5 | L6: 5 | M6: 2 | N6: 5 | O6: 5 | P6: 37 | Q6: 5 | R6: 3 | S6: 3 | T6: 4 | U6: 3 | V6: 5 | W6: 23 | X6: 4 | Y6: 4 | Z6: 5 | AA6: 13 | AB6: 4
D7: 男 | G7: 4 | H7: 5 | I7: 4 | J7: 4 | K7: 3 | L7: 3 | M7: 3 | N7: 3 | O7: 3 | P7: 32 | Q7: 4 | R7: 4 | S7: 4 | T7: 3 | U7: 4 | V7: 4 | W7: 23 | X7: 4 | Y7: 2 | Z7: 5 | AA7: 11 | AB7: 3
D8: 男 | G8: 3 | H8: 2 | I8: 4 | J8: 3 | K8: 4 | L8: 3 | M8: 3 | N8: 5 | O8: 5 | P8: 32 | Q8: 5 | R8: 5 | S8: 2 | T8: 1 | U8: 4 | V8: 2 | W8: 19 | X8: 3 | Y8: 2 | Z8: 4 | AA8: 9 | AB8: 4
D9: 男 | G9: 2 | H9: 3 | I9: 2 | J9: 3 | K9: 2 | L9: 2 | M9: 3 | N9: 5 | O9: 3 | P9: 25 | Q9: 3 | R9: 3 | S9: 2 | T9: 3 | U9: 3 | V9: 2 | W9: 16 | X9: 3 | Y9: 2 | Z9: 5 | AA9: 10 | AB9: 3
D10: 女 | G10: 3 | H10: 3 | I10: 4 | J10: 3 | K10: 3 | L10: 3 | M10: 3 | N10: 3 | O10: 3 | P10: 28 | Q10: 2 | R10: 3 | S10: 4 | T10: 5 | U10: 4 | V10: 4 | W10: 22 | X10: 3 | Y10: 2 | Z10: 2 | AA10: 7 | AB10: 3
D11: 男 | G11: 4 | H11: 4 | I11: 3 | J11: 3 | K11: 3 | L11: 4 | M11: 3 | N11: 3 | O11: 3 | P11: 30 | Q11: 1 | R11: 5 | S11: 5 | T11: 5 | U11: 5 | V11: 3 | W11: 24 | X11: 3 | Y11: 2 | Z11: 1 | AA11: 6 | AB11: 3
D12: 男 | G12: 2 | H12: 1 | I12: 1 | J12: 4 | K12: 3 | L12: 4 | M12: 4 | N12: 5 | O12: 5 | P12: 29 | Q12: 4 | R12: 4 | S12: 3 | T12: 3 | U12: 4 | V12: 5 | W12: 23 | X12: 3 | Y12: 5 | Z12: 5 | AA12: 13 | AB12: 5
D13: 男 | G13: 3 | H13: 2 | I13: 3 | J13: 4 | K13: 4 | L13: 2 | M13: 4 | N13: 3 | O13: 3 | P13: 28 | Q13: 4 | R13: 3 | S13: 3 | T13: 4 | U13: 5 | V13: 4 | W13: 23 | X13: 4 | Y13: 3 | Z13: 5 | AA13: 12 | AB13: 5
D14: 男 | G14: 3 | H14: 3 | I14: 3 | J14: 4 | K14: 4 | L14: 4 | M14: 4 | N14: 3 | O14: 3 | P14: 31 | Q14: 4 | R14: 4 | S14: 3 | T14: 4 | U14: 5 | V14: 4 | W14: 24 | X14: 4 | Y14: 4 | Z14: 5 | AA14: 13 | AB14: 3
D15: 男 | G15: 3 | H15: 3 | I15: 2 | J15: 3 | K15: 3 | L15: 3 | M15: 3 | N15: 3 | O15: 3 | P15: 26 | Q15: 2 | R15: 1 | S15: 2 | T15: 3 | U15: 4 | V15: 2 | W15: 14 | X15: 3 | Y15: 2 | Z15: 5 | AA15: 10 | AB15: 3
D16: 男 | F16: 高ストレス | G16: 4 | H16: 3 | I16: 2 | J16: 1 | K16: 2 | L16: 4 | M16: 1 | N16: 2 | O16: 1 | P16: 20 | Q16: 3 | R16: 1 | S16: 1 | T16: 3 | U16: 2 | V16: 2 | W16: 12 | X16: 3 | Y16: 1 | Z16: 3 | AA16: 7 | AB16: 2
D17: 男 | G17: 2 | H17: 2 | I17: 2 | J17: 2 | K17: 2 | L17: 2 | M17: 4 | N17: 3 | O17: 3 | P17: 22 | Q17: 3 | R17: 2 | S17: 4 | T17: 3 | U17: 3 | V17: 5 | W17: 20 | X17: 2 | Y17: 4 | Z17: 4 | AA17: 10 | AB17: 3
D18: 男 | G18: 3 | H18: 4 | I18: 4 | J18: 4 | K18: 3 | L18: 3 | M18: 3 | N18: 2 | O18: 2 | P18: 28 | Q18: 4 | R18: 4 | S18: 4 | T18: 5 | U18: 3 | V18: 4 | W18: 24 | X18: 2 | Y18: 2 | Z18: 4 | AA18: 8 | AB18: 3
D19: 男 | G19: 3 | H19: 3 | I19: 2 | J19: 4 | K19: 2 | L19: 5 | M19: 4 | N19: 5 | O19: 5 | P19: 33 | Q19: 5 | R19: 3 | S19: 2 | T19: 3 | U19: 5 | V19: 2 | W19: 20 | X19: 5 | Y19: 4 | Z19: 1 | AA19: 10 | AB19: 4
D20: 男 | F20: 高ストレス | G20: 2 | H20: 2 | I20: 3 | J20: 2 | K20: 4 | L20: 2 | M20: 2 | N20: 3 | O20: 2 | P20: 22 | Q20: 2 | R20: 3 | S20: 3 | T20: 2 | U20: 1 | V20: 3 | W20: 14 | X20: 1 | Y20: 1 | Z20: 1 | AA20: 3 | AB20: 1
D21: 男 | G21: 3 | H21: 2 | I21: 3 | J21: 3 | K21: 3 | L21: 4 | M21: 3 | N21: 2 | O21: 3 | P21: 26 | Q21: 5 | R21: 5 | S21: 5 | T21: 3 | U21: 4 | V21: 3 | W21: 25 | X21: 3 | Y21: 3 | Z21: 3 | AA21: 9 | AB21: 3
D22: 男 | G22: 3 | H22: 3 | I22: 3 | J22: 4 | K22: 3 | L22: 4 | M22: 4 | N22: 5 | O22: 3 | P22: 32 | Q22: 1 | R22: 3 | S22: 3 | T22: 3 | U22: 4 | V22: 3 | W22: 17 | X22: 3 | Y22: 3 | Z22: 5 | AA22: 11 | AB22: 3
D23: 男 | G23: 2 | H23: 3 | I23: 2 | J23: 2 | K23: 4 | L23: 2 | M23: 3 | N23: 3 | O23: 3 | P23: 24 | Q23: 4 | R23: 2 | S23: 3 | T23: 4 | U23: 3 | V23: 3 | W23: 19 | X23: 2 | Y23: 2 | Z23: 5 | AA23: 9 | AB23: 4
D24: 男 | G24: 2 | H24: 3 | I24: 3 | J24: 3 | K24: 4 | L24: 4 | M24: 3 | N24: 3 | O24: 5 | P24: 30 | Q24: 2 | R24: 3 | S24: 2 | T24: 2 | U24: 2 | V24: 4 | W24: 15 | X24: 5 | Y24: 2 | Z24: 5 | AA24: 12 | AB24: 3
D25: 男 | G25: 2 | H25: 2 | I25: 4 | J25: 2 | K25: 4 | L25: 3 | M25: 4 | N25: 3 | O25: 3 | P25: 27 | Q25: 3 | R25: 3 | S25: 3 | T25: 2 | U25: 3 | V25: 3 | W25: 17 | X25: 2 | Y25: 3 | Z25: 4 | AA25: 9 | AB25: 4
D26: 男 | G26: 4 | H26: 4 | I26: 3 | J26: 3 | K26: 3 | L26: 4 | M26: 3 | N26: 3 | O26: 3 | P26: 30 | Q26: 3 | R26: 5 | S26: 3 | T26: 3 | U26: 4 | V26: 4 | W26: 22 | X26: 3 | Y26: 3 | Z26: 5 | AA26: 11 | AB26: 4
D27: 男 | G27: 3 | H27: 2 | I27: 3 | J27: 4 | K27: 4 | L27: 4 | M27: 3 | N27: 5 | O27: 5 | P27: 33 | Q27: 4 | R27: 5 | S27: 4 | T27: 2 | U27: 4 | V27: 4 | W27: 23 | X27: 5 | Y27: 3 | Z27: 5 | AA27: 13 | AB27: 5
D28: 女 | G28: 4 | H28: 3 | I28: 3 | J28: 2 | K28: 3 | L28: 4 | M28: 3 | N28: 3 | O28: 3 | P28: 28 | Q28: 3 | R28: 3 | S28: 3 | T28: 3 | U28: 3 | V28: 3 | W28: 18 | X28: 4 | Y28: 2 | Z28: 5 | AA28: 11 | AB28: 3
D29: 男 | G29: 2 | H29: 2 | I29: 3 | J29: 3 | K29: 3 | L29: 4 | M29: 4 | N29: 3 | O29: 5 | P29: 29 | Q29: 4 | R29: 4 | S29: 3 | T29: 3 | U29: 4 | V29: 3 | W29: 21 | X29: 4 | Y29: 3 | Z29: 4 | AA29: 11 | AB29: 3
D30: 男 | G30: 2 | H30: 2 | I30: 4 | J30: 2 | K30: 3 | L30: 3 | M30: 3 | N30: 3 | O30: 3 | P30: 25 | Q30: 3 | R30: 4 | S30: 3 | T30: 3 | U30: 4 | V30: 3 | W30: 20 | X30: 2 | Y30: 2 | Z30: 1 | AA30: 5 | AB30: 3
D31: 男 | G31: 3 | H31: 3 | I31: 3 | J31: 2 | K31: 3 | L31: 4 | M31: 4 | N31: 3 | O31: 3 | P31: 28 | Q31: 3 | R31: 2 | S31: 2 | T31: 3 | U31: 2 | V31: 2 | W31: 14 | X31: 2 | Y31: 4 | Z31: 5 | AA31: 11 | AB31: 3
D32: 男 | G32: 3 | H32: 4 | I32: 4 | J32: 3 | K32: 3 | L32: 3 | M32: 3 | N32: 3 | O32: 3 | P32: 29 | Q32: 3 | R32: 3 | S32: 3 | T32: 3 | U32: 3 | V32: 3 | W32: 18 | X32: 3 | Y32: 2 | Z32: 1 | AA32: 6 | AB32: 3
D33: 男 | G33: 2 | H33: 3 | I33: 4 | J33: 4 | K33: 3 | L33: 5 | M33: 4 | N33: 5 | O33: 5 | P33: 35 | Q33: 5 | R33: 3 | S33: 3 | T33: 4 | U33: 5 | V33: 3 | W33: 23 | X33: 5 | Y33: 5 | Z33: 5 | AA33: 15 | AB33: 5
D34: 男 | G34: 2 | H34: 2 | I34: 3 | J34: 2 | K34: 4 | L34: 3 | M34: 4 | N34: 3 | O34: 3 | P34: 26 | Q34: 3 | R34: 1 | S34: 3 | T34: 3 | U34: 4 | V34: 2 | W34: 16 | X34: 1 | Y34: 3 | Z34: 4 | AA34: 8 | AB34: 3
D35: 男 | G35: 2 | H35: 3 | I35: 4 | J35: 3 | K35: 4 | L35: 3 | M35: 3 | N35: 2 | O35: 2 | P35: 26 | Q35: 3 | R35: 3 | S35: 3 | T35: 3 | U35: 4 | V35: 3 | W35: 19 | X35: 3 | Y35: 4 | Z35: 5 | AA35: 12 | AB35: 3
D36: 男 | G36: 2 | H36: 3 | I36: 3 | J36: 3 | K36: 4 | L36: 3 | M36: 3 | N36: 3 | O36: 2 | P36: 26 | Q36: 3 | R36: 3 | S36: 2 | T36: 3 | U36: 3 | V36: 4 | W36: 18 | X36: 3 | Y36: 2 | Z36: 2 | AA36: 7 | AB36: 3
D37: 女 | G37: 5 | H37: 5 | I37: 4 | J37: 3 | K37: 5 | L37: 1 | M37: 1 | N37: 2 | O37: 1 | P37: 27 | Q37: 3 | R37: 1 | S37: 1 | T37: 3 | U37: 2 | V37: 3 | W37: 13 | X37: 4 | Y37: 3 | Z37: 5 | AA37: 12 | AB37: 3
D38: 男 | G38: 3 | H38: 3 | I38: 4 | J38: 3 | K38: 3 | L38: 4 | M38: 4 | N38: 3 | O38: 3 | P38: 30 | Q38: 1 | R38: 3 | S38: 2 | T38: 3 | U38: 3 | V38: 3 | W38: 15 | X38: 2 | Y38: 2 | Z38: 2 | AA38: 6 | AB38: 3
D39: 男 | G39: 4 | H39: 3 | I39: 4 | J39: 3 | K39: 3 | L39: 4 | M39: 3 | N39: 3 | O39: 3 | P39: 30 | Q39: 4 | R39: 3 | S39: 3 | T39: 3 | U39: 4 | V39: 3 | W39: 20 | X39: 2 | Y39: 2 | Z39: 5 | AA39: 9 | AB39: 3
D40: 男 | G40: 4 | H40: 3 | I40: 4 | J40: 3 | K40: 3 | L40: 4 | M40: 2 | N40: 3 | O40: 3 | P40: 29 | Q40: 3 | R40: 5 | S40: 3 | T40: 4 | U40: 4 | V40: 3 | W40: 22 | X40: 4 | Y40: 3 | Z40: 3 | AA40: 10 | AB40: 3
D41: 男 | G41: 5 | H41: 3 | I41: 4 | J41: 3 | K41: 3 | L41: 4 | M41: 3 | N41: 3 | O41: 3 | P41: 31 | Q41: 4 | R41: 4 | S41: 3 | T41: 3 | U41: 4 | V41: 4 | W41: 22 | X41: 4 | Y41: 3 | Z41: 2 | AA41: 9 | AB41: 3
D42: 男 | G42: 3 | H42: 3 | I42: 4 | J42: 3 | K42: 1 | L42: 4 | M42: 4 | N42: 3 | O42: 2 | P42: 27 | Q42: 3 | R42: 1 | S42: 2 | T42: 2 | U42: 3 | V42: 2 | W42: 13 | X42: 2 | Y42: 2 | Z42: 3 | AA42: 7 | AB42: 3
D43: 男 | G43: 3 | H43: 2 | I43: 4 | J43: 4 | K43: 4 | L43: 3 | M43: 4 | N43: 3 | O43: 3 | P43: 30 | Q43: 3 | R43: 5 | S43: 3 | T43: 3 | U43: 4 | V43: 4 | W43: 22 | X43: 4 | Y43: 4 | Z43: 5 | AA43: 13 | AB43: 3
D44: 男 | G44: 4 | H44: 4 | I44: 4 | J44: 3 | K44: 3 | L44: 3 | M44: 4 | N44: 3 | O44: 5 | P44: 33 | Q44: 3 | R44: 3 | S44: 3 | T44: 3 | U44: 3 | V44: 2 | W44: 17 | X44: 4 | Y44: 3 | Z44: 3 | AA44: 10 | AB44: 3
D45: 男 | F45: 高ストレス | G45: 4 | H45: 3 | I45: 4 | J45: 2 | K45: 3 | L45: 3 | M45: 3 | N45: 2 | O45: 2 | P45: 26 | Q45: 3 | R45: 2 | S45: 1 | T45: 1 | U45: 2 | V45: 1 | W45: 10 | X45: 3 | Y45: 3 | Z45: 3 | AA45: 9 | AB45: 3
D46: 男 | F46: 高ストレス | G46: 3 | H46: 3 | I46: 4 | J46: 2 | K46: 3 | L46: 3 | M46: 3 | N46: 3 | O46: 3 | P46: 27 | Q46: 2 | R46: 2 | S46: 3 | T46: 1 | U46: 1 | V46: 3 | W46: 12 | X46: 1 | Y46: 1 | Z46: 2 | AA46: 4 | AB46: 3
D47: 男 | G47: 3 | H47: 3 | I47: 4 | J47: 3 | K47: 3 | L47: 4 | M47: 3 | N47: 3 | O47: 3 | P47: 29 | Q47: 3 | R47: 2 | S47: 3 | T47: 3 | U47: 4 | V47: 3 | W47: 18 | X47: 5 | Y47: 5 | Z47: 5 | AA47: 15 | AB47: 5
D48: 男 | G48: 3 | H48: 3 | I48: 4 | J48: 2 | K48: 3 | L48: 4 | M48: 3 | N48: 3 | O48: 3 | P48: 28 | Q48: 4 | R48: 2 | S48: 3 | T48: 3 | U48: 3 | V48: 2 | W48: 17 | X48: 3 | Y48: 2 | Z48: 3 | AA48: 8 | AB48: 3
D49: 男 | G49: 3 | H49: 3 | I49: 3 | J49: 2 | K49: 3 | L49: 3 | M49: 3 | N49: 3 | O49: 5 | P49: 28 | Q49: 4 | R49: 3 | S49: 3 | T49: 4 | U49: 5 | V49: 3 | W49: 22 | X49: 4 | Y49: 4 | Z49: 5 | AA49: 13 | AB49: 4
D50: 男 | G50: 3 | H50: 3 | I50: 4 | J50: 2 | K50: 4 | L50: 3 | M50: 4 | N50: 5 | O50: 5 | P50: 33 | Q50: 3 | R50: 3 | S50: 3 | T50: 3 | U50: 3 | V50: 3 | W50: 18 | X50: 2 | Y50: 2 | Z50: 3 | AA50: 7 | AB50: 3
D51: 男 | G51: 4 | H51: 3 | I51: 4 | J51: 3 | K51: 3 | L51: 4 | M51: 3 | N51: 3 | O51: 3 | P51: 30 | Q51: 3 | R51: 5 | S51: 3 | T51: 3 | U51: 4 | V51: 3 | W51: 21 | X51: 3 | Y51: 2 | Z51: 4 | AA51: 9 | AB51: 4
D52: 男 | G52: 4 | H52: 4 | I52: 4 | J52: 4 | K52: 3 | L52: 4 | M52: 4 | N52: 5 | O52: 3 | P52: 35 | Q52: 5 | R52: 3 | S52: 4 | T52: 5 | U52: 5 | V52: 4 | W52: 26 | X52: 2 | Y52: 2 | Z52: 4 | AA52: 8 | AB52: 5
D53: 男 | F53: 高ストレス | G53: 2 | H53: 1 | I53: 3 | J53: 2 | K53: 1 | L53: 2 | M53: 2 | N53: 2 | O53: 3 | P53: 18 | Q53: 3 | R53: 3 | S53: 2 | T53: 2 | U53: 4 | V53: 3 | W53: 17 | X53: 2 | Y53: 1 | Z53: 3 | AA53: 6 | AB53: 3
D54: 男 | G54: 3 | H54: 2 | I54: 3 | J54: 3 | K54: 3 | L54: 4 | M54: 3 | N54: 5 | O54: 3 | P54: 29 | Q54: 2 | R54: 2 | S54: 3 | T54: 4 | U54: 3 | V54: 2 | W54: 16 | X54: 4 | Y54: 3 | Z54: 3 | AA54: 10 | AB54: 3
D55: 男 | G55: 2 | H55: 2 | I55: 4 | J55: 1 | K55: 2 | L55: 1 | M55: 4 | N55: 3 | O55: 5 | P55: 24 | Q55: 2 | R55: 3 | S55: 2 | T55: 3 | U55: 2 | V55: 4 | W55: 16 | X55: 3 | Y55: 3 | Z55: 4 | AA55: 10 | AB55: 3
D56: 男 | G56: 1 | H56: 2 | I56: 3 | J56: 3 | K56: 2 | L56: 4 | M56: 3 | N56: 3 | O56: 3 | P56: 24 | Q56: 3 | R56: 2 | S56: 2 | T56: 2 | U56: 3 | V56: 3 | W56: 15 | X56: 4 | Y56: 2 | Z56: 5 | AA56: 11 | AB56: 3
D57: 男 | G57: 4 | H57: 3 | I57: 4 | J57: 4 | K57: 3 | L57: 5 | M57: 4 | N57: 5 | O57: 3 | P57: 35 | Q57: 1 | R57: 2 | S57: 3 | T57: 3 | U57: 3 | V57: 4 | W57: 16 | X57: 2 | Y57: 2 | Z57: 5 | AA57: 9 | AB57: 4
D58: 男 | G58: 4 | H58: 3 | I58: 4 | J58: 4 | K58: 3 | L58: 4 | M58: 4 | N58: 3 | O58: 5 | P58: 34 | Q58: 3 | R58: 4 | S58: 3 | T58: 3 | U58: 3 | V58: 4 | W58: 20 | X58: 4 | Y58: 3 | Z58: 2 | AA58: 9 | AB58: 3
D59: 男 | G59: 4 | H59: 2 | I59: 4 | J59: 5 | K59: 4 | L59: 4 | M59: 4 | N59: 2 | O59: 5 | P59: 34 | Q59: 3 | R59: 3 | S59: 3 | T59: 3 | U59: 3 | V59: 2 | W59: 17 | X59: 4 | Y59: 3 | Z59: 3 | AA59: 10 | AB59: 3
D60: 女 | G60: 3 | H60: 2 | I60: 4 | J60: 3 | K60: 3 | L60: 4 | M60: 3 | N60: 3 | O60: 3 | P60: 28 | Q60: 3 | R60: 4 | S60: 4 | T60: 4 | U60: 4 | V60: 3 | W60: 22 | X60: 4 | Y60: 3 | Z60: 5 | AA60: 12 | AB60: 4
D61: 男 | G61: 4 | H61: 2 | I61: 3 | J61: 4 | K61: 4 | L61: 4 | M61: 4 | N61: 5 | O61: 5 | P61: 35 | Q61: 4 | R61: 3 | S61: 3 | T61: 4 | U61: 5 | V61: 4 | W61: 23 | X61: 5 | Y61: 5 | Z61: 5 | AA61: 15 | AB61: 5
D62: 男 | G62: 2 | H62: 2 | I62: 3 | J62: 3 | K62: 4 | L62: 3 | M62: 3 | N62: 2 | O62: 5 | P62: 27 | Q62: 3 | R62: 4 | S62: 2 | T62: 3 | U62: 3 | V62: 3 | W62: 18 | X62: 3 | Y62: 3 | Z62: 5 | AA62: 11 | AB62: 4
D63: 男 | G63: 4 | H63: 4 | I63: 4 | J63: 3 | K63: 3 | L63: 3 | M63: 2 | N63: 1 | O63: 1 | P63: 25 | Q63: 2 | R63: 4 | S63: 3 | T63: 4 | U63: 2 | V63: 2 | W63: 17 | X63: 4 | Y63: 2 | Z63: 1 | AA63: 7 | AB63: 3
D64: 男 | G64: 4 | H64: 4 | I64: 3 | J64: 2 | K64: 2 | L64: 2 | M64: 3 | N64: 2 | O64: 2 | P64: 24 | Q64: 2 | R64: 3 | S64: 3 | T64: 2 | U64: 2 | V64: 1 | W64: 13 | X64: 2 | Y64: 2 | Z64: 4 | AA64: 8 | AB64: 3
D65: 男 | G65: 3 | H65: 4 | I65: 3 | J65: 4 | K65: 3 | L65: 3 | M65: 2 | N65: 2 | O65: 3 | P65: 27 | Q65: 3 | R65: 3 | S65: 3 | T65: 3 | U65: 3 | V65: 3 | W65: 18 | X65: 5 | Y65: 4 | Z65: 4 | AA65: 13 | AB65: 4
D66: 男 | G66: 4 | H66: 3 | I66: 4 | J66: 3 | K66: 3 | L66: 3 | M66: 2 | N66: 3 | O66: 2 | P66: 27 | Q66: 3 | R66: 2 | S66: 2 | T66: 3 | U66: 3 | V66: 2 | W66: 15 | X66: 2 | Y66: 2 | Z66: 4 | AA66: 8 | AB66: 3
D67: 男 | G67: 3 | H67: 3 | I67: 3 | J67: 3 | K67: 3 | L67: 3 | M67: 3 | N67: 3 | O67: 3 | P67: 27 | Q67: 3 | R67: 3 | S67: 3 | T67: 3 | U67: 3 | V67: 2 | W67: 17 | X67: 4 | Y67: 2 | Z67: 4 | AA67: 10 | AB67: 3
D68: 男 | G68: 3 | H68: 2 | I68: 4 | J68: 3 | K68: 4 | L68: 3 | M68: 4 | N68: 3 | O68: 3 | P68: 29 | Q68: 1 | R68: 2 | S68: 3 | T68: 2 | U68: 2 | V68: 3 | W68: 13 | X68: 3 | Y68: 1 | Z68: 1 | AA68: 5 | AB68: 4
D69: 男 | G69: 1 | H69: 2 | I69: 2 | J69: 3 | K69: 3 | L69: 4 | M69: 3 | N69: 3 | O69: 3 | P69: 24 | Q69: 2 | R69: 4 | S69: 2 | T69: 2 | U69: 2 | V69: 3 | W69: 15 | X69: 2 | Y69: 2 | Z69: 1 | AA69: 5 | AB69: 3
D70: 男 | G70: 4 | H70: 4 | I70: 4 | J70: 3 | K70: 4 | L70: 3 | M70: 3 | N70: 5 | O70: 5 | P70: 35 | Q70: 4 | R70: 4 | S70: 3 | T70: 5 | U70: 5 | V70: 5 | W70: 26 | X70: 4 | Y70: 1 | Z70: 3 | AA70: 8 | AB70: 3
D71: 男 | G71: 1 | H71: 1 | I71: 3 | J71: 3 | K71: 2 | L71: 1 | M71: 4 | N71: 3 | O71: 5 | P71: 23 | Q71: 4 | R71: 2 | S71: 2 | T71: 2 | U71: 2 | V71: 3 | W71: 15 | X71: 2 | Y71: 2 | Z71: 1 | AA71: 5 | AB71: 4
D72: 男 | G72: 3 | H72: 3 | I72: 3 | J72: 2 | K72: 4 | L72: 4 | M72: 4 | N72: 5 | O72: 5 | P72: 33 | Q72: 5 | R72: 5 | S72: 4 | T72: 3 | U72: 4 | V72: 4 | W72: 25 | X72: 5 | Y72: 3 | Z72: 5 | AA72: 13 | AB72: 5
D73: 女 | G73: 3 | H73: 3 | I73: 3 | J73: 2 | K73: 3 | L73: 3 | M73: 2 | N73: 2 | O73: 1 | P73: 22 | Q73: 2 | R73: 3 | S73: 3 | T73: 3 | U73: 1 | V73: 2 | W73: 14 | X73: 3 | Y73: 1 | Z73: 4 | AA73: 8 | AB73: 1
D74: 男 | G74: 4 | H74: 4 | I74: 3 | J74: 4 | K74: 4 | L74: 4 | M74: 4 | N74: 3 | O74: 3 | P74: 33 | Q74: 3 | R74: 4 | S74: 3 | T74: 3 | U74: 3 | V74: 3 | W74: 19 | X74: 5 | Y74: 4 | Z74: 5 | AA74: 14 | AB74: 5
D75: 女 | G75: 3 | H75: 3 | I75: 2 | J75: 2 | K75: 2 | L75: 4 | M75: 2 | N75: 3 | O75: 2 | P75: 23 | Q75: 3 | R75: 2 | S75: 2 | T75: 3 | U75: 3 | V75: 3 | W75: 16 | X75: 3 | Y75: 2 | Z75: 1 | AA75: 6 | AB75: 3
D76: 女 | F76: 高ストレス | G76: 2 | H76: 1 | I76: 2 | J76: 1 | K76: 1 | L76: 3 | M76: 1 | N76: 1 | O76: 2 | P76: 14 | Q76: 1 | R76: 2 | S76: 2 | T76: 2 | U76: 1 | V76: 1 | W76: 9 | X76: 1 | Y76: 4 | Z76: 5 | AA76: 10 | AB76: 3
D77: 男 | F77: 高ストレス | G77: 2 | H77: 1 | I77: 3 | J77: 2 | K77: 1 | L77: 2 | M77: 3 | N77: 3 | O77: 3 | P77: 20 | Q77: 3 | R77: 2 | S77: 3 | T77: 2 | U77: 2 | V77: 2 | W77: 14 | X77: 2 | Y77: 1 | Z77: 2 | AA77: 5 | AB77: 3
D78: 女 | G78: 4 | H78: 4 | I78: 4 | J78: 3 | K78: 2 | L78: 4 | M78: 3 | N78: 3 | O78: 2 | P78: 29 | Q78: 3 | R78: 3 | S78: 5 | T78: 4 | U78: 4 | V78: 3 | W78: 22 | X78: 3 | Y78: 2 | Z78: 4 | AA78: 9 | AB78: 3
D79: 女 | G79: 3 | H79: 2 | I79: 4 | J79: 3 | K79: 3 | L79: 4 | M79: 2 | N79: 2 | O79: 3 | P79: 26 | Q79: 3 | R79: 3 | S79: 3 | T79: 3 | U79: 3 | V79: 2 | W79: 17 | X79: 3 | Y79: 2 | Z79: 3 | AA79: 8 | AB79: 3
D80: 男 | G80: 2 | H80: 1 | I80: 4 | J80: 4 | K80: 3 | L80: 4 | M80: 3 | N80: 5 | O80: 5 | P80: 31 | Q80: 3 | R80: 5 | S80: 3 | T80: 3 | U80: 3 | V80: 2 | W80: 19 | X80: 3 | Y80: 4 | Z80: 4 | AA80: 11 | AB80: 5
D81: 男 | G81: 1 | H81: 2 | I81: 2 | J81: 3 | K81: 3 | L81: 4 | M81: 4 | N81: 3 | O81: 3 | P81: 25 | Q81: 3 | R81: 2 | S81: 3 | T81: 5 | U81: 5 | V81: 4 | W81: 22 | X81: 3 | Y81: 4 | Z81: 4 | AA81: 11 | AB81: 3
D82: 男 | G82: 3 | H82: 3 | I82: 3 | J82: 3 | K82: 2 | L82: 3 | M82: 3 | N82: 2 | O82: 3 | P82: 25 | Q82: 3 | R82: 3 | S82: 3 | T82: 3 | U82: 4 | V82: 3 | W82: 19 | X82: 3 | Y82: 1 | Z82: 2 | AA82: 6 | AB82: 3
D83: 女 | G83: 3 | H83: 3 | I83: 2 | J83: 3 | K83: 5 | L83: 4 | M83: 3 | N83: 5 | O83: 3 | P83: 31 | Q83: 3 | R83: 3 | S83: 3 | T83: 3 | U83: 3 | V83: 3 | W83: 18 | X83: 4 | Y83: 2 | Z83: 4 | AA83: 10 | AB83: 3
D84: 女 | F84: 高ストレス | G84: 3 | H84: 2 | I84: 4 | J84: 2 | K84: 1 | L84: 2 | M84: 2 | N84: 2 | O84: 1 | P84: 19 | Q84: 1 | R84: 4 | S84: 1 | T84: 1 | U84: 1 | V84: 2 | W84: 10 | X84: 2 | Y84: 1 | Z84: 1 | AA84: 4 | AB84: 1
D85: 男 | G85: 2 | H85: 3 | I85: 3 | J85: 1 | K85: 3 | L85: 3 | M85: 3 | N85: 3 | O85: 2 | P85: 23 | Q85: 1 | R85: 3 | S85: 3 | T85: 3 | U85: 3 | V85: 3 | W85: 16 | X85: 2 | Y85: 2 | Z85: 4 | AA85: 8 | AB85: 3
D86: 男 | G86: 2 | H86: 3 | I86: 3 | J86: 3 | K86: 4 | L86: 3 | M86: 3 | N86: 3 | O86: 3 | P86: 27 | Q86: 3 | R86: 3 | S86: 3 | T86: 3 | U86: 3 | V86: 2 | W86: 17 | X86: 4 | Y86: 3 | Z86: 3 | AA86: 10 | AB86: 4
D87: 女 | G87: 1 | H87: 1 | I87: 4 | J87: 3 | K87: 3 | L87: 4 | M87: 4 | N87: 3 | O87: 3 | P87: 26 | Q87: 4 | R87: 5 | S87: 5 | T87: 5 | U87: 4 | V87: 4 | W87: 27 | X87: 5 | Y87: 5 | Z87: 5 | AA87: 15 | AB87: 5
D88: 男 | F88: 高ストレス | G88: 2 | H88: 2 | I88: 4 | J88: 1 | K88: 1 | L88: 2 | M88: 3 | N88: 3 | O88: 1 | P88: 19 | Q88: 1 | R88: 1 | S88: 1 | T88: 2 | U88: 1 | V88: 1 | W88: 7 | X88: 2 | Y88: 2 | Z88: 1 | AA88: 5 | AB88: 3
D89: 女 | F89: 高ストレス | G89: 1 | H89: 1 | I89: 2 | J89: 3 | K89: 1 | L89: 4 | M89: 4 | N89: 3 | O89: 3 | P89: 22 | Q89: 1 | R89: 2 | S89: 1 | T89: 2 | U89: 3 | V89: 2 | W89: 11 | X89: 3 | Y89: 2 | Z89: 2 | AA89: 7 | AB89: 2
D90: 女 | G90: 3 | H90: 2 | I90: 4 | J90: 3 | K90: 3 | L90: 3 | M90: 3 | N90: 3 | O90: 3 | P90: 27 | Q90: 3 | R90: 4 | S90: 3 | T90: 4 | U90: 4 | V90: 2 | W90: 20 | X90: 4 | Y90: 3 | Z90: 5 | AA90: 12 | AB90: 3
D91: 女 | G91: 2 | H91: 1 | I91: 4 | J91: 3 | K91: 2 | L91: 4 | M91: 4 | N91: 5 | O91: 5 | P91: 30 | Q91: 3 | R91: 4 | S91: 3 | T91: 2 | U91: 3 | V91: 4 | W91: 19 | X91: 4 | Y91: 4 | Z91: 4 | AA91: 12 | AB91: 3
D92: 女 | G92: 3 | H92: 2 | I92: 4 | J92: 3 | K92: 1 | L92: 3 | M92: 3 | N92: 3 | O92: 3 | P92: 25 | Q92: 3 | R92: 3 | S92: 3 | T92: 3 | U92: 3 | V92: 3 | W92: 18 | X92: 4 | Y92: 3 | Z92: 3 | AA92: 10 | AB92: 3
D93: 男 | G93: 3 | H93: 3 | I93: 4 | J93: 5 | K93: 4 | L93: 4 | M93: 4 | N93: 5 | O93: 5 | P93: 37 | Q93: 4 | R93: 5 | S93: 5 | T93: 5 | U93: 5 | V93: 4 | W93: 28 | X93: 4 | Y93: 4 | Z93: 5 | AA93: 13 | AB93: 5
D94: 女 | G94: 3 | H94: 2 | I94: 4 | J94: 3 | K94: 2 | L94: 2 | M94: 2 | N94: 2 | O94: 2 | P94: 22 | Q94: 4 | R94: 4 | S94: 3 | T94: 4 | U94: 3 | V94: 4 | W94: 22 | X94: 3 | Y94: 2 | Z94: 1 | AA94: 6 | AB94: 3
D95: 女 | G95: 3 | H95: 2 | I95: 4 | J95: 1 | K95: 2 | L95: 4 | M95: 4 | N95: 3 | O95: 2 | P95: 25 | Q95: 2 | R95: 3 | S95: 3 | T95: 3 | U95: 2 | V95: 3 | W95: 16 | X95: 4 | Y95: 4 | Z95: 4 | AA95: 12 | AB95: 2
D96: 女 | F96: 高ストレス | G96: 2 | H96: 1 | I96: 4 | J96: 3 | K96: 1 | L96: 2 | M96: 4 | N96: 1 | O96: 2 | P96: 20 | Q96: 1 | R96: 5 | S96: 2 | T96: 2 | U96: 1 | V96: 1 | W96: 12 | X96: 3 | Y96: 1 | Z96: 4 | AA96: 8 | AB96: 1
D97: 男 | G97: 3 | H97: 2 | I97: 4 | J97: 4 | K97: 3 | L97: 3 | M97: 3 | N97: 3 | O97: 3 | P97: 28 | Q97: 4 | R97: 3 | S97: 3 | T97: 3 | U97: 5 | V97: 3 | W97: 21 | X97: 2 | Y97: 3 | Z97: 5 | AA97: 10 | AB97: 3
D98: 女 | G98: 3 | H98: 2 | I98: 4 | J98: 4 | K98: 3 | L98: 4 | M98: 2 | N98: 3 | O98: 3 | P98: 28 | Q98: 3 | R98: 4 | S98: 3 | T98: 2 | U98: 3 | V98: 3 | W98: 18 | X98: 4 | Y98: 3 | Z98: 3 | AA98: 10 | AB98: 3
D99: 女 | G99: 3 | H99: 2 | I99: 4 | J99: 3 | K99: 3 | L99: 3 | M99: 3 | N99: 2 | O99: 3 | P99: 26 | Q99: 2 | R99: 5 | S99: 4 | T99: 3 | U99: 3 | V99: 3 | W99: 20 | X99: 3 | Y99: 2 | Z99: 4 | AA99: 9 | AB99: 3
D100: 男 | G100: 3 | H100: 3 | I100: 4 | J100: 3 | K100: 3 | L100: 4 | M100: 4 | N100: 5 | O100: 5 | P100: 34 | Q100: 2 | R100: 1 | S100: 3 | T100: 3 | U100: 3 | V100: 2 | W100: 14 | X100: 5 | Y100: 1 | Z100: 1 | AA100: 7 | AB100: 3
D101: 男 | F101: 高ストレス | G101: 2 | H101: 2 | I101: 3 | J101: 2 | K101: 3 | L101: 2 | M101: 3 | N101: 3 | O101: 3 | P101: 23 | Q101: 2 | R101: 2 | S101: 2 | T101: 1 | U101: 1 | V101: 2 | W101: 10 | X101: 2 | Y101: 1 | Z101: 5 | AA101: 8 | AB101: 3
D102: 男 | G102: 3 | H102: 1 | I102: 3 | J102: 4 | K102: 3 | L102: 2 | M102: 4 | N102: 3 | O102: 3 | P102: 26 | Q102: 5 | R102: 4 | S102: 4 | T102: 4 | U102: 5 | V102: 4 | W102: 26 | X102: 3 | Y102: 3 | Z102: 5 | AA102: 11 | AB102: 4
D103: 男 | G103: 1 | H103: 2 | I103: 4 | J103: 3 | K103: 1 | L103: 3 | M103: 3 | N103: 3 | O103: 5 | P103: 25 | Q103: 3 | R103: 3 | S103: 3 | T103: 4 | U103: 3 | V103: 4 | W103: 20 | X103: 5 | Y103: 3 | Z103: 5 | AA103: 13 | AB103: 5
D104: 男 | G104: 2 | H104: 3 | I104: 4 | J104: 4 | K104: 3 | L104: 4 | M104: 3 | N104: 3 | O104: 3 | P104: 29 | Q104: 4 | R104: 5 | S104: 3 | T104: 3 | U104: 4 | V104: 4 | W104: 23 | X104: 4 | Y104: 4 | Z104: 4 | AA104: 12 | AB104: 4
D105: 男 | G105: 4 | H105: 4 | I105: 3 | J105: 2 | K105: 3 | L105: 2 | M105: 2 | N105: 3 | O105: 2 | P105: 25 | Q105: 1 | R105: 4 | S105: 3 | T105: 3 | U105: 4 | V105: 3 | W105: 18 | X105: 2 | Y105: 2 | Z105: 2 | AA105: 6 | AB105: 3
D106: 男 | G106: 3 | H106: 3 | I106: 3 | J106: 3 | K106: 2 | L106: 3 | M106: 3 | N106: 2 | O106: 3 | P106: 25 | Q106: 3 | R106: 3 | S106: 3 | T106: 3 | U106: 3 | V106: 4 | W106: 19 | X106: 3 | Y106: 3 | Z106: 5 | AA106: 11 | AB106: 3
D107: 男 | G107: 3 | H107: 3 | I107: 2 | J107: 2 | K107: 3 | L107: 3 | M107: 3 | N107: 5 | O107: 5 | P107: 29 | Q107: 3 | R107: 3 | S107: 3 | T107: 2 | U107: 2 | V107: 1 | W107: 14 | X107: 4 | Y107: 3 | Z107: 5 | AA107: 12 | AB107: 5
D108: 男 | G108: 3 | H108: 2 | I108: 3 | J108: 3 | K108: 3 | L108: 2 | M108: 3 | N108: 3 | O108: 3 | P108: 25 | Q108: 3 | R108: 4 | S108: 3 | T108: 3 | U108: 3 | V108: 3 | W108: 19 | X108: 2 | Y108: 3 | Z108: 3 | AA108: 8 | AB108: 3
D109: 男 | G109: 4 | H109: 3 | I109: 3 | J109: 3 | K109: 3 | L109: 3 | M109: 1 | N109: 2 | O109: 3 | P109: 25 | Q109: 3 | R109: 3 | S109: 3 | T109: 3 | U109: 4 | V109: 5 | W109: 21 | X109: 5 | Y109: 5 | Z109: 5 | AA109: 15 | AB109: 3
D110: 男 | G110: 3 | H110: 4 | I110: 3 | J110: 2 | K110: 3 | L110: 3 | M110: 3 | N110: 3 | O110: 3 | P110: 27 | Q110: 1 | R110: 2 | S110: 3 | T110: 3 | U110: 3 | V110: 3 | W110: 15 | X110: 2 | Y110: 2 | Z110: 3 | AA110: 7 | AB110: 4
D111: 男 | G111: 4 | H111: 4 | I111: 3 | J111: 4 | K111: 3 | L111: 4 | M111: 3 | N111: 5 | O111: 5 | P111: 35 | Q111: 4 | R111: 3 | S111: 3 | T111: 3 | U111: 4 | V111: 4 | W111: 21 | X111: 4 | Y111: 4 | Z111: 5 | AA111: 13 | AB111: 5
D112: 男 | G112: 2 | H112: 3 | I112: 3 | J112: 2 | K112: 3 | L112: 3 | M112: 4 | N112: 5 | O112: 5 | P112: 30 | Q112: 5 | R112: 1 | S112: 1 | T112: 4 | U112: 5 | V112: 2 | W112: 18 | X112: 3 | Y112: 3 | Z112: 2 | AA112: 8 | AB112: 4
D113: 男 | G113: 4 | H113: 4 | I113: 3 | J113: 3 | K113: 2 | L113: 3 | M113: 3 | N113: 2 | O113: 3 | P113: 27 | Q113: 3 | R113: 3 | S113: 3 | T113: 3 | U113: 3 | V113: 4 | W113: 19 | X113: 4 | Y113: 3 | Z113: 5 | AA113: 12 | AB113: 4
D114: 女 | G114: 3 | H114: 3 | I114: 3 | J114: 4 | K114: 3 | L114: 4 | M114: 3 | N114: 3 | O114: 3 | P114: 29 | Q114: 3 | R114: 5 | S114: 4 | T114: 5 | U114: 4 | V114: 4 | W114: 25 | X114: 4 | Y114: 2 | Z114: 2 | AA114: 8 | AB114: 3
D115: 男 | G115: 3 | H115: 4 | I115: 3 | J115: 2 | K115: 2 | L115: 4 | M115: 3 | N115: 3 | O115: 2 | P115: 26 | Q115: 3 | R115: 3 | S115: 2 | T115: 2 | U115: 2 | V115: 1 | W115: 13 | X115: 1 | Y115: 1 | Z115: 5 | AA115: 7 | AB115: 2
D116: 男 | G116: 2 | H116: 3 | I116: 2 | J116: 3 | K116: 1 | L116: 1 | M116: 2 | N116: 3 | O116: 3 | P116: 20 | Q116: 3 | R116: 2 | S116: 3 | T116: 3 | U116: 3 | V116: 3 | W116: 17 | X116: 4 | Y116: 2 | Z116: 3 | AA116: 9 | AB116: 3
D117: 男 | G117: 2 | H117: 2 | I117: 3 | J117: 3 | K117: 3 | L117: 4 | M117: 3 | N117: 3 | O117: 2 | P117: 25 | Q117: 3 | R117: 2 | S117: 3 | T117: 2 | U117: 3 | V117: 3 | W117: 16 | X117: 5 | Y117: 4 | Z117: 5 | AA117: 14 | AB117: 3
D118: 男 | G118: 3 | H118: 2 | I118: 1 | J118: 2 | K118: 3 | L118: 1 | M118: 2 | N118: 2 | O118: 3 | P118: 19 | Q118: 3 | R118: 3 | S118: 2 | T118: 3 | U118: 3 | V118: 3 | W118: 17 | X118: 2 | Y118: 2 | Z118: 5 | AA118: 9 | AB118: 3
D119: 女 | G119: 3 | H119: 2 | I119: 2 | J119: 3 | K119: 3 | L119: 3 | M119: 3 | N119: 3 | O119: 3 | P119: 25 | Q119: 3 | R119: 5 | S119: 2 | T119: 3 | U119: 4 | V119: 2 | W119: 19 | X119: 4 | Y119: 3 | Z119: 5 | AA119: 12 | AB119: 4
D120: 男 | G120: 3 | H120: 2 | I120: 3 | J120: 4 | K120: 2 | L120: 4 | M120: 3 | N120: 3 | O120: 3 | P120: 27 | Q120: 3 | R120: 3 | S120: 3 | T120: 2 | U120: 3 | V120: 3 | W120: 17 | X120: 5 | Y120: 4 | Z120: 2 | AA120: 11 | AB120: 3
D121: 男 | G121: 3 | H121: 3 | I121: 2 | J121: 2 | K121: 3 | L121: 3 | M121: 3 | N121: 3 | O121: 1 | P121: 23 | Q121: 3 | R121: 2 | S121: 2 | T121: 2 | U121: 3 | V121: 5 | W121: 17 | X121: 2 | Y121: 1 | Z121: 5 | AA121: 8 | AB121: 3
D122: 女 | G122: 3 | H122: 3 | I122: 3 | J122: 4 | K122: 2 | L122: 4 | M122: 3 | N122: 5 | O122: 5 | P122: 32 | Q122: 4 | R122: 4 | S122: 5 | T122: 3 | U122: 3 | V122: 5 | W122: 24 | X122: 5 | Y122: 5 | Z122: 5 | AA122: 15 | AB122: 5
D123: 女 | G123: 2 | H123: 1 | I123: 3 | J123: 2 | K123: 3 | L123: 3 | M123: 4 | N123: 3 | O123: 3 | P123: 24 | Q123: 3 | R123: 3 | S123: 3 | T123: 3 | U123: 2 | V123: 4 | W123: 18 | X123: 3 | Y123: 4 | Z123: 4 | AA123: 11 | AB123: 3
D124: 女 | F124: 高ストレス | G124: 3 | H124: 2 | I124: 2 | J124: 3 | K124: 3 | L124: 3 | M124: 3 | N124: 3 | O124: 3 | P124: 25 | Q124: 1 | R124: 3 | S124: 2 | T124: 2 | U124: 2 | V124: 1 | W124: 11 | X124: 4 | Y124: 3 | Z124: 1 | AA124: 8 | AB124: 3
D125: 女 | G125: 3 | H125: 1 | I125: 1 | J125: 4 | K125: 3 | L125: 3 | M125: 4 | N125: 2 | O125: 3 | P125: 24 | Q125: 3 | R125: 4 | S125: 4 | T125: 3 | U125: 4 | V125: 4 | W125: 22 | X125: 3 | Y125: 5 | Z125: 5 | AA125: 13 | AB125: 4
D126: 女 | G126: 2 | H126: 3 | I126: 2 | J126: 4 | K126: 2 | L126: 3 | M126: 3 | N126: 3 | O126: 3 | P126: 25 | Q126: 3 | R126: 5 | S126: 3 | T126: 3 | U126: 3 | V126: 3 | W126: 20 | X126: 4 | Y126: 3 | Z126: 4 | AA126: 11 | AB126: 4
D127: 男 | F127: 高ストレス | G127: 1 | H127: 1 | I127: 1 | J127: 1 | K127: 1 | L127: 1 | M127: 1 | N127: 3 | O127: 3 | P127: 13 | Q127: 1 | R127: 1 | S127: 1 | T127: 1 | U127: 1 | V127: 3 | W127: 8 | X127: 1 | Y127: 1 | Z127: 3 | AA127: 5 | AB127: 3
D128: 女 | G128: 3 | H128: 2 | I128: 2 | J128: 3 | K128: 3 | L128: 2 | M128: 3 | N128: 3 | O128: 3 | P128: 24 | Q128: 3 | R128: 4 | S128: 3 | T128: 5 | U128: 4 | V128: 5 | W128: 24 | X128: 4 | Y128: 3 | Z128: 3 | AA128: 10 | AB128: 3
D129: 男 | F129: 高ストレス | G129: 1 | H129: 2 | I129: 3 | J129: 4 | K129: 1 | L129: 1 | M129: 3 | N129: 3 | O129: 2 | P129: 20 | Q129: 1 | R129: 2 | S129: 1 | T129: 2 | U129: 3 | V129: 3 | W129: 12 | X129: 3 | Y129: 3 | Z129: 2 | AA129: 8 | AB129: 1
D130: 男 | F130: 高ストレス | G130: 3 | H130: 1 | I130: 3 | J130: 3 | K130: 3 | L130: 2 | M130: 4 | N130: 3 | O130: 3 | P130: 25 | Q130: 3 | R130: 3 | S130: 1 | T130: 1 | U130: 2 | V130: 1 | W130: 11 | X130: 4 | Y130: 2 | Z130: 2 | AA130: 8 | AB130: 3
D131: 男 | G131: 3 | H131: 3 | I131: 3 | J131: 2 | K131: 1 | L131: 4 | M131: 3 | N131: 3 | O131: 3 | P131: 25 | Q131: 3 | R131: 2 | S131: 3 | T131: 3 | U131: 4 | V131: 2 | W131: 17 | X131: 4 | Y131: 2 | Z131: 2 | AA131: 8 | AB131: 3
D132: 女 | G132: 3 | H132: 3 | I132: 2 | J132: 2 | K132: 1 | L132: 4 | M132: 2 | N132: 3 | O132: 3 | P132: 23 | Q132: 3 | R132: 2 | S132: 2 | T132: 2 | U132: 3 | V132: 2 | W132: 14 | X132: 4 | Y132: 3 | Z132: 3 | AA132: 10 | AB132: 3
D133: 女 | G133: 2 | H133: 1 | I133: 2 | J133: 3 | K133: 2 | L133: 3 | M133: 3 | N133: 3 | O133: 3 | P133: 22 | Q133: 2 | R133: 3 | S133: 3 | T133: 2 | U133: 3 | V133: 3 | W133: 16 | X133: 4 | Y133: 2 | Z133: 3 | AA133: 9 | AB133: 3
D134: 女 | G134: 3 | H134: 3 | I134: 3 | J134: 3 | K134: 3 | L134: 3 | M134: 3 | N134: 3 | O134: 3 | P134: 27 | Q134: 3 | R134: 2 | S134: 3 | T134: 3 | U134: 4 | V134: 4 | W134: 19 | X134: 3 | Y134: 3 | Z134: 3 | AA134: 9 | AB134: 3
D135: 男 | G135: 3 | H135: 3 | I135: 3 | J135: 2 | K135: 1 | L135: 2 | M135: 2 | N135: 3 | O135: 3 | P135: 22 | Q135: 3 | R135: 3 | S135: 3 | T135: 3 | U135: 3 | V135: 3 | W135: 18 | X135: 2 | Y135: 3 | Z135: 1 | AA135: 6 | AB135: 3
D136: 女 | G136: 2 | H136: 3 | I136: 2 | J136: 2 | K136: 2 | L136: 3 | M136: 3 | N136: 2 | O136: 3 | P136: 22 | Q136: 3 | R136: 3 | S136: 2 | T136: 2 | U136: 2 | V136: 3 | W136: 15 | X136: 4 | Y136: 3 | Z136: 3 | AA136: 10 | AB136: 3
D137: 女 | G137: 3 | H137: 2 | I137: 3 | J137: 3 | K137: 2 | L137: 4 | M137: 4 | N137: 5 | O137: 5 | P137: 31 | Q137: 3 | R137: 4 | S137: 3 | T137: 5 | U137: 4 | V137: 4 | W137: 23 | X137: 4 | Y137: 3 | Z137: 3 | AA137: 10 | AB137: 3
D138: 女 | G138: 3 | H138: 3 | I138: 2 | J138: 3 | K138: 1 | L138: 3 | M138: 3 | N138: 3 | O138: 3 | P138: 24 | Q138: 3 | R138: 2 | S138: 3 | T138: 4 | U138: 4 | V138: 4 | W138: 20 | X138: 3 | Y138: 2 | Z138: 5 | AA138: 10 | AB138: 3
D139: 女 | G139: 3 | H139: 2 | I139: 3 | J139: 2 | K139: 2 | L139: 4 | M139: 4 | N139: 3 | O139: 3 | P139: 26 | Q139: 3 | R139: 2 | S139: 2 | T139: 3 | U139: 2 | V139: 3 | W139: 15 | X139: 4 | Y139: 4 | Z139: 3 | AA139: 11 | AB139: 3
D140: 男 | G140: 3 | H140: 4 | I140: 3 | J140: 5 | K140: 4 | L140: 5 | M140: 4 | N140: 5 | O140: 5 | P140: 38 | Q140: 4 | R140: 4 | S140: 3 | T140: 4 | U140: 4 | V140: 3 | W140: 22 | X140: 5 | Y140: 3 | Z140: 5 | AA140: 13 | AB140: 4
D141: 女 | G141: 3 | H141: 2 | I141: 2 | J141: 3 | K141: 1 | L141: 3 | M141: 3 | N141: 3 | O141: 3 | P141: 23 | Q141: 3 | R141: 3 | S141: 3 | T141: 2 | U141: 3 | V141: 3 | W141: 17 | X141: 4 | Y141: 4 | Z141: 5 | AA141: 13 | AB141: 4
D142: 女 | G142: 2 | H142: 2 | I142: 3 | J142: 3 | K142: 3 | L142: 3 | M142: 4 | N142: 3 | O142: 5 | P142: 28 | Q142: 4 | R142: 4 | S142: 3 | T142: 3 | U142: 4 | V142: 4 | W142: 22 | X142: 4 | Y142: 5 | Z142: 5 | AA142: 14 | AB142: 5
D143: 女 | F143: 高ストレス | G143: 1 | H143: 1 | I143: 2 | J143: 1 | K143: 1 | L143: 2 | M143: 3 | N143: 3 | O143: 5 | P143: 19 | Q143: 3 | R143: 3 | S143: 1 | T143: 2 | U143: 1 | V143: 1 | W143: 11 | X143: 4 | Y143: 3 | Z143: 4 | AA143: 11 | AB143: 3
D144: 女 | G144: 1 | H144: 2 | I144: 2 | J144: 3 | K144: 3 | L144: 3 | M144: 3 | N144: 3 | O144: 5 | P144: 25 | Q144: 4 | R144: 4 | S144: 4 | T144: 2 | U144: 4 | V144: 5 | W144: 23 | X144: 4 | Y144: 3 | Z144: 5 | AA144: 12 | AB144: 4
D145: 男 | G145: 3 | H145: 4 | I145: 2 | J145: 3 | K145: 2 | L145: 4 | M145: 3 | N145: 3 | O145: 3 | P145: 27 | Q145: 3 | R145: 2 | S145: 2 | T145: 2 | U145: 3 | V145: 3 | W145: 15 | X145: 4 | Y145: 3 | Z145: 3 | AA145: 10 | AB145: 3
D146: 男 | G146: 3 | H146: 3 | I146: 3 | J146: 3 | K146: 3 | L146: 3 | M146: 3 | N146: 3 | O146: 3 | P146: 27 | Q146: 1 | R146: 2 | S146: 5 | T146: 3 | U146: 3 | V146: 3 | W146: 17 | X146: 2 | Y146: 3 | Z146: 5 | AA146: 10 | AB146: 1
D147: 女 | G147: 5 | H147: 5 | I147: 4 | J147: 2 | K147: 1 | L147: 1 | M147: 2 | N147: 1 | O147: 1 | P147: 22 | Q147: 4 | R147: 1 | S147: 5 | T147: 5 | U147: 3 | V147: 4 | W147: 22 | X147: 1 | Y147: 1 | Z147: 3 | AA147: 5 | AB147: 3
D148: 男 | G148: 4 | H148: 2 | I148: 3 | J148: 3 | K148: 3 | L148: 4 | M148: 3 | N148: 3 | O148: 3 | P148: 28 | Q148: 3 | R148: 3 | S148: 2 | T148: 2 | U148: 3 | V148: 1 | W148: 14 | X148: 4 | Y148: 3 | Z148: 2 | AA148: 9 | AB148: 4
D149: 男 | G149: 3 | H149: 4 | I149: 3 | J149: 2 | K149: 3 | L149: 2 | M149: 2 | N149: 2 | O149: 3 | P149: 24 | Q149: 1 | R149: 3 | S149: 3 | T149: 5 | U149: 4 | V149: 3 | W149: 19 | X149: 3 | Y149: 2 | Z149: 3 | AA149: 8 | AB149: 3
D150: 男 | G150: 3 | H150: 4 | I150: 3 | J150: 3 | K150: 3 | L150: 3 | M150: 3 | N150: 2 | O150: 2 | P150: 26 | Q150: 4 | R150: 3 | S150: 3 | T150: 3 | U150: 3 | V150: 3 | W150: 19 | X150: 2 | Y150: 3 | Z150: 3 | AA150: 8 | AB150: 3
D151: 男 | F151: 高ストレス | G151: 3 | H151: 3 | I151: 3 | J151: 1 | K151: 1 | L151: 3 | M151: 2 | N151: 1 | O151: 2 | P151: 19 | Q151: 2 | R151: 1 | S151: 1 | T151: 1 | U151: 1 | V151: 2 | W151: 8 | X151: 2 | Y151: 2 | Z151: 2 | AA151: 6 | AB151: 3
D152: 男 | G152: 3 | H152: 3 | I152: 2 | J152: 3 | K152: 1 | L152: 4 | M152: 3 | N152: 3 | O152: 3 | P152: 25 | Q152: 5 | R152: 3 | S152: 3 | T152: 3 | U152: 4 | V152: 4 | W152: 22 | X152: 3 | Y152: 2 | Z152: 4 | AA152: 9 | AB152: 5
D153: 男 | F153: 高ストレス | G153: 3 | H153: 3 | I153: 3 | J153: 1 | K153: 2 | L153: 3 | M153: 2 | N153: 3 | O153: 1 | P153: 21 | Q153: 2 | R153: 1 | S153: 3 | T153: 2 | U153: 1 | V153: 1 | W153: 10 | X153: 1 | Y153: 2 | Z153: 3 | AA153: 6 | AB153: 1
D154: 女 | G154: 2 | H154: 2 | I154: 2 | J154: 2 | K154: 1 | L154: 3 | M154: 3 | N154: 3 | O154: 3 | P154: 21 | Q154: 3 | R154: 3 | S154: 2 | T154: 3 | U154: 3 | V154: 4 | W154: 18 | X154: 2 | Y154: 3 | Z154: 1 | AA154: 6 | AB154: 3
D155: 女 | G155: 3 | H155: 1 | I155: 2 | J155: 3 | K155: 5 | L155: 3 | M155: 4 | N155: 2 | O155: 3 | P155: 26 | Q155: 3 | R155: 3 | S155: 4 | T155: 3 | U155: 3 | V155: 5 | W155: 21 | X155: 4 | Y155: 5 | Z155: 5 | AA155: 14 | AB155: 3
D156: 女 | G156: 4 | H156: 2 | I156: 4 | J156: 4 | K156: 5 | L156: 4 | M156: 3 | N156: 3 | O156: 3 | P156: 32 | Q156: 5 | R156: 4 | S156: 5 | T156: 5 | U156: 5 | V156: 5 | W156: 29 | X156: 4 | Y156: 4 | Z156: 5 | AA156: 13 | AB156: 4
D157: 女 | G157: 1 | H157: 2 | I157: 3 | J157: 2 | K157: 3 | L157: 2 | M157: 4 | N157: 3 | O157: 5 | P157: 25 | Q157: 3 | R157: 1 | S157: 3 | T157: 2 | U157: 3 | V157: 4 | W157: 16 | X157: 3 | Y157: 3 | Z157: 5 | AA157: 11 | AB157: 3
D158: 女 | G158: 3 | H158: 3 | I158: 3 | J158: 3 | K158: 3 | L158: 4 | M158: 3 | N158: 5 | O158: 5 | P158: 32 | Q158: 3 | R158: 4 | S158: 3 | T158: 3 | U158: 4 | V158: 3 | W158: 20 | X158: 4 | Y158: 3 | Z158: 4 | AA158: 11 | AB158: 3
D159: 男 | G159: 3 | H159: 3 | I159: 3 | J159: 3 | K159: 2 | L159: 3 | M159: 3 | N159: 3 | O159: 3 | P159: 26 | Q159: 4 | R159: 2 | S159: 3 | T159: 3 | U159: 3 | V159: 3 | W159: 18 | X159: 3 | Y159: 3 | Z159: 2 | AA159: 8 | AB159: 3
D160: 男 | G160: 3 | H160: 4 | I160: 3 | J160: 3 | K160: 3 | L160: 4 | M160: 3 | N160: 3 | O160: 3 | P160: 29 | Q160: 4 | R160: 3 | S160: 3 | T160: 3 | U160: 3 | V160: 4 | W160: 20 | X160: 4 | Y160: 3 | Z160: 3 | AA160: 10 | AB160: 3
D161: 男 | G161: 3 | H161: 3 | I161: 4 | J161: 3 | K161: 3 | L161: 4 | M161: 2 | N161: 3 | O161: 2 | P161: 27 | Q161: 4 | R161: 3 | S161: 3 | T161: 3 | U161: 4 | V161: 3 | W161: 20 | X161: 4 | Y161: 4 | Z161: 2 | AA161: 10 | AB161: 2
D162: 男 | G162: 5 | H162: 4 | I162: 4 | J162: 1 | K162: 1 | L162: 4 | M162: 3 | N162: 3 | O162: 3 | P162: 28 | Q162: 3 | R162: 3 | S162: 3 | T162: 3 | U162: 4 | V162: 5 | W162: 21 | X162: 5 | Y162: 2 | Z162: 1 | AA162: 8 | AB162: 4
D163: 女 | F163: 高ストレス | G163: 3 | H163: 4 | I163: 3 | J163: 3 | K163: 3 | L163: 3 | M163: 3 | N163: 3 | O163: 2 | P163: 27 | Q163: 1 | R163: 3 | S163: 2 | T163: 2 | U163: 1 | V163: 2 | W163: 11 | X163: 3 | Y163: 4 | Z163: 1 | AA163: 8 | AB163: 2
D164: 男 | G164: 3 | H164: 3 | I164: 3 | J164: 3 | K164: 4 | L164: 4 | M164: 4 | N164: 3 | O164: 3 | P164: 30 | Q164: 4 | R164: 4 | S164: 3 | T164: 3 | U164: 4 | V164: 4 | W164: 22 | X164: 5 | Y164: 5 | Z164: 5 | AA164: 15 | AB164: 4
D165: 男 | G165: 2 | H165: 2 | I165: 2 | J165: 2 | K165: 2 | L165: 3 | M165: 3 | N165: 3 | O165: 5 | P165: 24 | Q165: 3 | R165: 2 | S165: 2 | T165: 2 | U165: 2 | V165: 2 | W165: 13 | X165: 3 | Y165: 2 | Z165: 3 | AA165: 8 | AB165: 3
D166: 男 | G166: 2 | H166: 3 | I166: 2 | J166: 4 | K166: 1 | L166: 5 | M166: 4 | N166: 5 | O166: 5 | P166: 31 | Q166: 5 | R166: 5 | S166: 3 | T166: 3 | U166: 5 | V166: 5 | W166: 26 | X166: 5 | Y166: 5 | Z166: 5 | AA166: 15 | AB166: 5
D167: 男 | G167: 3 | H167: 4 | I167: 2 | J167: 3 | K167: 4 | L167: 4 | M167: 4 | N167: 2 | O167: 2 | P167: 28 | Q167: 3 | R167: 2 | S167: 3 | T167: 3 | U167: 2 | V167: 2 | W167: 15 | X167: 3 | Y167: 2 | Z167: 5 | AA167: 10 | AB167: 1
D168: 女 | G168: 3 | H168: 2 | I168: 3 | J168: 2 | K168: 3 | L168: 4 | M168: 3 | N168: 3 | O168: 3 | P168: 26 | Q168: 3 | R168: 2 | S168: 2 | T168: 2 | U168: 3 | V168: 4 | W168: 16 | X168: 3 | Y168: 3 | Z168: 4 | AA168: 10 | AB168: 3
D169: 女 | F169: 高ストレス | G169: 3 | H169: 3 | I169: 3 | J169: 2 | K169: 1 | L169: 3 | M169: 3 | N169: 3 | O169: 2 | P169: 23 | Q169: 2 | R169: 2 | S169: 2 | T169: 3 | U169: 1 | V169: 2 | W169: 12 | X169: 3 | Y169: 2 | Z169: 3 | AA169: 8 | AB169: 1
D170: 男 | G170: 3 | H170: 2 | I170: 3 | J170: 3 | K170: 1 | L170: 4 | M170: 3 | N170: 5 | O170: 5 | P170: 29 | Q170: 5 | R170: 3 | S170: 3 | T170: 3 | U170: 3 | V170: 3 | W170: 20 | X170: 4 | Y170: 3 | Z170: 4 | AA170: 11 | AB170: 3
D171: 女 | G171: 3 | H171: 2 | I171: 3 | J171: 3 | K171: 3 | L171: 3 | M171: 4 | N171: 5 | O171: 5 | P171: 31 | Q171: 3 | R171: 3 | S171: 4 | T171: 4 | U171: 5 | V171: 3 | W171: 22 | X171: 4 | Y171: 2 | Z171: 3 | AA171: 9 | AB171: 5
D172: 男 | G172: 1 | H172: 3 | I172: 4 | J172: 4 | K172: 4 | L172: 2 | M172: 3 | N172: 3 | O172: 3 | P172: 27 | Q172: 3 | R172: 3 | S172: 3 | T172: 2 | U172: 3 | V172: 3 | W172: 17 | X172: 4 | Y172: 3 | Z172: 3 | AA172: 10 | AB172: 4
D173: 男 | G173: 5 | H173: 5 | I173: 2 | J173: 2 | K173: 2 | L173: 3 | M173: 4 | N173: 3 | O173: 2 | P173: 28 | Q173: 5 | R173: 5 | S173: 5 | T173: 5 | U173: 5 | V173: 3 | W173: 28 | X173: 1 | Y173: 1 | Z173: 5 | AA173: 7 | AB173: 3
D174: 男 | G174: 3 | H174: 4 | I174: 3 | J174: 4 | K174: 3 | L174: 4 | M174: 3 | N174: 3 | O174: 3 | P174: 30 | Q174: 3 | R174: 3 | S174: 3 | T174: 4 | U174: 4 | V174: 3 | W174: 20 | X174: 4 | Y174: 4 | Z174: 4 | AA174: 12 | AB174: 4
D175: 男 | G175: 3 | H175: 3 | I175: 3 | J175: 4 | K175: 4 | L175: 3 | M175: 3 | N175: 3 | O175: 5 | P175: 31 | Q175: 5 | R175: 4 | S175: 5 | T175: 5 | U175: 5 | V175: 3 | W175: 27 | X175: 5 | Y175: 1 | Z175: 5 | AA175: 11 | AB175: 5
D176: 男 | G176: 4 | H176: 4 | I176: 4 | J176: 4 | K176: 3 | L176: 4 | M176: 3 | N176: 5 | O176: 5 | P176: 36 | Q176: 4 | R176: 3 | S176: 3 | T176: 4 | U176: 4 | V176: 4 | W176: 22 | X176: 3 | Y176: 4 | Z176: 5 | AA176: 12 | AB176: 5
D177: 女 | G177: 4 | H177: 3 | I177: 4 | J177: 2 | K177: 1 | L177: 4 | M177: 2 | N177: 3 | O177: 2 | P177: 25 | Q177: 3 | R177: 2 | S177: 3 | T177: 4 | U177: 4 | V177: 1 | W177: 17 | X177: 4 | Y177: 3 | Z177: 3 | AA177: 10 | AB177: 3
D178: 女 | F178: 高ストレス | G178: 4 | H178: 5 | I178: 4 | J178: 1 | K178: 1 | L178: 3 | M178: 2 | N178: 1 | O178: 1 | P178: 22 | Q178: 1 | R178: 2 | S178: 2 | T178: 2 | U178: 2 | V178: 1 | W178: 10 | X178: 1 | Y178: 1 | Z178: 4 | AA178: 6 | AB178: 2
D179: 女 | G179: 3 | H179: 3 | I179: 4 | J179: 3 | K179: 1 | L179: 3 | M179: 3 | N179: 3 | O179: 3 | P179: 26 | Q179: 4 | R179: 4 | S179: 3 | T179: 3 | U179: 3 | V179: 3 | W179: 20 | X179: 3 | Y179: 4 | Z179: 5 | AA179: 12 | AB179: 4
D180: 男 | G180: 3 | H180: 4 | I180: 4 | J180: 3 | K180: 2 | L180: 4 | M180: 4 | N180: 5 | O180: 5 | P180: 34 | Q180: 3 | R180: 2 | S180: 3 | T180: 3 | U180: 4 | V180: 2 | W180: 17 | X180: 2 | Y180: 2 | Z180: 5 | AA180: 9 | AB180: 5
D181: 女 | G181: 3 | H181: 3 | I181: 4 | J181: 3 | K181: 1 | L181: 3 | M181: 3 | N181: 3 | O181: 3 | P181: 26 | Q181: 3 | R181: 4 | S181: 4 | T181: 3 | U181: 4 | V181: 3 | W181: 21 | X181: 3 | Y181: 3 | Z181: 1 | AA181: 7 | AB181: 3
D182: 女 | G182: 4 | H182: 3 | I182: 3 | J182: 3 | K182: 1 | L182: 3 | M182: 3 | N182: 3 | O182: 3 | P182: 26 | Q182: 2 | R182: 3 | S182: 4 | T182: 4 | U182: 4 | V182: 4 | W182: 21 | X182: 3 | Y182: 3 | Z182: 5 | AA182: 11 | AB182: 3
D183: 女 | G183: 3 | H183: 3 | I183: 3 | J183: 4 | K183: 3 | L183: 4 | M183: 3 | N183: 3 | O183: 3 | P183: 29 | Q183: 4 | R183: 3 | S183: 4 | T183: 4 | U183: 4 | V183: 4 | W183: 23 | X183: 4 | Y183: 3 | Z183: 5 | AA183: 12 | AB183: 3
D184: 女 | G184: 3 | H184: 3 | I184: 4 | J184: 3 | K184: 2 | L184: 3 | M184: 3 | N184: 2 | O184: 1 | P184: 24 | Q184: 2 | R184: 4 | S184: 4 | T184: 3 | U184: 4 | V184: 5 | W184: 22 | X184: 3 | Y184: 2 | Z184: 1 | AA184: 6 | AB184: 2
D185: 男 | G185: 4 | H185: 3 | I185: 3 | J185: 3 | K185: 3 | L185: 4 | M185: 3 | N185: 2 | O185: 3 | P185: 28 | Q185: 4 | R185: 3 | S185: 3 | T185: 3 | U185: 3 | V185: 3 | W185: 19 | X185: 2 | Y185: 2 | Z185: 3 | AA185: 7 | AB185: 3
D186: 男 | G186: 3 | H186: 3 | I186: 1 | J186: 2 | K186: 3 | L186: 3 | M186: 3 | N186: 5 | O186: 1 | P186: 24 | Q186: 2 | R186: 2 | S186: 3 | T186: 1 | U186: 2 | V186: 3 | W186: 13 | X186: 2 | Y186: 1 | Z186: 3 | AA186: 6 | AB186: 2
D187: 男 | G187: 5 | H187: 3 | I187: 3 | J187: 5 | K187: 4 | L187: 5 | M187: 4 | N187: 5 | O187: 5 | P187: 39 | Q187: 5 | R187: 5 | S187: 2 | T187: 5 | U187: 3 | V187: 4 | W187: 24 | X187: 3 | Y187: 3 | Z187: 5 | AA187: 11 | AB187: 5
D188: 男 | G188: 3 | H188: 3 | I188: 3 | J188: 3 | K188: 3 | L188: 3 | M188: 2 | N188: 3 | O188: 3 | P188: 26 | Q188: 4 | R188: 2 | S188: 2 | T188: 2 | U188: 3 | V188: 3 | W188: 16 | X188: 3 | Y188: 3 | Z188: 2 | AA188: 8 | AB188: 3
D189: 男 | G189: 4 | H189: 2 | I189: 4 | J189: 3 | K189: 2 | L189: 1 | M189: 3 | N189: 5 | O189: 2 | P189: 26 | Q189: 3 | R189: 2 | S189: 3 | T189: 4 | U189: 3 | V189: 4 | W189: 19 | X189: 3 | Y189: 3 | Z189: 4 | AA189: 10 | AB189: 1
D190: 男 | G190: 4 | H190: 4 | I190: 3 | J190: 3 | K190: 3 | L190: 3 | M190: 3 | N190: 3 | O190: 2 | P190: 28 | Q190: 3 | R190: 4 | S190: 4 | T190: 3 | U190: 4 | V190: 4 | W190: 22 | X190: 3 | Y190: 3 | Z190: 3 | AA190: 9 | AB190: 5
D191: 男 | G191: 4 | H191: 3 | I191: 2 | J191: 2 | K191: 3 | L191: 3 | M191: 3 | N191: 2 | O191: 2 | P191: 24 | Q191: 4 | R191: 3 | S191: 2 | T191: 3 | U191: 2 | V191: 1 | W191: 15 | X191: 1 | Y191: 1 | Z191: 2 | AA191: 4 | AB191: 3
D192: 男 | G192: 3 | H192: 3 | I192: 3 | J192: 3 | K192: 3 | L192: 4 | M192: 3 | N192: 5 | O192: 5 | P192: 32 | Q192: 3 | R192: 5 | S192: 3 | T192: 4 | U192: 5 | V192: 4 | W192: 24 | X192: 5 | Y192: 4 | Z192: 4 | AA192: 13 | AB192: 3
D193: 女 | G193: 3 | H193: 2 | I193: 3 | J193: 3 | K193: 2 | L193: 4 | M193: 3 | N193: 3 | O193: 3 | P193: 26 | Q193: 3 | R193: 3 | S193: 4 | T193: 3 | U193: 5 | V193: 4 | W193: 22 | X193: 3 | Y193: 2 | Z193: 2 | AA193: 7 | AB193: 3
D194: 男 | G194: 3 | H194: 3 | I194: 2 | J194: 2 | K194: 2 | L194: 4 | M194: 2 | N194: 3 | O194: 3 | P194: 24 | Q194: 3 | R194: 3 | S194: 3 | T194: 3 | U194: 3 | V194: 2 | W194: 17 | X194: 4 | Y194: 3 | Z194: 3 | AA194: 10 | AB194: 3
D195: 男 | F195: 高ストレス | G195: 1 | H195: 1 | I195: 1 | J195: 2 | K195: 1 | L195: 1 | M195: 2 | N195: 2 | O195: 1 | P195: 12 | Q195: 1 | R195: 1 | S195: 2 | T195: 1 | U195: 2 | V195: 1 | W195: 8 | X195: 2 | Y195: 2 | Z195: 2 | AA195: 6 | AB195: 2
D196: 女 | G196: 3 | H196: 2 | I196: 1 | J196: 3 | K196: 5 | L196: 4 | M196: 4 | N196: 3 | O196: 3 | P196: 28 | Q196: 2 | R196: 4 | S196: 3 | T196: 3 | U196: 5 | V196: 4 | W196: 21 | X196: 3 | Y196: 2 | Z196: 1 | AA196: 6 | AB196: 3
D197: 男 | G197: 3 | H197: 3 | I197: 2 | J197: 3 | K197: 3 | L197: 3 | M197: 3 | N197: 3 | O197: 3 | P197: 26 | Q197: 3 | R197: 3 | S197: 3 | T197: 3 | U197: 3 | V197: 3 | W197: 18 | X197: 3 | Y197: 2 | Z197: 3 | AA197: 8 | AB197: 3
D198: 男 | G198: 3 | H198: 3 | I198: 2 | J198: 3 | K198: 2 | L198: 3 | M198: 3 | N198: 3 | O198: 2 | P198: 24 | Q198: 3 | R198: 3 | S198: 3 | T198: 3 | U198: 3 | V198: 2 | W198: 17 | X198: 2 | Y198: 2 | Z198: 1 | AA198: 5 | AB198: 2
D199: 男 | F199: 高ストレス | G199: 1 | H199: 1 | I199: 2 | J199: 1 | K199: 3 | L199: 1 | M199: 3 | N199: 2 | O199: 1 | P199: 15 | Q199: 1 | R199: 1 | S199: 2 | T199: 1 | U199: 1 | V199: 1 | W199: 7 | X199: 2 | Y199: 3 | Z199: 1 | AA199: 6 | AB199: 1
D200: 男 | G200: 4 | H200: 3 | I200: 3 | J200: 3 | K200: 1 | L200: 3 | M200: 2 | N200: 3 | O200: 3 | P200: 25 | Q200: 3 | R200: 3 | S200: 2 | T200: 5 | U200: 2 | V200: 3 | W200: 18 | X200: 2 | Y200: 2 | Z200: 3 | AA200: 7 | AB200: 3
... 669 more rows

Sheet 集団レポート元 (hidden)
E1: 船員版 職場環境改善チェックシート
CO2: 外航船員平均
AC3: 作成日：2020年03月12日 | CO3: 内航船員平均
E4: 実施期間 | I4: 2020年01月17日 ～ 2020年02月29日
E5: 事業場名
E6: 実施者
E7: 集団名 | I7: 01_外航船員
E8: 人数 | I8: 41 | M8: 男性 | Q8: 36 | U8: 女性 | Y8: 5 | AC8: =IF([1]参照!B13 - ([1]参照!B14 + [1]参照!B15) = 0,"","＊性別未回答 "&[1]参照!B13 - ([1]参照!B14 + [1]参照!B15)&"名") -> 
E9: =IF([1]参照!$D$13,"※ 集団の人数が10人未満ですので、個人が特定されることがないよう事業者に渡す際は注意してください。","") -> 
AY25: 高ストレス者割合
AY26: 13.1% | BE26: 外航船員全体 | BI26: 12.8% | BO26: 内航船員全体 | BS26: 11.5% | BY26: 船舶全員 | CC26: 12.1%
AY33: 仕事の負担
BH34: 集団 平均 | BK34: 外航船員平均 | BN34: 船舶全員平均
AY36: 仕事の量的負担 | BH36: 1.9 | BK36: 2.1 | BN36: 2.1
AY37: 仕事の質的負担 | BH37: 2.0 | BK37: 2.1 | BN37: 2.2
AY38: 身体的負担度 | BH38: 2.0 | BK38: 2.4 | BN38: 2.5
AY39: 職場での対人関係 | BH39: 2.5 | BK39: 2.8 | BN39: 2.9
AY40: 職場環境 | BH40: 2.2 | BK40: 2.6 | BN40: 2.8
AY41: 情緒的負担 | BH41: 2.3 | BK41: 2.4 | BN41: 2.7
AY42: 役割葛藤 | BH42: 2.1 | BK42: 2.4 | BN42: 2.9
AY43: ワーク・セルフ・バランス （ネガティブ） | BH43: 2.6 | BK43: 2.6 | BN43: 2.8
E50: 作業資源 | AY50: 心身の健康
N51: 集団 平均 | Q51: =$BK$34 -> 外航船員平均 | T51: 船舶全員平均 | BH51: 集団 平均 | BK51: =$BK$34 -> 外航船員平均 | BN51: 船舶全員平均
E53: 仕事のコントロール | N53: 2.4 | Q53: 2.6 | T53: 2.5 | AY53: 活気 | BH53: 2.0 | BK53: 2.1 | BN53: 2.3
E54: 仕事の適性 | N54: 2.5 | Q54: 2.8 | T54: 3.0 | AY54: イライラ感 | BH54: 2.6 | BK54: 2.7 | BN54: 2.7
E55: 技能の活用 | N55: 2.7 | Q55: 2.8 | T55: 3.0 | AY55: 疲労感 | BH55: 2.3 | BK55: 2.6 | BN55: 2.7
E56: 仕事の意義 | N56: 2.4 | Q56: 2.7 | T56: 2.9 | AY56: 不安感 | BH56: 2.6 | BK56: 2.8 | BN56: 2.9
E57: 役割明確さ | N57: 3.1 | Q57: 3.3 | T57: 3.4 | AY57: 抑うつ感 | BH57: 2.9 | BK57: 3.1 | BN57: 3.3
E58: 成長の機会 | N58: 2.5 | Q58: 2.6 | T58: 2.6 | AY58: 心理的ストレス反応合計 | BH58: 2.5 | BK58: 2.7 | BN58: 2.9
AY59: 身体愁訴 | BH59: 3.0 | BK59: 3.1 | BN59: 3.2
E60: 部署資源
N61: 集団 平均 | Q61: =$BK$34 -> 外航船員平均 | T61: 船舶全員平均 | AY61: 職場のハラスメント
BH62: 集団 平均 | BK62: =$BK$34 -> 外航船員平均 | BN62: 船舶全員平均
E63: 上司のサポート | N63: 2.3 | Q63: 2.5 | T63: 2.4
E64: 同僚のサポート | N64: 2.5 | Q64: 2.5 | T64: 2.7 | AY64: 職場のハラスメント | BH64: 3.4 | BK64: 3.6 | BN64: 3.7
E65: 家族友人のサポート | N65: 3.0 | Q65: 3.1 | T65: 3.3
E66: 経済・地位報酬 | N66: 2.4 | Q66: 2.4 | T66: 2.3
E67: 尊重報酬 | N67: 2.6 | Q67: 2.7 | T67: 2.6 | AY67: 満足度
E68: 安定報酬 | N68: 3.0 | Q68: 3.1 | T68: 2.9 | BH68: 集団 平均 | BK68: =$BK$34 -> 外航船員平均 | BN68: 船舶全員平均
E69: 上司のリーダー シップ | N69: 2.4 | Q69: 2.6 | T69: 2.3
E70: 上司の公正な態度 | N70: 2.8 | Q70: 2.9 | T70: 2.7 | AY70: 仕事満足度 | BH70: 2.2 | BK70: 2.6 | BN70: 2.6
E71: ほめてもらえる職場 | N71: 2.3 | Q71: 2.6 | T71: 2.6 | AY71: 家庭満足度 | BH71: 2.9 | BK71: 3.0 | BN71: 3.0
E72: 失敗を認める職場 | N72: 2.7 | Q72: 2.8 | T72: 2.5
E74: 事業場資源 | AY74: 外航(内航)船での業務・生活
N75: 集団 平均 | Q75: =$BK$34 -> 外航船員平均 | T75: 船舶全員平均 | BH75: 集団 平均 | BK75: =$BK$34 -> 外航船員平均 | BN75: 船舶全員平均
E77: 経営層との信頼関係 | N77: 2.4 | Q77: 2.6 | T77: 2.6 | AY77: （項目確認1） | BH77: 2.4 | BK77: 2.6 | BN77: 2.6
E78: 変化への対応 | N78: 2.4 | Q78: 2.5 | T78: 2.4 | AY78: （項目確認2） | BH78: 2.4 | BK78: 2.5 | BN78: 2.4
E79: 個人の尊重 | N79: 2.0 | Q79: 2.3 | T79: 2.1 | AY79: （項目確認3） | BH79: 2.0 | BK79: 2.3 | BN79: 2.1
E80: 公正な人事評価 | N80: 2.4 | Q80: 2.4 | T80: 2.0 | AY80: （項目確認4） | BH80: 2.4 | BK80: 2.4 | BN80: 2.0
E81: 多様な労働者への対応 | N81: 2.4 | Q81: 2.7 | T81: 2.8
E82: キャリア形成 | N82: 2.2 | Q82: 2.4 | T82: 2.2
E83: ワーク・セルフ・バランス （ポジティブ） | N83: 1.8 | Q83: 2.0 | T83: 2.0
E85: いきいきアウトカム
N86: 集団 平均 | Q86: =$BK$34 -> 外航船員平均 | T86: 船舶全員平均
E88: ワーク・エンゲイジメント | N88: 2.0 | Q88: 2.3 | T88: 2.5
E89: 職場の一体感 | N89: 2.4 | Q89: 2.5 | T89: 2.7

Sheet 素点換算 (hidden)
A1: 通し番号 | B1: 部署 | C1: 氏名 | D1: 職員番号 | E1: 1.外航船員/内航船員 | F1: 2.職名 | G1: 2.職名/その他 | H1: 性別 | I1: 4.年代 | J1: 5.船員になってからの年数 | K1: 6.乗船中/陸上勤務 | L1: 6.直近の乗船(何ヶ月前) | M1: 7.乗組員数 | N1: 8.船種 | O1: 8.船種/その他 | P1: 回答不備 | Q1: 高ストレス判定 | R1: 心理的な仕事の負担（量） | S1: 心理的な仕事の負担（質） | T1: 自覚的な身体的負担度 | U1: 職場の対人関係上のストレス | V1: 職場環境によるストレス | W1: 仕事の裁量度 | X1: 技能の活用度 | Y1: 自覚的な仕事の適性度 | Z1: 働きがい | AA1: 仕事のストレス要因( 9尺度)合計 | AB1: 活気 | AC1: イライラ感 | AD1: 疲労感 | AE1: 不安感 | AF1: 抑うつ感 | AG1: 身体愁訴 | AH1: 心身のストレス反応( 6尺度)合計 | AI1: 上司からの支援度 | AJ1: 同僚からの支援度 | AK1: 家族や友人からの支援度 | AL1: 周囲のサポート(3尺度)合計 | AM1: 仕事や生活の満足度
A2: =IF(A24="","",A24) -> 11 | B2: 総務 | C2: さ | D2: 11 | E2: 内航船員 | F2: 一等航海士 | H2: =IF(H32=FALSE,"",IF(H24="","",VLOOKUP(A11,$A$12:$B$13,2,0))) -> 男性 | I2: =IF(I24="","",I24) -> 50代 | J2: 21～30年 | K2: 乗船中 | M2: 6～10人 | N2: 油タンカー | P2: =IF(D27=TRUE,E27,"") ->  | Q2: =VLOOKUP($A$11,$A$12:$AB$13,AB14,0) -> 高ストレス | R2: =VLOOKUP($A$11,$A$12:$X$13,C14,0) -> 4 | S2: 4 | T2: 3 | U2: 3 | V2: 3 | W2: 2 | X2: 3 | Y2: 2 | Z2: 2 | AA2: 26 | AB2: 4 | AC2: 2 | AD2: 2 | AE2: 2 | AF2: 1 | AG2: 1 | AH2: 12 | AI2: 2 | AJ2: 2 | AK2: 1 | AL2: 5 | AM2: 2
A8: データの行数判定 | C8: =LOOKUP(1,0/(生データ!A1:A584<>""),ROW(1:1000))-12 -> 0
A11: =IF(H32=TRUE,H24,2) -> 1 | C11: 心理的な仕事の負担（量） | D11: 心理的な仕事の負担（質） | E11: 自覚的な身体的負担度 | F11: 職場の対人関係でのｽﾄﾚｽ | G11: 職場環境によるストレス | H11: 仕事のコントロール度 | I11: 技能の活用度 | J11: 仕事の適性度 | K11: 働きがい | L11: 原因 | M11: 活気 | N11: イライラ感 | O11: 疲労感 | P11: 不安感 | Q11: 抑うつ感 | R11: 身体愁訴 | S11: 心身の反応 | T11: 上司からのサポート | U11: 同僚からのサポート | V11: 家族・友人からのサポート | W11: 反応への影響 | X11: 仕事や生活の満足度 | Z11: 高ストレス 心身の反応12以下 | AA11: 高ストレス 26以下かつ17以下 | AB11: 高ストレス 判定
A12: 1 | B12: 男性 | C12: =IF(B$39="","",VLOOKUP(B$39,A$51:B$60,2,0)) -> 4 | D12: =IF(C$39="","",VLOOKUP(C$39,C$51:D$60,2,0)) -> 4 | E12: =IF(D$39="","",VLOOKUP(D$39,E$51:F$60,2,0)) -> 3 | F12: =IF(E$39="","",VLOOKUP(E$39,G$51:H$60,2,0)) -> 3 | G12: =IF(F$39="","",VLOOKUP(F$39,I$51:J$60,2,0)) -> 3 | H12: =IF(G$39="","",VLOOKUP(G$39,K$51:L$60,2,0)) -> 2 | I12: =IF(H$39="","",VLOOKUP(H$39,M$51:N$60,2,0)) -> 3 | J12: =IF(I$39="","",VLOOKUP(I$39,O$51:P$60,2,0)) -> 2 | K12: =IF(J$39="","",VLOOKUP(J$39,Q$51:R$60,2,0)) -> 2 | L12: =IF(V37=TRUE,SUM(C12:K12),"") -> 26 | M12: =IF(K$39="","",VLOOKUP(K$39,S$51:T$60,2,0)) -> 4 | N12: =IF(L$39="","",VLOOKUP(L$39,U$51:V$60,2,0)) -> 2 | O12: =IF(M$39="","",VLOOKUP(M$39,W$51:X$60,2,0)) -> 2 | P12: =IF(N$39="","",VLOOKUP(N$39,Y$51:Z$60,2,0)) -> 2 | Q12: =IF(O$39="","",VLOOKUP(O$39,AA$51:AB$69,2,0)) -> 1 | R12: =IF(P$39="","",VLOOKUP(P$39,AC$51:AD$84,2,0)) -> 1 | S12: =IF(W37=TRUE,SUM(M12:R12),"") -> 12 | T12: =IF(Q$39="","",VLOOKUP(Q$39,AE$51:AF$60,2,0)) -> 2 | U12: =IF(R$39="","",VLOOKUP(R$39,AG$51:AH$60,2,0)) -> 2 | V12: =IF(S$39="","",VLOOKUP(S$39,AI$51:AJ$60,2,0)) -> 1 | W12: =IF(X37=TRUE,SUM(T12:V12),"") -> 5 | X12: =IF(T$39="","",VLOOKUP(T$39,AK$51:AL$57,2,0)) -> 2 | Y12: =SUM(L12,S12,W12) -> 43 | Z12: =IF(S12<=12,"A","") -> A | AA12: =IFERROR(IF(AND((L12+W12)<=26,S12<=17),"A",""),"") ->  | AB12: =IF(OR(Z12<>"",AA12<>"")=TRUE,"高ストレス","") -> 高ストレス
A13: 2 | B13: 女性 | C13: =IF(B$39="","",VLOOKUP(B$39,A$91:B$100,2,0)) -> 4 | D13: =IF(C$39="","",VLOOKUP(C$39,C$91:D$100,2,0)) -> 4 | E13: =IF(D$39="","",VLOOKUP(D$39,E$91:F$100,2,0)) -> 3 | F13: =IF(E$39="","",VLOOKUP(E$39,G$91:H$100,2,0)) -> 3 | G13: =IF(F$39="","",VLOOKUP(F$39,I$91:J$100,2,0)) -> 3 | H13: =IF(G$39="","",VLOOKUP(G$39,K$91:L$100,2,0)) -> 3 | I13: =IF(H$39="","",VLOOKUP(H$39,M$91:N$100,2,0)) -> 3 | J13: =IF(I$39="","",VLOOKUP(I$39,O$91:P$100,2,0)) -> 2 | K13: =IF(J$39="","",VLOOKUP(J$39,Q$91:R$100,2,0)) -> 2 | L13: =IF(V37=TRUE,SUM(C13:K13),"") -> 27 | M13: =IF(K$39="","",VLOOKUP(K$39,S$91:T$100,2,0)) -> 4 | N13: =IF(L$39="","",VLOOKUP(L$39,U$91:V$100,2,0)) -> 2 | O13: =IF(M$39="","",VLOOKUP(M$39,W$91:X$100,2,0)) -> 2 | P13: =IF(N$39="","",VLOOKUP(N$39,Y$91:Z$100,2,0)) -> 2 | Q13: =IF(O$39="","",VLOOKUP(O$39,AA$91:AB$109,2,0)) -> 1 | R13: =IF(P$39="","",VLOOKUP(P$39,AC$91:AD$124,2,0)) -> 1 | S13: =IF(W37=TRUE,SUM(M13:R13),"") -> 12 | T13: =IF(Q$39="","",VLOOKUP(Q$39,AE$91:AF$100,2,0)) -> 3 | U13: =IF(R$39="","",VLOOKUP(R$39,AG$91:AH$100,2,0)) -> 2 | V13: =IF(S$39="","",VLOOKUP(S$39,AI$91:AJ$100,2,0)) -> 1 | W13: =IF(X37=TRUE,SUM(T13:V13),"") -> 6 | X13: =IF(T$39="","",VLOOKUP(T$39,AK$91:AL$100,2,0)) -> 2 | Y13: =SUM(L13,S13,W13) -> 45 | Z13: =IF(S13<=12,"A","") -> A | AA13: =IFERROR(IF(AND((L13+W13)<=26,S13<=17),"A",""),"") ->  | AB13: =IF(OR(Z13<>"",AA13<>"")=TRUE,"高ストレス","") -> 高ストレス
A14: 1 | B14: 2 | C14: 3 | D14: 4 | E14: 5 | F14: 6 | G14: 7 | H14: 8 | I14: 9 | J14: 10 | K14: 11 | L14: 12 | M14: 13 | N14: 14 | O14: 15 | P14: 16 | Q14: 17 | R14: 18 | S14: 19 | T14: 20 | U14: 21 | V14: 22 | W14: 23 | X14: 24 | Y14: 25 | Z14: 26 | AA14: 27 | AB14: 28
E20: 1～3 | F20: 1～22 | I20: 1～6 | J20: 1～6 | K20: 1～3 | L20: ～ | M20: 1～7 | N20: 1～13 | P20: 9.乗船中のあなたの仕事について | AG20: 10.乗船中の最近1か月間のあなたの状態について | BJ20: 11.乗船中のあなたの周りの方々について | BS20: 12.乗船中の満足度について | BU20: 13.乗船中のあなた自身のお仕事について | BY20: 14.乗船中のあなたが働いている職場について | CF20: 15.あなたの働いている会社や組織について | CN20: 16.乗船中のあなたの仕事の状況や成果について | CR20: 17.あなたの仕事について（外航船の方） | DB20: 17.あなたの仕事について（内航船の方）
A21: 通し番号 | B21: 部署 | C21: 氏名 | D21: 職員番号 | E21: 1.外航船員/内航船員 | F21: 2.職名 | G21: 2.職名/その他 | H21: 性別 | I21: 4.年代 | J21: 5.船員になってからの年数 | K21: 6.乗船中/陸上勤務 | L21: 6.直近の乗船(何ヶ月前) | M21: 7.乗組員数 | N21: 8.船種 | O21: 8.船種/その他 | P21: 9-1 | Q21: 9-2 | R21: 9-3 | S21: 9-4 | T21: 9-5 | U21: 9-6 | V21: 9-7 | W21: 9-8 | X21: 9-9 | Y21: 9-10 | Z21: 9-11 | AA21: 9-12 | AB21: 9-13 | AC21: 9-14 | AD21: 9-15 | AE21: 9-16 | AF21: 9-17 | AG21: 10-1 | AH21: 10-2 | AI21: 10-3 | AJ21: 10-4 | AK21: 10-5 | AL21: 10-6 | AM21: 10-7 | AN21: 10-8 | AO21: 10-9 | AP21: 10-10 | AQ21: 10-11 | AR21: 10-12 | AS21: 10-13 | AT21: 10-14 | AU21: 10-15 | AV21: 10-16 | AW21: 10-17 | AX21: 10-18 | AY21: 10-19 | AZ21: 10-20 | BA21: 10-21 | BB21: 10-22 | BC21: 10-23 | BD21: 10-24 | BE21: 10-25 | BF21: 10-26 | BG21: 10-27 | BH21: 10-28 | BI21: 10-29 | BJ21: 11-1 | BK21: 11-2 | BL21: 11-3 | BM21: 11-4 | BN21: 11-5 | BO21: 11-6 | BP21: 11-7 | BQ21: 11-8 | BR21: 11-9 | BS21: 12-1 | BT21: 12-2 | BU21: 13-1 | BV21: 13-2 | BW21: 13-3 | BX21: 13-4 | BY21: 14-1 | BZ21: 14-2 | CA21: 14-3 | CB21: 14-4 | CC21: 14-5 | CD21: 14-6 | CE21: 14-7 | CF21: 15-1 | CG21: 15-2 | CH21: 15-3 | CI21: 15-4 | CJ21: 15-5 | CK21: 15-6 | CL21: 15-7 | CM21: 15-8 | CN21: 16-1 | CO21: 16-2 | CP21: 16-3 | CQ21: 16-4 | CR21: 17外-1 | CS21: 17外-2 | CT21: 17外-3 | CU21: 17外-4 | CV21: 17外-5 | CW21: 17外-6 | CX21: 17外-7 | CY21: 17外-8 | CZ21: 17外-9 | DA21: 17外-10 | DB21: 17内-1 | DC21: 17内-2 | DD21: 17内-3 | DE21: 17内-4 | DF21: 17内-5 | DG21: 17内-6 | DH21: 17内-7 | DI21: 17内-8 | DJ21: 17内-9 | DK21: 17内-10
A22: 11 | B22: 総務 | C22: さ | D22: 11 | E22: 2 | F22: 2 | H22: 1 | I22: 5 | J22: 5 | K22: 1 | M22: 2 | N22: 2 | P22: 3 | Q22: 3 | R22: 3 | S22: 3 | T22: 3 | U22: 3 | V22: 3 | W22: 3 | X22: 3 | Y22: 3 | Z22: 3 | AA22: 3 | AB22: 3 | AC22: 3 | AD22: 3 | AE22: 3 | AF22: 3 | AG22: 3 | AH22: 3 | AI22: 3 | AJ22: 3 | AK22: 3 | AL22: 3 | AM22: 3 | AN22: 3 | AO22: 3 | AP22: 3 | AQ22: 3 | AR22: 3 | AS22: 3 | AT22: 3 | AU22: 3 | AV22: 3 | AW22: 3 | AX22: 3 | AY22: 3 | AZ22: 3 | BA22: 3 | BB22: 3 | BC22: 3 | BD22: 3 | BE22: 3 | BF22: 3 | BG22: 3 | BH22: 3 | BI22: 3 | BJ22: 3 | BK22: 3 | BL22: 3 | BM22: 3 | BN22: 3 | BO22: 3 | BP22: 3 | BQ22: 3 | BR22: 3 | BS22: 3 | BT22: 3 | BU22: 3 | BV22: 3 | BW22: 3 | BX22: 3 | BY22: 3 | BZ22: 3 | CA22: 3 | CB22: 3 | CC22: 3 | CD22: 3 | CE22: 3 | CF22: 3 | CG22: 3 | CH22: 3 | CI22: 3 | CJ22: 3 | CK22: 3 | CL22: 3 | CM22: 3 | CN22: 3 | CO22: 3 | CP22: 3 | CQ22: 3 | DB22: 3 | DC22: 3 | DD22: 3 | DE22: 3 | DF22: 3 | DG22: 3 | DH22: 3 | DI22: 3 | DJ22: 3 | DK22: 3
A24: =A42 -> 11 | B24: =B42 -> 総務 | C24: さ | D24: 11 | E24: =IFERROR(VLOOKUP(VALUE(E22),マスタ!$A$1:$B$3,2,FALSE),"") -> 内航船員 | F24: =IFERROR(VLOOKUP(VALUE(F22),マスタ!$A$5:$B$26,2,FALSE),"") -> 一等航海士 | H24: 1 | I24: =IFERROR(VLOOKUP(I22,マスタ!$A$28:$B$33,2,FALSE),"") -> 50代 | J24: =IFERROR(VLOOKUP(J22,マスタ!$A$35:$B$40,2,FALSE),"") -> 21～30年 | K24: =IFERROR(VLOOKUP(K22,マスタ!$A$42:$B$44,2,FALSE),"") -> 乗船中 | M24: =IFERROR(VLOOKUP(M22,マスタ!$A$46:$B$52,2,FALSE),"") -> 6～10人 | N24: =IFERROR(VLOOKUP(N22,マスタ!$A$54:$B$66,2,FALSE),"") -> 油タンカー | O24: =O42 ->  | P24: =IF(P33=TRUE,P22,"") -> 3 | Q24: 3 | R24: 3 | S24: 3 | T24: 3 | U24: 3 | V24: 3 | W24: 3 | X24: 3 | Y24: 3 | Z24: 3 | AA24: 3 | AB24: 3 | AC24: 3 | AD24: 3 | AE24: 3 | AF24: 3 | AG24: 3 | AH24: 3 | AI24: 3 | AJ24: 3 | AK24: 3 | AL24: 3 | AM24: 3 | AN24: 3 | AO24: 3 | AP24: 3 | AQ24: 3 | AR24: 3 | AS24: 3 | AT24: 3 | AU24: 3 | AV24: =IF(AV33=TRUE,AV22,"") -> 3 | AW24: 3 | AX24: 3 | AY24: 3 | AZ24: 3 | BA24: 3 | BB24: 3 | BC24: 3 | BD24: 3 | BE24: 3 | BF24: 3 | BG24: 3 | BH24: 3 | BI24: 3 | BJ24: 3 | BK24: 3 | BL24: 3 | BM24: 3 | BN24: 3 | BO24: 3 | BP24: 3 | BQ24: 3 | BR24: 3 | BS24: 3 | BT24: 3 | BU24: 3 | BV24: 3 | BW24: 2 | BX24: 1 | BY24: 3 | BZ24: 3 | CA24: 3 | CB24: 3 | CC24: 2 | CD24: 3 | CE24: 2 | CF24: 2 | CG24: 3 | CH24: 3 | CI24: 2 | CJ24: 3 | CK24: 2 | CL24: 2 | CM24: 3 | CN24: 4 | CO24: 2 | CP24: 3 | CQ24: 1 | CR24: 1 | CS24: 2 | CT24: 1 | CU24: 2 | CV24: 2 | CW24: 4 | CX24: 2 | CY24: 2 | CZ24: 2 | DA24: 3 | DB24: 2 | DC24: 2 | DD24: 2 | DE24: 3 | DF24: 3 | DG24: 4 | DH24: 2 | DI24: 2 | DJ24: 1 | DK24: 1
A27: 不備ありの判定 | D27: =OR(H28,O33) -> FALSE | E27: 不備あり
H28: =IFERROR(IF(H32=TRUE,FALSE,TRUE),TRUE) -> FALSE | P28: =IFERROR(IF(P33=TRUE,FALSE,TRUE),TRUE) -> FALSE | Q28: =IFERROR(IF(Q33=TRUE,FALSE,TRUE),TRUE) -> FALSE | R28: FALSE | S28: FALSE | T28: FALSE | U28: FALSE | V28: FALSE | W28: FALSE | X28: FALSE | Y28: FALSE | Z28: FALSE | AA28: FALSE | AB28: FALSE | AC28: FALSE | AD28: FALSE | AE28: FALSE | AF28: FALSE | AG28: FALSE | AH28: FALSE | AI28: FALSE | AJ28: FALSE | AK28: FALSE | AL28: FALSE | AM28: FALSE | AN28: FALSE | AO28: FALSE | AP28: FALSE | AQ28: FALSE | AR28: FALSE | AS28: FALSE | AT28: FALSE | AU28: FALSE | AV28: FALSE | AW28: FALSE | AX28: FALSE | AY28: FALSE | AZ28: FALSE | BA28: FALSE | BB28: FALSE | BC28: FALSE | BD28: FALSE | BE28: FALSE | BF28: FALSE | BG28: FALSE | BH28: FALSE | BI28: FALSE | BJ28: FALSE | BK28: FALSE | BL28: FALSE | BM28: FALSE | BN28: FALSE | BO28: FALSE | BP28: FALSE | BQ28: FALSE | BR28: FALSE | BS28: FALSE | BT28: FALSE
H29: 1男性、2女性でない=TRUE | N29: 空欄判定 | O29: 1 | P29: =$O29=P$22 -> FALSE | Q29: FALSE | R29: FALSE | S29: FALSE | T29: FALSE | U29: FALSE | V29: FALSE | W29: FALSE | X29: FALSE | Y29: FALSE | Z29: =$O29=Z$22 -> FALSE | AA29: FALSE | AB29: FALSE | AC29: FALSE | AD29: FALSE | AE29: FALSE | AF29: FALSE | AG29: FALSE | AH29: FALSE | AI29: FALSE | AJ29: =$O29=AJ$22 -> FALSE | AK29: FALSE | AL29: FALSE | AM29: FALSE | AN29: FALSE | AO29: FALSE | AP29: FALSE | AQ29: FALSE | AR29: FALSE | AS29: FALSE | AT29: =$O29=AT$22 -> FALSE | AU29: FALSE | AV29: FALSE | AW29: FALSE | AX29: FALSE | AY29: FALSE | AZ29: FALSE | BA29: FALSE | BB29: FALSE | BC29: FALSE | BD29: =$O29=BD$22 -> FALSE | BE29: FALSE | BF29: FALSE | BG29: FALSE | BH29: FALSE | BI29: FALSE | BJ29: FALSE | BK29: FALSE | BL29: FALSE | BM29: FALSE | BN29: =$O29=BN$22 -> FALSE | BO29: FALSE | BP29: FALSE | BQ29: FALSE | BR29: FALSE | BS29: FALSE | BT29: FALSE
G30: 1 | H30: =G30=H$24 -> TRUE | N30: 9-1～12-2 | O30: 2 | P30: FALSE | Q30: FALSE | R30: FALSE | S30: FALSE | T30: FALSE | U30: FALSE | V30: FALSE | W30: FALSE | X30: FALSE | Y30: FALSE | Z30: FALSE | AA30: FALSE | AB30: FALSE | AC30: FALSE | AD30: FALSE | AE30: FALSE | AF30: FALSE | AG30: FALSE | AH30: FALSE | AI30: FALSE | AJ30: FALSE | AK30: FALSE | AL30: FALSE | AM30: FALSE | AN30: FALSE | AO30: FALSE | AP30: FALSE | AQ30: FALSE | AR30: FALSE | AS30: FALSE | AT30: FALSE | AU30: FALSE | AV30: FALSE | AW30: FALSE | AX30: FALSE | AY30: FALSE | AZ30: FALSE | BA30: FALSE | BB30: FALSE | BC30: FALSE | BD30: FALSE | BE30: FALSE | BF30: FALSE | BG30: FALSE | BH30: FALSE | BI30: FALSE | BJ30: FALSE | BK30: FALSE | BL30: FALSE | BM30: FALSE | BN30: FALSE | BO30: FALSE | BP30: FALSE | BQ30: FALSE | BR30: FALSE | BS30: FALSE | BT30: FALSE
G31: 2 | H31: =G31=H$24 -> FALSE | O31: 3 | P31: TRUE | Q31: TRUE | R31: TRUE | S31: TRUE | T31: TRUE | U31: TRUE | V31: TRUE | W31: TRUE | X31: TRUE | Y31: TRUE | Z31: TRUE | AA31: TRUE | AB31: TRUE | AC31: TRUE | AD31: TRUE | AE31: TRUE | AF31: TRUE | AG31: TRUE | AH31: TRUE | AI31: TRUE | AJ31: TRUE | AK31: TRUE | AL31: TRUE | AM31: TRUE | AN31: TRUE | AO31: TRUE | AP31: TRUE | AQ31: TRUE | AR31: TRUE | AS31: TRUE | AT31: TRUE | AU31: TRUE | AV31: TRUE | AW31: TRUE | AX31: TRUE | AY31: TRUE | AZ31: TRUE | BA31: TRUE | BB31: TRUE | BC31: TRUE | BD31: TRUE | BE31: TRUE | BF31: TRUE | BG31: TRUE | BH31: TRUE | BI31: TRUE | BJ31: TRUE | BK31: TRUE | BL31: TRUE | BM31: TRUE | BN31: TRUE | BO31: TRUE | BP31: TRUE | BQ31: TRUE | BR31: TRUE | BS31: TRUE | BT31: TRUE
H32: =OR(H30:H31) -> TRUE | O32: 4 | P32: FALSE | Q32: FALSE | R32: FALSE | S32: FALSE | T32: FALSE | U32: FALSE | V32: FALSE | W32: FALSE | X32: FALSE | Y32: FALSE | Z32: FALSE | AA32: FALSE | AB32: FALSE | AC32: FALSE | AD32: FALSE | AE32: FALSE | AF32: FALSE | AG32: FALSE | AH32: FALSE | AI32: FALSE | AJ32: FALSE | AK32: FALSE | AL32: FALSE | AM32: FALSE | AN32: FALSE | AO32: FALSE | AP32: FALSE | AQ32: FALSE | AR32: FALSE | AS32: FALSE | AT32: FALSE | AU32: FALSE | AV32: FALSE | AW32: FALSE | AX32: FALSE | AY32: FALSE | AZ32: FALSE | BA32: FALSE | BB32: FALSE | BC32: FALSE | BD32: FALSE | BE32: FALSE | BF32: FALSE | BG32: FALSE | BH32: FALSE | BI32: FALSE | BJ32: FALSE | BK32: FALSE | BL32: FALSE | BM32: FALSE | BN32: FALSE | BO32: FALSE | BP32: FALSE | BQ32: FALSE | BR32: FALSE | BS32: FALSE | BT32: FALSE
O33: =OR(P28:BT28) -> FALSE | P33: =OR(P29:P32) -> TRUE | Q33: =OR(Q29:Q32) -> TRUE | R33: TRUE | S33: TRUE | T33: TRUE | U33: TRUE | V33: TRUE | W33: TRUE | X33: TRUE | Y33: TRUE | Z33: TRUE | AA33: TRUE | AB33: TRUE | AC33: TRUE | AD33: TRUE | AE33: TRUE | AF33: TRUE | AG33: TRUE | AH33: TRUE | AI33: TRUE | AJ33: TRUE | AK33: TRUE | AL33: TRUE | AM33: TRUE | AN33: TRUE | AO33: TRUE | AP33: TRUE | AQ33: TRUE | AR33: TRUE | AS33: TRUE | AT33: TRUE | AU33: TRUE | AV33: TRUE | AW33: TRUE | AX33: TRUE | AY33: TRUE | AZ33: TRUE | BA33: TRUE | BB33: TRUE | BC33: TRUE | BD33: TRUE | BE33: TRUE | BF33: TRUE | BG33: TRUE | BH33: TRUE | BI33: TRUE | BJ33: TRUE | BK33: TRUE | BL33: TRUE | BM33: TRUE | BN33: TRUE | BO33: TRUE | BP33: TRUE | BQ33: TRUE | BR33: TRUE | BS33: TRUE | BT33: TRUE
B36: 心理的な仕事の負担（量） | C36: 心理的な仕事の負担（質） | D36: 自覚的な身体的負担度 | E36: 職場の対人関係でのｽﾄﾚｽ | F36: 職場環境によるストレス | G36: 仕事のコントロール度 | H36: 技能の活用度 | I36: 仕事の適性度 | J36: 働きがい | K36: 活気 | L36: イライラ感 | M36: 疲労感 | N36: 不安感 | O36: 抑うつ感 | P36: 身体愁訴 | Q36: 上司からのサポート | R36: 同僚からのサポート | S36: 家族・友人からのサポート | T36: 仕事や生活の満足度 | U36: 検算 | V36: 原因 | W36: 心身の反応 | X36: 反応への影響
A37: 空欄判定 | B37: =AND(P33:R33) -> TRUE | C37: =AND(S33:U33) -> TRUE | D37: =V33 -> TRUE | E37: =AND(AA33:AC33) -> TRUE | F37: =AD33 -> TRUE | G37: =AND(W33:Y33) -> TRUE | H37: =Z33 -> TRUE | I37: =AE33 -> TRUE | J37: =AF33 -> TRUE | K37: =AND(AG33:AI33) -> TRUE | L37: =AND(AJ33:AL33) -> TRUE | M37: =AND(AM33:AO33) -> TRUE | N37: =AND(AP33:AR33) -> TRUE | O37: =AND(AS33:AX33) -> TRUE | P37: =AND(AY33:BI33) -> TRUE | Q37: =AND(BJ33,BM33,BP33) -> TRUE | R37: =AND(BK33,BN33,BQ33) -> TRUE | S37: =AND(BL33,BO33,BR33) -> TRUE | T37: =AND(BS33:BT33) -> TRUE | V37: =AND(B37:J37) -> TRUE | W37: =AND(K37:P37) -> TRUE | X37: =AND(Q37:S37) -> TRUE | Y37: =AND(V37:X37) -> TRUE
A38: 計算1 | B38: =IF(B37=TRUE,SUM(P24:R24),"") -> 9 | C38: =IF(C37=TRUE,SUM(S24:U24),"") -> 9 | D38: =IF(D37=TRUE,V24,"") -> 3 | E38: =IF(E37=TRUE,SUM(AA24:AB24),"") -> 6 | F38: =IF(F37=TRUE,AD24,"") -> 3 | G38: =IF(G37=TRUE,SUM(W24:Y24),"") -> 9 | H38: =IF(H37=TRUE,Z24,"") -> 3 | I38: =IF(I37=TRUE,AE24,"") -> 3 | J38: =IF(J37=TRUE,AF24,"") -> 3 | K38: =IF(K37=TRUE,SUM(AG24:AI24),"") -> 9 | L38: =IF(L37=TRUE,SUM(AJ24:AL24),"") -> 9 | M38: =IF(M37=TRUE,SUM(AM24:AO24),"") -> 9 | N38: =IF(N37=TRUE,SUM(AP24:AR24),"") -> 9 | O38: =IF(O37=TRUE,SUM(AS24:AX24),"") -> 18 | P38: =IF(P37=TRUE,SUM(AY24:BI24),"") -> 33 | Q38: =IF(Q37=TRUE,SUM(BJ24,BM24,BP24),"") -> 9 | R38: =IF(R37=TRUE,SUM(BK24,BN24,BQ24),"") -> 9 | S38: =IF(S37=TRUE,SUM(BL24,BO24,BR24),"") -> 9 | T38: =IF(T37=TRUE,SUM(BS24:BT24),"") -> 6 | U38: =SUM(B38:T38)+AC24 -> 171 | V38: =IF(V37=TRUE,SUM(B38:J38),"") -> 48 | W38: =IF(W37=TRUE,SUM(K38:P38),"") -> 87 | X38: =IF(X37=TRUE,SUM(Q38:S38),"") -> 27
A39: 計算2 | B39: =IFERROR(15-B38,"") -> 6 | C39: =IFERROR(15-C38,"") -> 6 | D39: =IFERROR(5-D38,"") -> 2 | E39: =IFERROR(10-E38+AC24,"") -> 7 | F39: =IFERROR(5-F38,"") -> 2 | G39: =IFERROR(15-G38,"") -> 6 | H39: =IFERROR(H38,"") -> 3 | I39: =IFERROR(5-I38,"") -> 2 | J39: =IFERROR(5-J38,"") -> 2 | K39: =K38 -> 9 | L39: =IFERROR(L38,"") -> 9 | M39: =IFERROR(M38,"") -> 9 | N39: =IFERROR(N38,"") -> 9 | O39: =IFERROR(O38,"") -> 18 | P39: =IFERROR(P38,"") -> 33 | Q39: =IFERROR(15-Q38,"") -> 6 | R39: =IFERROR(15-R38,"") -> 6 | S39: =IFERROR(15-S38,"") -> 6 | T39: =IFERROR(10-T38,"") -> 4 | U39: =SUM(B39:T39) -> 145 | V39: =V38 -> 48 | W39: =W38 -> 87 | X39: =X38 -> 27
A41: 通し番号 | B41: 部署 | C41: 氏名 | D41: 職員番号 | E41: 1.外航船員/内航船員 | F41: 2.職名 | G41: 2.職名/その他 | H41: 性別 | I41: 4.年代 | J41: 5.船員になってからの年数 | K41: 6.乗船中/陸上勤務 | L41: 6.直近の乗船(何ヶ月前) | M41: 7.乗組員数 | N41: 8.船種 | O41: 8.船種/その他
A42: =IF(A22=""," ",""&A22) -> 11 | B42: =IF(B22="","",B22) -> 総務 | C42: =IF(C22="","",C22) -> さ | D42: =IF(D22="","",D22) -> 11 | E42: =IF(E22="","",IF(OR(E45<1,E45>3),"",E45)) -> 2 | F42: =IF(F22="","",IF(OR(F45<1,F45>22),"",F45)) -> 2 | G42: =IF(G22="","",G22) ->  | H42: =IF(H22="","",IF(OR(H45<1,H45>2),"",H45)) -> 1 | I42: =IF(I22="","",IF(OR(I45<1,I45>6),"",I45)) -> 5 | J42: =IF(J22="","",IF(OR(J45<1,J45>6),"",J45)) -> 5 | K42: =IF(K22="","",IF(OR(K45<1,K45>3),"",K45)) -> 1 | L42: =IF(L22="","",L22) ->  | M42: =IF(M22="","",IF(OR(M45<1,M45>7),"",M45)) -> 2 | N42: =IF(N22="","",IF(OR(N45<1,N45>13),"",N45)) -> 2 | O42: =IF(O22="","",O22) -> 
A44: 数値化
A45: =IFERROR(VALUE(A22),"") -> 11 | B45: =IFERROR(VALUE(B22),"") ->  | D45: 11 | E45: 2 | F45: 2 | G45: 0 | H45: 1 | I45: 5 | J45: 5 | K45: 1 | L45: 0 | M45: 2 | N45: 2 | O45: 0
A47: 男性
A48: 【ストレスの原因と考えられる因子】 | S48: 【ストレスによっておこる心身の反応】 | AE48: 【ストレス反応に影響を与える他の因子】
A49: 心理的な仕事の負担（量） | C49: 心理的な仕事の負担（質） | E49: 自覚的な身体的負担度 | G49: 職場の対人関係でのｽﾄﾚｽ | I49: 職場環境によるストレス | K49: 仕事のコントロール度 | M49: 技能の活用度 | O49: 仕事の適性度 | Q49: 働きがい | S49: 活気 | U49: イライラ感 | W49: 疲労感 | Y49: 不安感 | AA49: 抑うつ感 | AC49: 身体愁訴 | AE49: 上司からのサポート | AG49: 同僚からのサポート | AI49: 家族・友人からのサポート | AK49: 仕事や生活の満足度
A50: 得点 | B50: 評価点 | C50: 得点 | D50: 評価点 | E50: 得点 | F50: 評価点 | G50: 得点 | H50: 評価点 | I50: 得点 | J50: 評価点 | K50: 得点 | L50: 評価点 | M50: 得点 | N50: 評価点 | O50: 得点 | P50: 評価点 | Q50: 得点 | R50: 評価点 | S50: 得点 | T50: 評価点 | U50: 得点 | V50: 評価点 | W50: 得点 | X50: 評価点 | Y50: 得点 | Z50: 評価点 | AA50: 得点 | AB50: 評価点 | AC50: 得点 | AD50: 評価点 | AE50: 得点 | AF50: 評価点 | AG50: 得点 | AH50: 評価点 | AI50: 得点 | AJ50: 評価点 | AK50: 得点 | AL50: 評価点
A51: 3 | B51: 5 | C51: 3 | D51: 5 | E51: 1 | F51: 4 | G51: 3 | H51: 5 | I51: 1 | J51: 4 | K51: 3 | L51: 1 | M51: 1 | N51: 1 | O51: 1 | P51: 1 | Q51: 1 | R51: 1 | S51: 3 | T51: 1 | U51: 3 | V51: 5 | W51: 3 | X51: 5 | Y51: 3 | Z51: 5 | AA51: 6 | AB51: 5 | AC51: 11 | AD51: 5 | AE51: 3 | AF51: 1 | AG51: 3 | AH51: 1 | AI51: 3 | AJ51: 1 | AK51: 2 | AL51: 1
A52: 4 | B52: 5 | C52: 4 | D52: 5 | E52: 2 | F52: 3 | G52: 4 | H52: 4 | I52: 2 | J52: 3 | K52: 4 | L52: 1 | M52: 2 | N52: 2 | O52: 2 | P52: 2 | Q52: 2 | R52: 2 | S52: 4 | T52: 2 | U52: 4 | V52: 4 | W52: 4 | X52: 4 | Y52: 4 | Z52: 4 | AA52: 7 | AB52: 4 | AC52: 12 | AD52: 4 | AE52: 4 | AF52: 1 | AG52: 4 | AH52: 1 | AI52: 4 | AJ52: 1 | AK52: 3 | AL52: 1
A53: 5 | B53: 5 | C53: 5 | D53: 5 | E53: 3 | F53: 2 | G53: 5 | H53: 4 | I53: 3 | J53: 2 | K53: 5 | L53: 2 | M53: 3 | N53: 3 | O53: 3 | P53: 3 | Q53: 3 | R53: 3 | S53: 5 | T53: 2 | U53: 5 | V53: 4 | W53: 5 | X53: 3 | Y53: 5 | Z53: 3 | AA53: 8 | AB53: 4 | AC53: 13 | AD53: 4 | AE53: 5 | AF53: 2 | AG53: 5 | AH53: 1 | AI53: 5 | AJ53: 1 | AK53: 4 | AL53: 2
A54: 6 | B54: 4 | C54: 6 | D54: 4 | E54: 4 | F54: 1 | G54: 6 | H54: 3 | I54: 4 | J54: 1 | K54: 6 | L54: 2 | M54: 4 | N54: 4 | O54: 4 | P54: 5 | Q54: 4 | R54: 5 | S54: 6 | T54: 3 | U54: 6 | V54: 3 | W54: 6 | X54: 3 | Y54: 6 | Z54: 3 | AA54: 9 | AB54: 3 | AC54: 14 | AD54: 4 | AE54: 6 | AF54: 2 | AG54: 6 | AH54: 2 | AI54: 6 | AJ54: 1 | AK54: 5 | AL54: 3
A55: 7 | B55: 4 | C55: 7 | D55: 4 | G55: 7 | H55: 3 | K55: 7 | L55: 3 | S55: 7 | T55: 3 | U55: 7 | V55: 3 | W55: 7 | X55: 3 | Y55: 7 | Z55: 3 | AA55: 10 | AB55: 3 | AC55: 15 | AD55: 4 | AE55: 7 | AF55: 3 | AG55: 7 | AH55: 2 | AI55: 7 | AJ55: 2 | AK55: 6 | AL55: 3
A56: 8 | B56: 3 | C56: 8 | D56: 3 | G56: 8 | H56: 2 | K56: 8 | L56: 3 | S56: 8 | T56: 4 | U56: 8 | V56: 2 | W56: 8 | X56: 2 | Y56: 8 | Z56: 2 | AA56: 11 | AB56: 3 | AC56: 16 | AD56: 3 | AE56: 8 | AF56: 3 | AG56: 8 | AH56: 3 | AI56: 8 | AJ56: 2 | AK56: 7 | AL56: 4
A57: 9 | B57: 3 | C57: 9 | D57: 3 | G57: 9 | H57: 2 | K57: 9 | L57: 4 | S57: 9 | T57: 4 | U57: 9 | V57: 2 | W57: 9 | X57: 2 | Y57: 9 | Z57: 2 | AA57: 12 | AB57: 3 | AC57: 17 | AD57: 3 | AE57: 9 | AF57: 4 | AG57: 9 | AH57: 3 | AI57: 9 | AJ57: 3 | AK57: 8 | AL57: 5
A58: 10 | B58: 2 | C58: 10 | D58: 2 | G58: 10 | H58: 1 | K58: 10 | L58: 4 | S58: 10 | T58: 5 | U58: 10 | V58: 1 | W58: 10 | X58: 2 | Y58: 10 | Z58: 1 | AA58: 13 | AB58: 2 | AC58: 18 | AD58: 3 | AE58: 10 | AF58: 4 | AG58: 10 | AH58: 4 | AI58: 10 | AJ58: 4
A59: 11 | B59: 2 | C59: 11 | D59: 2 | G59: 11 | H59: 1 | K59: 11 | L59: 5 | S59: 11 | T59: 5 | U59: 11 | V59: 1 | W59: 11 | X59: 1 | Y59: 11 | Z59: 1 | AA59: 14 | AB59: 2 | AC59: 19 | AD59: 3 | AE59: 11 | AF59: 5 | AG59: 11 | AH59: 4 | AI59: 11 | AJ59: 4
A60: 12 | B60: 1 | C60: 12 | D60: 1 | G60: 12 | H60: 1 | K60: 12 | L60: 5 | S60: 12 | T60: 5 | U60: 12 | V60: 1 | W60: 12 | X60: 1 | Y60: 12 | Z60: 1 | AA60: 15 | AB60: 2 | AC60: 20 | AD60: 3 | AE60: 12 | AF60: 5 | AG60: 12 | AH60: 5 | AI60: 12 | AJ60: 5
AA61: 16 | AB61: 2 | AC61: 21 | AD61: 3
AA62: 17 | AB62: 1 | AC62: 22 | AD62: 2
AA63: 18 | AB63: 1 | AC63: 23 | AD63: 2
AA64: 19 | AB64: 1 | AC64: 24 | AD64: 2
AA65: 20 | AB65: 1 | AC65: 25 | AD65: 2
AA66: 21 | AB66: 1 | AC66: 26 | AD66: 2
AA67: 22 | AB67: 1 | AC67: 27 | AD67: 1
AA68: 23 | AB68: 1 | AC68: 28 | AD68: 1
AA69: 24 | AB69: 1 | AC69: 29 | AD69: 1
AC70: 30 | AD70: 1
AC71: 31 | AD71: 1
AC72: 32 | AD72: 1
AC73: 33 | AD73: 1
AC74: 34 | AD74: 1
AC75: 35 | AD75: 1
AC76: 36 | AD76: 1
AC77: 37 | AD77: 1
AC78: 38 | AD78: 1
AC79: 39 | AD79: 1
AC80: 40 | AD80: 1
AC81: 41 | AD81: 1
AC82: 42 | AD82: 1
AC83: 43 | AD83: 1
AC84: 44 | AD84: 1
A87: 女性
A88: 【ストレスの原因と考えられる因子】 | S88: 【ストレスによっておこる心身の反応】 | AE88: 【ストレス反応に影響を与える他の因子】
A89: 心理的な仕事の負担（量） | C89: 心理的な仕事の負担（質） | E89: 自覚的な身体的負担度 | G89: 職場の対人関係でのｽﾄﾚｽ | I89: 職場環境によるストレス | K89: 仕事のコントロール度 | M89: 技能の活用度 | O89: 仕事の適性度 | Q89: 働きがい | S89: 活気 | U89: イライラ感 | W89: 疲労感 | Y89: 不安感 | AA89: 抑うつ感 | AC89: 身体愁訴 | AE89: 上司からのサポート | AG89: 同僚からのサポート | AI89: 家族・友人からのサポート | AK89: 仕事や生活の満足度
A90: 得点 | B90: 評価点 | C90: 得点 | D90: 評価点 | E90: 得点 | F90: 評価点 | G90: 得点 | H90: 評価点 | I90: 得点 | J90: 評価点 | K90: 得点 | L90: 評価点 | M90: 得点 | N90: 評価点 | O90: 得点 | P90: 評価点 | Q90: 得点 | R90: 評価点 | S90: 得点 | T90: 評価点 | U90: 得点 | V90: 評価点 | W90: 得点 | X90: 評価点 | Y90: 得点 | Z90: 評価点 | AA90: 得点 | AB90: 評価点 | AC90: 得点 | AD90: 評価点 | AE90: 得点 | AF90: 評価点 | AG90: 得点 | AH90: 評価点 | AI90: 得点 | AJ90: 評価点 | AK90: 得点 | AL90: 評価点
A91: 3 | B91: 5 | C91: 3 | D91: 5 | E91: 1 | F91: 4 | G91: 3 | H91: 5 | I91: 1 | J91: 5 | K91: 3 | L91: 1 | M91: 1 | N91: 1 | O91: 1 | P91: 1 | Q91: 1 | R91: 1 | S91: 3 | T91: 1 | U91: 3 | V91: 5 | W91: 3 | X91: 5 | Y91: 3 | Z91: 5 | AA91: 6 | AB91: 5 | AC91: 11 | AD91: 5 | AE91: 3 | AF91: 1 | AG91: 3 | AH91: 1 | AI91: 3 | AJ91: 1 | AK91: 2 | AL91: 1
A92: 4 | B92: 5 | C92: 4 | D92: 5 | E92: 2 | F92: 3 | G92: 4 | H92: 4 | I92: 2 | J92: 3 | K92: 4 | L92: 2 | M92: 2 | N92: 2 | O92: 2 | P92: 2 | Q92: 2 | R92: 2 | S92: 4 | T92: 2 | U92: 4 | V92: 4 | W92: 4 | X92: 4 | Y92: 4 | Z92: 4 | AA92: 7 | AB92: 4 | AC92: 12 | AD92: 5 | AE92: 4 | AF92: 2 | AG92: 4 | AH92: 1 | AI92: 4 | AJ92: 1 | AK92: 3 | AL92: 1
A93: 5 | B93: 4 | C93: 5 | D93: 4 | E93: 3 | F93: 2 | G93: 5 | H93: 4 | I93: 3 | J93: 2 | K93: 5 | L93: 2 | M93: 3 | N93: 3 | O93: 3 | P93: 3 | Q93: 3 | R93: 3 | S93: 5 | T93: 2 | U93: 5 | V93: 4 | W93: 5 | X93: 4 | Y93: 5 | Z93: 3 | AA93: 8 | AB93: 4 | AC93: 13 | AD93: 5 | AE93: 5 | AF93: 2 | AG93: 5 | AH93: 1 | AI93: 5 | AJ93: 1 | AK93: 4 | AL93: 2
A94: 6 | B94: 4 | C94: 6 | D94: 4 | E94: 4 | F94: 1 | G94: 6 | H94: 3 | I94: 4 | J94: 1 | K94: 6 | L94: 3 | M94: 4 | N94: 4 | O94: 4 | P94: 5 | Q94: 4 | R94: 5 | S94: 6 | T94: 3 | U94: 6 | V94: 3 | W94: 6 | X94: 3 | Y94: 6 | Z94: 3 | AA94: 9 | AB94: 3 | AC94: 14 | AD94: 4 | AE94: 6 | AF94: 3 | AG94: 6 | AH94: 2 | AI94: 6 | AJ94: 1 | AK94: 5 | AL94: 3
A95: 7 | B95: 3 | C95: 7 | D95: 3 | G95: 7 | H95: 3 | K95: 7 | L95: 3 | S95: 7 | T95: 3 | U95: 7 | V95: 3 | W95: 7 | X95: 3 | Y95: 7 | Z95: 3 | AA95: 10 | AB95: 3 | AC95: 15 | AD95: 4 | AE95: 7 | AF95: 3 | AG95: 7 | AH95: 2 | AI95: 7 | AJ95: 2 | AK95: 6 | AL95: 3
A96: 8 | B96: 3 | C96: 8 | D96: 3 | G96: 8 | H96: 2 | K96: 8 | L96: 3 | S96: 8 | T96: 4 | U96: 8 | V96: 3 | W96: 8 | X96: 3 | Y96: 8 | Z96: 2 | AA96: 11 | AB96: 3 | AC96: 16 | AD96: 4 | AE96: 8 | AF96: 4 | AG96: 8 | AH96: 3 | AI96: 8 | AJ96: 2 | AK96: 7 | AL96: 4
A97: 9 | B97: 3 | C97: 9 | D97: 2 | G97: 9 | H97: 2 | K97: 9 | L97: 4 | S97: 9 | T97: 4 | U97: 9 | V97: 2 | W97: 9 | X97: 2 | Y97: 9 | Z97: 2 | AA97: 12 | AB97: 3 | AC97: 17 | AD97: 4 | AE97: 9 | AF97: 4 | AG97: 9 | AH97: 3 | AI97: 9 | AJ97: 3 | AK97: 8 | AL97: 5
A98: 10 | B98: 2 | C98: 10 | D98: 2 | G98: 10 | H98: 1 | K98: 10 | L98: 4 | S98: 10 | T98: 5 | U98: 10 | V98: 2 | W98: 10 | X98: 2 | Y98: 10 | Z98: 2 | AA98: 13 | AB98: 2 | AC98: 18 | AD98: 3 | AE98: 10 | AF98: 4 | AG98: 10 | AH98: 4 | AI98: 10 | AJ98: 4
A99: 11 | B99: 2 | C99: 11 | D99: 1 | G99: 11 | H99: 1 | K99: 11 | L99: 5 | S99: 11 | T99: 5 | U99: 11 | V99: 1 | W99: 11 | X99: 2 | Y99: 11 | Z99: 1 | AA99: 14 | AB99: 2 | AC99: 19 | AD99: 3 | AE99: 11 | AF99: 5 | AG99: 11 | AH99: 4 | AI99: 11 | AJ99: 4
A100: 12 | B100: 1 | C100: 12 | D100: 1 | G100: 12 | H100: 1 | K100: 12 | L100: 5 | S100: 12 | T100: 5 | U100: 12 | V100: 1 | W100: 12 | X100: 1 | Y100: 12 | Z100: 1 | AA100: 15 | AB100: 2 | AC100: 20 | AD100: 3 | AE100: 12 | AF100: 5 | AG100: 12 | AH100: 5 | AI100: 12 | AJ100: 5
AA101: 16 | AB101: 2 | AC101: 21 | AD101: 3
AA102: 17 | AB102: 2 | AC102: 22 | AD102: 3
AA103: 18 | AB103: 1 | AC103: 23 | AD103: 3
AA104: 19 | AB104: 1 | AC104: 24 | AD104: 2
AA105: 20 | AB105: 1 | AC105: 25 | AD105: 2
AA106: 21 | AB106: 1 | AC106: 26 | AD106: 2
AA107: 22 | AB107: 1 | AC107: 27 | AD107: 2
AA108: 23 | AB108: 1 | AC108: 28 | AD108: 2
AA109: 24 | AB109: 1 | AC109: 29 | AD109: 2
AC110: 30 | AD110: 1
AC111: 31 | AD111: 1
AC112: 32 | AD112: 1
AC113: 33 | AD113: 1
AC114: 34 | AD114: 1
AC115: 35 | AD115: 1
AC116: 36 | AD116: 1
AC117: 37 | AD117: 1
AC118: 38 | AD118: 1
AC119: 39 | AD119: 1
AC120: 40 | AD120: 1
AC121: 41 | AD121: 1
AC122: 42 | AD122: 1
AC123: 43 | AD123: 1
AC124: 44 | AD124: 1

Sheet マスタ (hidden)
A1: 1 | B1: 外航船員
A2: 2 | B2: 内航船員
A3: 3 | B3: 外航と内航の両方に従事する船員
A5: 1 | B5: 船長
A6: 2 | B6: 一等航海士
A7: 3 | B7: 二等航海士
A8: 4 | B8: 三等航海士
A9: 5 | B9: 機関長
A10: 6 | B10: 一等機関士
A11: 7 | B11: 二等機関士
A12: 8 | B12: 三等機関士
A13: 9 | B13: 通信長
A14: 10 | B14: 二等通信士
A15: 11 | B15: 三等通信士
A16: 12 | B16: 事務長
A17: 13 | B17: 事務員
A18: 14 | B18: 船医
A19: 15 | B19: 甲板長
A20: 16 | B20: 甲板部員（甲板手、甲板員等）
A21: 17 | B21: 操機長
A22: 18 | B22: 機関部員（機関手、機関員等）
A23: 19 | B23: 司厨長
A24: 20 | B24: 司厨部員（司厨手、司厨員）
A25: 21 | B25: 医務部(看護長、看護師）
A26: 22 | B26: その他
A28: 1 | B28: 10代
A29: 2 | B29: 20代
A30: 3 | B30: 30代
A31: 4 | B31: 40代
A32: 5 | B32: 50代
A33: 6 | B33: 60代以上
A35: 1 | B35: 3年未満
A36: 2 | B36: 3～5年
A37: 3 | B37: 6～10年
A38: 4 | B38: 11～20年
A39: 5 | B39: 21～30年
A40: 6 | B40: 31年以上
A42: 1 | B42: 乗船中
A43: 2 | B43: 休暇中
A44: 3 | B44: 陸上勤務
A46: 1 | B46: 5人以下
A47: 2 | B47: 6～10人
A48: 3 | B48: 11～15人
A49: 4 | B49: 16～19人
A50: 5 | B50: 20～29人
A51: 6 | B51: 30～39人
A52: 7 | B52: 40人以上
A54: 1 | B54: 一般貨物船
A55: 2 | B55: 油タンカー
A56: 3 | B56: 液化ガスタンカー
A57: 4 | B57: コンテナ船
A58: 5 | B58: 自動車専用船
A59: 6 | B59: 鉱石・石炭運搬船
A60: 7 | B60: 客船
A61: 8 | B61: フェリー・RORO船
A62: 9 | B62: 浚渫（しゅんせつ）船・作業船
A63: 10 | B63: 練習船
A64: 11 | B64: バージ
A65: 12 | B65: タグボート
A66: 13 | B66: その他

Sheet 集団レポート
E1: 船員版職場環境改善チェックシート
AC3: ="作成日："&項目表!B8 -> 作成日：2020年04月22日
E4: 実施期間 | I4: =項目表!B12 -> 2020年02月01日 〜 2020年02月20日
E5: 集団名 | I5: =項目表!B11 -> 株式会社○○商船
E6: 外航/内航 | I6: =項目表!B7 -> 内航船
E7: 人数 | I7: =項目表!B1&"人" -> 0人 | M7: 男性 | Q7: =項目表!B2&"人" -> 0人 | U7: 女性 | Y7: =項目表!B3&"人" -> 0人 | AC7: =IF(項目表!B4<>0,"不明 : "&項目表!B4&"人","") -> 
E8: =IF(項目表!$C$1,"※ 集団の人数が10人未満ですので、データの取り扱いには注意してください。","") -> ※ 集団の人数が10人未満ですので、データの取り扱いには注意してください。
CW9: =I7 -> 0人
DG11: ここだけ船員 → 外航船(内航船) → 集団 の順にしている
CX12: 職場のいきいき | CY12: 個人のいきいき | DG12: 船員平均 | DH12: =$BK$26 -> 内航船平均 | DI12: 集団平均
CW13: 集団平均 | CX13: =DG72 ->  | CY13: =DG71 ->  | DF13: 作業資源 | DG13: =AVERAGE(DI45:DI50) -> 3.0 | DH13: =AVERAGE(DH45:DH50) -> 2.9 | DI13: =AVERAGE(DG45:DG50) -> 
CW14: =$BK$26 -> 内航船平均 | CX14: =DH72 -> 2.5 | CY14: =DH71 -> 2.5 | DF14: 部署資源 | DG14: =AVERAGE(DI52:DI61) -> 2.8 | DH14: =AVERAGE(DH52:DH61) -> 2.8 | DI14: =AVERAGE(DG52:DG61) -> 
CW15: =DG12 -> 船員平均 | CX15: =DI72 -> 2.6 | CY15: =DI71 -> 2.6 | DF15: 事業場資源 | DG15: =AVERAGE(DI63:DI69) -> 2.4 | DH15: =AVERAGE(DH63:DH69) -> 2.3 | DI15: =AVERAGE(DG63:DG69) -> 
DF16: 仕事の負担 | DG16: =AVERAGE(DI36:DI43) -> 2.4 | DH16: =AVERAGE(DH36:DH43) -> 2.4 | DI16: =AVERAGE(DG36:DG43) -> 
AY25: 高ストレス者割合
AY26: =項目表!B6 ->  | BK26: =I6&"平均" -> 内航船平均 | BQ26: =IF(I6="外航船",11.1%,16.8%) -> 16.8% | BW26: 船員平均 | CC26: 14.2%
DA31: 本集団
DA32: 外航船員
AY33: 仕事の負担 | DA33: 内航船員
BH34: 集団 平均 | BK34: =生データ!G2&CHAR(10)&"平均" -> 内航船 平均 | BN34: 船員 平均 | CW34: 2 | CX34: 3 | CY34: 4 | CZ34: 5 | DA34: 全船員
CP35: Y軸 | CW35: 集団 | CX35: 外航船員 | CY35: 内航船員 | CZ35: 全船員 | DG35: =$DI$12 -> 集団平均 | DH35: =$BK$26 -> 内航船平均 | DI35: =$DG$12 -> 船員平均
AX36: =VLOOKUP(AY36,重点改善項目!$A:$C,IF(集団レポート!$I$6="外航船",2,3),FALSE) ->  | AY36: 仕事の量的負担 | BH36: =DG36 ->  | BK36: =DH36 -> 2.1 | BN36: =DI36 -> 2.1 | CP36: 0.5 | CV36: 仕事の量的負担 | CW36: =HLOOKUP($CV36,'80項目＋データ'!$2:$6,CW$34,FALSE) ->  | CX36: =HLOOKUP($CV36,'80項目＋データ'!$2:$6,CX$34,FALSE) -> 1.9 | CY36: =HLOOKUP($CV36,'80項目＋データ'!$2:$6,CY$34,FALSE) -> 2.1 | CZ36: =HLOOKUP($CV36,'80項目＋データ'!$2:$6,CZ$34,FALSE) -> 2.1 | DF36: =CV36 -> 仕事の量的負担 | DG36: =CW36 ->  | DH36: =IF($I$6="外航船",CX36,CY36) -> 2.1 | DI36: =CZ36 -> 2.1
AX37: =VLOOKUP(AY37,重点改善項目!$A:$C,IF(集団レポート!$I$6="外航船",2,3),FALSE) ->  | AY37: 仕事の質的負担 | BH37: =DG37 ->  | BK37: =DH37 -> 2.0 | BN37: =DI37 -> 1.9 | CP37: 1.5 | CV37: 仕事の質的負担 | CW37: =HLOOKUP($CV37,'80項目＋データ'!$2:$6,CW$34,FALSE) ->  | CX37: =HLOOKUP($CV37,'80項目＋データ'!$2:$6,CX$34,FALSE) -> 1.6 | CY37: =HLOOKUP($CV37,'80項目＋データ'!$2:$6,CY$34,FALSE) -> 2.0 | CZ37: =HLOOKUP($CV37,'80項目＋データ'!$2:$6,CZ$34,FALSE) -> 1.9 | DF37: =CV37 -> 仕事の質的負担 | DG37: =CW37 ->  | DH37: 2.0 | DI37: =CZ37 -> 1.9
AX38: =VLOOKUP(AY38,重点改善項目!$A:$C,IF(集団レポート!$I$6="外航船",2,3),FALSE) ->  | AY38: 身体的負担度 | BK38: 2.1 | BN38: 2.1 | CP38: 2.5 | CV38: 身体的負担度 | CW38: =HLOOKUP($CV38,'80項目＋データ'!$2:$6,CW$34,FALSE) ->  | CX38: =HLOOKUP($CV38,'80項目＋データ'!$2:$6,CX$34,FALSE) -> 2.0 | CY38: =HLOOKUP($CV38,'80項目＋データ'!$2:$6,CY$34,FALSE) -> 2.1 | CZ38: =HLOOKUP($CV38,'80項目＋データ'!$2:$6,CZ$34,FALSE) -> 2.1 | DF38: 身体的負担度 | DH38: 2.1 | DI38: 2.1
AX39: =VLOOKUP(AY39,重点改善項目!$A:$C,IF(集団レポート!$I$6="外航船",2,3),FALSE) ->  | AY39: 職場での対人関係 | BK39: 2.9 | BN39: 2.9 | CP39: 3.5 | CV39: 職場での対人関係 | CW39: =HLOOKUP($CV39,'80項目＋データ'!$2:$6,CW$34,FALSE) ->  | CX39: =HLOOKUP($CV39,'80項目＋データ'!$2:$6,CX$34,FALSE) -> 3.0 | CY39: =HLOOKUP($CV39,'80項目＋データ'!$2:$6,CY$34,FALSE) -> 2.9 | CZ39: =HLOOKUP($CV39,'80項目＋データ'!$2:$6,CZ$34,FALSE) -> 2.9 | DF39: 職場での対人関係 | DH39: 2.9 | DI39: 2.9
AX40: =VLOOKUP(AY40,重点改善項目!$A:$C,IF(集団レポート!$I$6="外航船",2,3),FALSE) ->  | AY40: 職場環境 | BK40: 2.5 | BN40: 2.4 | CP40: 4.5 | CV40: 職場環境 | CW40: =HLOOKUP($CV40,'80項目＋データ'!$2:$6,CW$34,FALSE) ->  | CX40: =HLOOKUP($CV40,'80項目＋データ'!$2:$6,CX$34,FALSE) -> 2.2 | CY40: =HLOOKUP($CV40,'80項目＋データ'!$2:$6,CY$34,FALSE) -> 2.5 | CZ40: =HLOOKUP($CV40,'80項目＋データ'!$2:$6,CZ$34,FALSE) -> 2.4 | DF40: 職場環境 | DH40: 2.5 | DI40: 2.4
AX41: =VLOOKUP(AY41,重点改善項目!$A:$C,IF(集団レポート!$I$6="外航船",2,3),FALSE) -> ★ | AY41: 情緒的負担 | BK41: 2.4 | BN41: 2.4 | CP41: 5.5 | CV41: 情緒的負担 | CW41: =HLOOKUP($CV41,'80項目＋データ'!$2:$6,CW$34,FALSE) ->  | CX41: =HLOOKUP($CV41,'80項目＋データ'!$2:$6,CX$34,FALSE) -> 2.3 | CY41: =HLOOKUP($CV41,'80項目＋データ'!$2:$6,CY$34,FALSE) -> 2.4 | CZ41: =HLOOKUP($CV41,'80項目＋データ'!$2:$6,CZ$34,FALSE) -> 2.4 | DF41: 情緒的負担 | DH41: 2.4 | DI41: 2.4
AX42: =VLOOKUP(AY42,重点改善項目!$A:$C,IF(集団レポート!$I$6="外航船",2,3),FALSE) -> ★ | AY42: 役割葛藤 | BK42: 2.4 | BN42: 2.4 | CP42: 6.5 | CV42: 役割葛藤 | CW42: =HLOOKUP($CV42,'80項目＋データ'!$2:$6,CW$34,FALSE) ->  | CX42: =HLOOKUP($CV42,'80項目＋データ'!$2:$6,CX$34,FALSE) -> 2.4 | CY42: =HLOOKUP($CV42,'80項目＋データ'!$2:$6,CY$34,FALSE) -> 2.4 | CZ42: =HLOOKUP($CV42,'80項目＋データ'!$2:$6,CZ$34,FALSE) -> 2.4 | DF42: 役割葛藤 | DH42: 2.4 | DI42: 2.4
AX43: =VLOOKUP(AY43,重点改善項目!$A:$C,IF(集団レポート!$I$6="外航船",2,3),FALSE) ->  | AY43: ワーク・セルフ・バランス （ネガティブ） | BK43: 2.7 | BN43: 2.7 | CP43: 7.5 | CV43: ワーク・セルフ・バランス（ネガティブ） | CW43: =HLOOKUP($CV43,'80項目＋データ'!$2:$6,CW$34,FALSE) ->  | CX43: =HLOOKUP($CV43,'80項目＋データ'!$2:$6,CX$34,FALSE) -> 2.6 | CY43: =HLOOKUP($CV43,'80項目＋データ'!$2:$6,CY$34,FALSE) -> 2.7 | CZ43: =HLOOKUP($CV43,'80項目＋データ'!$2:$6,CZ$34,FALSE) -> 2.7 | DF43: ワーク・セルフ・バランス（ネガティブ） | DH43: 2.7 | DI43: 2.7
CP44: 8.5 | DG44: =$DI$12 -> 集団平均 | DH44: =$BK$26 -> 内航船平均 | DI44: =$DG$12 -> 船員平均
CP45: 9.5 | CV45: 仕事のコントロール | CW45: =HLOOKUP($CV45,'80項目＋データ'!$2:$6,CW$34,FALSE) ->  | CX45: =HLOOKUP($CV45,'80項目＋データ'!$2:$6,CX$34,FALSE) -> 2.8 | CY45: =HLOOKUP($CV45,'80項目＋データ'!$2:$6,CY$34,FALSE) -> 2.5 | CZ45: =HLOOKUP($CV45,'80項目＋データ'!$2:$6,CZ$34,FALSE) -> 2.6 | DF45: 仕事のコントロール | DG45: =CW45 ->  | DH45: =IF($I$6="外航船",CX45,CY45) -> 2.5 | DI45: =CZ45 -> 2.6
CV46: 仕事の適性 | CW46: =HLOOKUP($CV46,'80項目＋データ'!$2:$6,CW$34,FALSE) ->  | CX46: =HLOOKUP($CV46,'80項目＋データ'!$2:$6,CX$34,FALSE) -> 3.1 | CY46: =HLOOKUP($CV46,'80項目＋データ'!$2:$6,CY$34,FALSE) -> 2.9 | CZ46: =HLOOKUP($CV46,'80項目＋データ'!$2:$6,CZ$34,FALSE) -> 2.9 | DF46: 仕事の適性 | DH46: 2.9 | DI46: 2.9
CV47: 技能の活用 | CW47: =HLOOKUP($CV47,'80項目＋データ'!$2:$6,CW$34,FALSE) ->  | CX47: =HLOOKUP($CV47,'80項目＋データ'!$2:$6,CX$34,FALSE) -> 3.4 | CY47: =HLOOKUP($CV47,'80項目＋データ'!$2:$6,CY$34,FALSE) -> 3.0 | CZ47: =HLOOKUP($CV47,'80項目＋データ'!$2:$6,CZ$34,FALSE) -> 3.1 | DF47: 技能の活用 | DH47: 3.0 | DI47: 3.1
CV48: 仕事の意義 | CW48: =HLOOKUP($CV48,'80項目＋データ'!$2:$6,CW$34,FALSE) ->  | CX48: =HLOOKUP($CV48,'80項目＋データ'!$2:$6,CX$34,FALSE) -> 3.3 | CY48: =HLOOKUP($CV48,'80項目＋データ'!$2:$6,CY$34,FALSE) -> 2.9 | CZ48: =HLOOKUP($CV48,'80項目＋データ'!$2:$6,CZ$34,FALSE) -> 3.0 | DF48: 仕事の意義 | DH48: 2.9 | DI48: 3.0
CV49: 役割明確さ | CW49: =HLOOKUP($CV49,'80項目＋データ'!$2:$6,CW$34,FALSE) ->  | CX49: =HLOOKUP($CV49,'80項目＋データ'!$2:$6,CX$34,FALSE) -> 3.5 | CY49: =HLOOKUP($CV49,'80項目＋データ'!$2:$6,CY$34,FALSE) -> 3.4 | CZ49: =HLOOKUP($CV49,'80項目＋データ'!$2:$6,CZ$34,FALSE) -> 3.4 | DF49: 役割明確さ | DH49: 3.4 | DI49: 3.4
E50: 作業資源 | AY50: =I6&"での業務・生活" -> 内航船での業務・生活 | CV50: 成長の機会 | CW50: =HLOOKUP($CV50,'80項目＋データ'!$2:$6,CW$34,FALSE) ->  | CX50: =HLOOKUP($CV50,'80項目＋データ'!$2:$6,CX$34,FALSE) -> 3.1 | CY50: =HLOOKUP($CV50,'80項目＋データ'!$2:$6,CY$34,FALSE) -> 2.7 | CZ50: =HLOOKUP($CV50,'80項目＋データ'!$2:$6,CZ$34,FALSE) -> 2.8 | DF50: 成長の機会 | DH50: 2.7 | DI50: 2.8
N51: 集団 平均 | Q51: =$BK$34 -> 内航船 平均 | T51: 船員 平均 | BH51: 集団 平均 | BK51: =$BK$34 -> 内航船 平均 | BN51: 船員 平均 | DG51: =$DI$12 -> 集団平均 | DH51: =$BK$26 -> 内航船平均 | DI51: =$DG$12 -> 船員平均
CV52: 上司のサポート | CW52: =HLOOKUP($CV52,'80項目＋データ'!$2:$6,CW$34,FALSE) ->  | CX52: =HLOOKUP($CV52,'80項目＋データ'!$2:$6,CX$34,FALSE) -> 2.6 | CY52: =HLOOKUP($CV52,'80項目＋データ'!$2:$6,CY$34,FALSE) -> 2.5 | CZ52: =HLOOKUP($CV52,'80項目＋データ'!$2:$6,CZ$34,FALSE) -> 2.6 | DF52: 上司のサポート | DG52: =CW52 ->  | DH52: =IF($I$6="外航船",CX52,CY52) -> 2.5 | DI52: =CZ52 -> 2.6
D53: =VLOOKUP(E53,重点改善項目!$A:$C,IF(集団レポート!$I$6="外航船",2,3),FALSE) -> ★ | E53: 仕事のコントロール | N53: =DG45 ->  | Q53: =DH45 -> 2.5 | T53: =DI45 -> 2.6 | AX53: =VLOOKUP(AY53,重点改善項目!$A:$C,IF(集団レポート!$I$6="外航船",2,3),FALSE) ->  | AY53: =CU95 -> 忙しさ | BH53: =DG95 ->  | BK53: =DH95 -> 2.3 | BN53: - | CV53: 同僚のサポート | CW53: =HLOOKUP($CV53,'80項目＋データ'!$2:$6,CW$34,FALSE) ->  | CX53: =HLOOKUP($CV53,'80項目＋データ'!$2:$6,CX$34,FALSE) -> 2.8 | CY53: =HLOOKUP($CV53,'80項目＋データ'!$2:$6,CY$34,FALSE) -> 2.7 | CZ53: =HLOOKUP($CV53,'80項目＋データ'!$2:$6,CZ$34,FALSE) -> 2.7 | DF53: 同僚のサポート | DH53: 2.7 | DI53: 2.7
D54: =VLOOKUP(E54,重点改善項目!$A:$C,IF(集団レポート!$I$6="外航船",2,3),FALSE) ->  | E54: 仕事の適性 | Q54: 2.9 | T54: 2.9 | AX54: =VLOOKUP(AY54,重点改善項目!$A:$C,IF(集団レポート!$I$6="外航船",2,3),FALSE) ->  | AY54: =CU96 -> 業務の危険さ過酷さ | BH54: =DG96 ->  | BK54: =DH96 -> 2.3 | BN54: - | CV54: 家族友人のサポート | CW54: =HLOOKUP($CV54,'80項目＋データ'!$2:$6,CW$34,FALSE) ->  | CX54: =HLOOKUP($CV54,'80項目＋データ'!$2:$6,CX$34,FALSE) -> 3.1 | CY54: =HLOOKUP($CV54,'80項目＋データ'!$2:$6,CY$34,FALSE) -> 3.2 | CZ54: =HLOOKUP($CV54,'80項目＋データ'!$2:$6,CZ$34,FALSE) -> 3.2 | DF54: 家族友人のサポート | DH54: 3.2 | DI54: 3.2
D55: =VLOOKUP(E55,重点改善項目!$A:$C,IF(集団レポート!$I$6="外航船",2,3),FALSE) ->  | E55: 技能の活用 | Q55: 3.0 | T55: 3.1 | AX55: =VLOOKUP(AY55,重点改善項目!$A:$C,IF(集団レポート!$I$6="外航船",2,3),FALSE) -> ★ | AY55: =CU97 -> 人づきあい | BH55: =DG97 ->  | BK55: =DH97 -> 2.5 | BN55: - | CV55: 経済・地位報酬 | CW55: =HLOOKUP($CV55,'80項目＋データ'!$2:$6,CW$34,FALSE) ->  | CX55: =HLOOKUP($CV55,'80項目＋データ'!$2:$6,CX$34,FALSE) -> 2.8 | CY55: =HLOOKUP($CV55,'80項目＋データ'!$2:$6,CY$34,FALSE) -> 2.8 | CZ55: =HLOOKUP($CV55,'80項目＋データ'!$2:$6,CZ$34,FALSE) -> 2.8 | DF55: 経済・地位報酬 | DH55: 2.8 | DI55: 2.8
D56: =VLOOKUP(E56,重点改善項目!$A:$C,IF(集団レポート!$I$6="外航船",2,3),FALSE) ->  | E56: 仕事の意義 | Q56: 2.9 | T56: 3.0 | AY56: ※こちらの項目には船員平均はありません。 | CV56: 尊重報酬 | CW56: =HLOOKUP($CV56,'80項目＋データ'!$2:$6,CW$34,FALSE) ->  | CX56: =HLOOKUP($CV56,'80項目＋データ'!$2:$6,CX$34,FALSE) -> 2.9 | CY56: =HLOOKUP($CV56,'80項目＋データ'!$2:$6,CY$34,FALSE) -> 2.8 | CZ56: =HLOOKUP($CV56,'80項目＋データ'!$2:$6,CZ$34,FALSE) -> 2.8 | DF56: 尊重報酬 | DH56: 2.8 | DI56: 2.8
D57: =VLOOKUP(E57,重点改善項目!$A:$C,IF(集団レポート!$I$6="外航船",2,3),FALSE) ->  | E57: 役割明確さ | Q57: 3.4 | T57: 3.4 | CV57: 安定報酬 | CW57: =HLOOKUP($CV57,'80項目＋データ'!$2:$6,CW$34,FALSE) ->  | CX57: =HLOOKUP($CV57,'80項目＋データ'!$2:$6,CX$34,FALSE) -> 3.1 | CY57: =HLOOKUP($CV57,'80項目＋データ'!$2:$6,CY$34,FALSE) -> 3.1 | CZ57: =HLOOKUP($CV57,'80項目＋データ'!$2:$6,CZ$34,FALSE) -> 3.1 | DF57: 安定報酬 | DH57: 3.1 | DI57: 3.1
D58: =VLOOKUP(E58,重点改善項目!$A:$C,IF(集団レポート!$I$6="外航船",2,3),FALSE) ->  | E58: 成長の機会 | Q58: 2.7 | T58: 2.8 | CV58: 上司のリーダー シップ | CW58: =HLOOKUP($CV58,'80項目＋データ'!$2:$6,CW$34,FALSE) ->  | CX58: =HLOOKUP($CV58,'80項目＋データ'!$2:$6,CX$34,FALSE) -> 2.8 | CY58: =HLOOKUP($CV58,'80項目＋データ'!$2:$6,CY$34,FALSE) -> 2.7 | CZ58: =HLOOKUP($CV58,'80項目＋データ'!$2:$6,CZ$34,FALSE) -> 2.7 | DF58: 上司のリーダー シップ | DH58: 2.7 | DI58: 2.7
CV59: 上司の公正な態度 | CW59: =HLOOKUP($CV59,'80項目＋データ'!$2:$6,CW$34,FALSE) ->  | CX59: =HLOOKUP($CV59,'80項目＋データ'!$2:$6,CX$34,FALSE) -> 3.0 | CY59: =HLOOKUP($CV59,'80項目＋データ'!$2:$6,CY$34,FALSE) -> 2.8 | CZ59: =HLOOKUP($CV59,'80項目＋データ'!$2:$6,CZ$34,FALSE) -> 2.8 | DF59: 上司の公正な態度 | DH59: 2.8 | DI59: 2.8
E60: 部署資源 | AY60: いきいきアウトカム | CV60: ほめてもらえる職場 | CW60: =HLOOKUP($CV60,'80項目＋データ'!$2:$6,CW$34,FALSE) ->  | CX60: =HLOOKUP($CV60,'80項目＋データ'!$2:$6,CX$34,FALSE) -> 2.7 | CY60: =HLOOKUP($CV60,'80項目＋データ'!$2:$6,CY$34,FALSE) -> 2.7 | CZ60: =HLOOKUP($CV60,'80項目＋データ'!$2:$6,CZ$34,FALSE) -> 2.7 | DF60: ほめてもらえる職場 | DH60: 2.7 | DI60: 2.7
N61: 集団 平均 | Q61: =$BK$34 -> 内航船 平均 | T61: 船員 平均 | BH61: 集団 平均 | BK61: =$BK$34 -> 内航船 平均 | BN61: 船員 平均 | CV61: 失敗を認める職場 | CW61: =HLOOKUP($CV61,'80項目＋データ'!$2:$6,CW$34,FALSE) ->  | CX61: =HLOOKUP($CV61,'80項目＋データ'!$2:$6,CX$34,FALSE) -> 2.7 | CY61: =HLOOKUP($CV61,'80項目＋データ'!$2:$6,CY$34,FALSE) -> 2.7 | CZ61: =HLOOKUP($CV61,'80項目＋データ'!$2:$6,CZ$34,FALSE) -> 2.7 | DF61: 失敗を認める職場 | DH61: 2.7 | DI61: 2.7
DG62: =$DI$12 -> 集団平均 | DH62: =$BK$26 -> 内航船平均 | DI62: =$DG$12 -> 船員平均
D63: =VLOOKUP(E63,重点改善項目!$A:$C,IF(集団レポート!$I$6="外航船",2,3),FALSE) -> ★ | E63: 上司のサポート | N63: =DG52 ->  | Q63: =DH52 -> 2.5 | T63: =DI52 -> 2.6 | AX63: =VLOOKUP(AY63,重点改善項目!$A:$C,IF(集団レポート!$I$6="外航船",2,3),FALSE) ->  | AY63: ワーク・エンゲイジメント | BH63: =DG71 ->  | BK63: =DH71 -> 2.5 | BN63: =DI71 -> 2.6 | CV63: 経営層との信頼関係 | CW63: =HLOOKUP($CV63,'80項目＋データ'!$2:$6,CW$34,FALSE) ->  | CX63: =HLOOKUP($CV63,'80項目＋データ'!$2:$6,CX$34,FALSE) -> 2.7 | CY63: =HLOOKUP($CV63,'80項目＋データ'!$2:$6,CY$34,FALSE) -> 2.5 | CZ63: =HLOOKUP($CV63,'80項目＋データ'!$2:$6,CZ$34,FALSE) -> 2.5 | DF63: 経営層との信頼関係 | DG63: =CW63 ->  | DH63: =IF($I$6="外航船",CX63,CY63) -> 2.5 | DI63: =CZ63 -> 2.5
D64: =VLOOKUP(E64,重点改善項目!$A:$C,IF(集団レポート!$I$6="外航船",2,3),FALSE) ->  | E64: 同僚のサポート | N64: =DG53 ->  | Q64: =DH53 -> 2.7 | T64: =DI53 -> 2.7 | AX64: =VLOOKUP(AY64,重点改善項目!$A:$C,IF(集団レポート!$I$6="外航船",2,3),FALSE) ->  | AY64: 職場の一体感 | BH64: =DG72 ->  | BK64: =DH72 -> 2.5 | BN64: =DI72 -> 2.6 | CV64: 変化への対応 | CW64: =HLOOKUP($CV64,'80項目＋データ'!$2:$6,CW$34,FALSE) ->  | CX64: =HLOOKUP($CV64,'80項目＋データ'!$2:$6,CX$34,FALSE) -> 2.5 | CY64: =HLOOKUP($CV64,'80項目＋データ'!$2:$6,CY$34,FALSE) -> 2.4 | CZ64: =HLOOKUP($CV64,'80項目＋データ'!$2:$6,CZ$34,FALSE) -> 2.4 | DF64: 変化への対応 | DH64: 2.4 | DI64: 2.4
D65: =VLOOKUP(E65,重点改善項目!$A:$C,IF(集団レポート!$I$6="外航船",2,3),FALSE) -> ★ | E65: 家族友人のサポート | Q65: 3.2 | T65: 3.2 | CV65: 個人の尊重 | CW65: =HLOOKUP($CV65,'80項目＋データ'!$2:$6,CW$34,FALSE) ->  | CX65: =HLOOKUP($CV65,'80項目＋データ'!$2:$6,CX$34,FALSE) -> 2.5 | CY65: =HLOOKUP($CV65,'80項目＋データ'!$2:$6,CY$34,FALSE) -> 2.3 | CZ65: =HLOOKUP($CV65,'80項目＋データ'!$2:$6,CZ$34,FALSE) -> 2.3 | DF65: 個人の尊重 | DH65: 2.3 | DI65: 2.3
D66: =VLOOKUP(E66,重点改善項目!$A:$C,IF(集団レポート!$I$6="外航船",2,3),FALSE) ->  | E66: 経済・地位報酬 | Q66: 2.8 | T66: 2.8 | CV66: 公正な人事評価 | CW66: =HLOOKUP($CV66,'80項目＋データ'!$2:$6,CW$34,FALSE) ->  | CX66: =HLOOKUP($CV66,'80項目＋データ'!$2:$6,CX$34,FALSE) -> 2.3 | CY66: =HLOOKUP($CV66,'80項目＋データ'!$2:$6,CY$34,FALSE) -> 2.1 | CZ66: =HLOOKUP($CV66,'80項目＋データ'!$2:$6,CZ$34,FALSE) -> 2.2 | DF66: 公正な人事評価 | DH66: 2.1 | DI66: 2.2
D67: =VLOOKUP(E67,重点改善項目!$A:$C,IF(集団レポート!$I$6="外航船",2,3),FALSE) ->  | E67: 尊重報酬 | Q67: 2.8 | T67: 2.8 | AY67: 心身の健康 | CV67: 多様な労働者への対応 | CW67: =HLOOKUP($CV67,'80項目＋データ'!$2:$6,CW$34,FALSE) ->  | CX67: =HLOOKUP($CV67,'80項目＋データ'!$2:$6,CX$34,FALSE) -> 2.8 | CY67: =HLOOKUP($CV67,'80項目＋データ'!$2:$6,CY$34,FALSE) -> 2.5 | CZ67: =HLOOKUP($CV67,'80項目＋データ'!$2:$6,CZ$34,FALSE) -> 2.6 | DF67: 多様な労働者への対応 | DH67: 2.5 | DI67: 2.6
D68: =VLOOKUP(E68,重点改善項目!$A:$C,IF(集団レポート!$I$6="外航船",2,3),FALSE) ->  | E68: 安定報酬 | Q68: 3.1 | T68: 3.1 | BH68: 集団 平均 | BK68: =$BK$34 -> 内航船 平均 | BN68: 船員 平均 | CV68: キャリア形成 | CW68: =HLOOKUP($CV68,'80項目＋データ'!$2:$6,CW$34,FALSE) ->  | CX68: =HLOOKUP($CV68,'80項目＋データ'!$2:$6,CX$34,FALSE) -> 2.5 | CY68: =HLOOKUP($CV68,'80項目＋データ'!$2:$6,CY$34,FALSE) -> 2.3 | CZ68: =HLOOKUP($CV68,'80項目＋データ'!$2:$6,CZ$34,FALSE) -> 2.4 | DF68: キャリア形成 | DH68: 2.3 | DI68: 2.4
D69: =VLOOKUP(E69,重点改善項目!$A:$C,IF(集団レポート!$I$6="外航船",2,3),FALSE) ->  | E69: 上司のリーダー シップ | Q69: 2.7 | T69: 2.7 | CV69: ワーク・セルフ・バランス（ポジティブ） | CW69: =HLOOKUP($CV69,'80項目＋データ'!$2:$6,CW$34,FALSE) ->  | CX69: =HLOOKUP($CV69,'80項目＋データ'!$2:$6,CX$34,FALSE) -> 2.3 | CY69: =HLOOKUP($CV69,'80項目＋データ'!$2:$6,CY$34,FALSE) -> 2.1 | CZ69: =HLOOKUP($CV69,'80項目＋データ'!$2:$6,CZ$34,FALSE) -> 2.2 | DF69: ワーク・セルフ・バランス（ポジティブ） | DH69: 2.1 | DI69: 2.2
D70: =VLOOKUP(E70,重点改善項目!$A:$C,IF(集団レポート!$I$6="外航船",2,3),FALSE) ->  | E70: 上司の公正な態度 | Q70: 2.8 | T70: 2.8 | AX70: =VLOOKUP(AY70,重点改善項目!$A:$C,IF(集団レポート!$I$6="外航船",2,3),FALSE) ->  | AY70: 活気 | BH70: =DG74 ->  | BK70: =DH74 -> 2.3 | BN70: =DI74 -> 2.3 | DG70: =$DI$12 -> 集団平均 | DH70: =$BK$26 -> 内航船平均 | DI70: =$DG$12 -> 船員平均
D71: =VLOOKUP(E71,重点改善項目!$A:$C,IF(集団レポート!$I$6="外航船",2,3),FALSE) ->  | E71: ほめてもらえる職場 | Q71: 2.7 | T71: 2.7 | AX71: =VLOOKUP(AY71,重点改善項目!$A:$C,IF(集団レポート!$I$6="外航船",2,3),FALSE) ->  | AY71: イライラ感 | BH71: =DG75 ->  | BK71: =DH75 -> 2.8 | BN71: =DI75 -> 2.9 | CV71: ワーク・エンゲイジメント | CW71: =HLOOKUP($CV71,'80項目＋データ'!$2:$6,CW$34,FALSE) ->  | CX71: =HLOOKUP($CV71,'80項目＋データ'!$2:$6,CX$34,FALSE) -> 2.8 | CY71: =HLOOKUP($CV71,'80項目＋データ'!$2:$6,CY$34,FALSE) -> 2.5 | CZ71: =HLOOKUP($CV71,'80項目＋データ'!$2:$6,CZ$34,FALSE) -> 2.6 | DF71: ワーク・エンゲイジメント | DG71: =CW71 ->  | DH71: =IF($I$6="外航船",CX71,CY71) -> 2.5 | DI71: =CZ71 -> 2.6
D72: =VLOOKUP(E72,重点改善項目!$A:$C,IF(集団レポート!$I$6="外航船",2,3),FALSE) ->  | E72: 失敗を認める職場 | Q72: 2.7 | T72: 2.7 | AX72: =VLOOKUP(AY72,重点改善項目!$A:$C,IF(集団レポート!$I$6="外航船",2,3),FALSE) ->  | AY72: 疲労感 | BK72: 2.7 | BN72: 2.8 | CV72: 職場の一体感 | CW72: =HLOOKUP($CV72,'80項目＋データ'!$2:$6,CW$34,FALSE) ->  | CX72: =HLOOKUP($CV72,'80項目＋データ'!$2:$6,CX$34,FALSE) -> 2.8 | CY72: =HLOOKUP($CV72,'80項目＋データ'!$2:$6,CY$34,FALSE) -> 2.5 | CZ72: =HLOOKUP($CV72,'80項目＋データ'!$2:$6,CZ$34,FALSE) -> 2.6 | DF72: 職場の一体感 | DG72: =CW72 ->  | DH72: =IF($I$6="外航船",CX72,CY72) -> 2.5 | DI72: =CZ72 -> 2.6
AX73: =VLOOKUP(AY73,重点改善項目!$A:$C,IF(集団レポート!$I$6="外航船",2,3),FALSE) ->  | AY73: 不安感 | BK73: 2.8 | BN73: 2.8 | DG73: =$DI$12 -> 集団平均 | DH73: =$BK$26 -> 内航船平均 | DI73: =$DG$12 -> 船員平均
E74: 事業場資源 | AX74: =VLOOKUP(AY74,重点改善項目!$A:$C,IF(集団レポート!$I$6="外航船",2,3),FALSE) ->  | AY74: 抑うつ感 | BK74: 3.2 | BN74: 3.2 | CV74: 活気 | CW74: =HLOOKUP($CV74,'80項目＋データ'!$2:$6,CW$34,FALSE) ->  | CX74: =HLOOKUP($CV74,'80項目＋データ'!$2:$6,CX$34,FALSE) -> 2.4 | CY74: =HLOOKUP($CV74,'80項目＋データ'!$2:$6,CY$34,FALSE) -> 2.3 | CZ74: =HLOOKUP($CV74,'80項目＋データ'!$2:$6,CZ$34,FALSE) -> 2.3 | DF74: 活気 | DG74: =CW74 ->  | DH74: =IF($I$6="外航船",CX74,CY74) -> 2.3 | DI74: =CZ74 -> 2.3
N75: 集団 平均 | Q75: =$BK$34 -> 内航船 平均 | T75: 船員 平均 | AX75: =VLOOKUP(AY75,重点改善項目!$A:$C,IF(集団レポート!$I$6="外航船",2,3),FALSE) ->  | AY75: 心理的ストレス反応合計 | BK75: 2.8 | BN75: 2.8 | CV75: イライラ感 | CW75: =HLOOKUP($CV75,'80項目＋データ'!$2:$6,CW$34,FALSE) ->  | CX75: =HLOOKUP($CV75,'80項目＋データ'!$2:$6,CX$34,FALSE) -> 3.0 | CY75: =HLOOKUP($CV75,'80項目＋データ'!$2:$6,CY$34,FALSE) -> 2.8 | CZ75: =HLOOKUP($CV75,'80項目＋データ'!$2:$6,CZ$34,FALSE) -> 2.9 | DF75: イライラ感 | DH75: 2.8 | DI75: 2.9
AX76: =VLOOKUP(AY76,重点改善項目!$A:$C,IF(集団レポート!$I$6="外航船",2,3),FALSE) ->  | AY76: 身体愁訴 | BK76: 3.2 | BN76: 3.2 | CV76: 疲労感 | CW76: =HLOOKUP($CV76,'80項目＋データ'!$2:$6,CW$34,FALSE) ->  | CX76: =HLOOKUP($CV76,'80項目＋データ'!$2:$6,CX$34,FALSE) -> 2.8 | CY76: =HLOOKUP($CV76,'80項目＋データ'!$2:$6,CY$34,FALSE) -> 2.7 | CZ76: =HLOOKUP($CV76,'80項目＋データ'!$2:$6,CZ$34,FALSE) -> 2.8 | DF76: 疲労感 | DH76: 2.7 | DI76: 2.8
D77: =VLOOKUP(E77,重点改善項目!$A:$C,IF(集団レポート!$I$6="外航船",2,3),FALSE) ->  | E77: 経営層との信頼関係 | N77: =DG63 ->  | Q77: =DH63 -> 2.5 | T77: =DI63 -> 2.5 | CV77: 不安感 | CW77: =HLOOKUP($CV77,'80項目＋データ'!$2:$6,CW$34,FALSE) ->  | CX77: =HLOOKUP($CV77,'80項目＋データ'!$2:$6,CX$34,FALSE) -> 2.8 | CY77: =HLOOKUP($CV77,'80項目＋データ'!$2:$6,CY$34,FALSE) -> 2.8 | CZ77: =HLOOKUP($CV77,'80項目＋データ'!$2:$6,CZ$34,FALSE) -> 2.8 | DF77: 不安感 | DH77: 2.8 | DI77: 2.8
D78: =VLOOKUP(E78,重点改善項目!$A:$C,IF(集団レポート!$I$6="外航船",2,3),FALSE) ->  | E78: 変化への対応 | N78: =DG64 ->  | Q78: =DH64 -> 2.4 | T78: =DI64 -> 2.4 | CV78: 抑うつ感 | CW78: =HLOOKUP($CV78,'80項目＋データ'!$2:$6,CW$34,FALSE) ->  | CX78: =HLOOKUP($CV78,'80項目＋データ'!$2:$6,CX$34,FALSE) -> 3.2 | CY78: =HLOOKUP($CV78,'80項目＋データ'!$2:$6,CY$34,FALSE) -> 3.2 | CZ78: =HLOOKUP($CV78,'80項目＋データ'!$2:$6,CZ$34,FALSE) -> 3.2 | DF78: 抑うつ感 | DH78: 3.2 | DI78: 3.2
D79: =VLOOKUP(E79,重点改善項目!$A:$C,IF(集団レポート!$I$6="外航船",2,3),FALSE) -> ★ | E79: 個人の尊重 | Q79: 2.3 | T79: 2.3 | AY79: 職場のハラスメント | CV79: 心理的ストレス反応合計 | CW79: =HLOOKUP($CV79,'80項目＋データ'!$2:$6,CW$34,FALSE) ->  | CX79: =HLOOKUP($CV79,'80項目＋データ'!$2:$6,CX$34,FALSE) -> 2.8 | CY79: =HLOOKUP($CV79,'80項目＋データ'!$2:$6,CY$34,FALSE) -> 2.8 | CZ79: =HLOOKUP($CV79,'80項目＋データ'!$2:$6,CZ$34,FALSE) -> 2.8 | DF79: 心理的ストレス反応合計 | DH79: 2.8 | DI79: 2.8
D80: =VLOOKUP(E80,重点改善項目!$A:$C,IF(集団レポート!$I$6="外航船",2,3),FALSE) ->  | E80: 公正な人事評価 | Q80: 2.1 | T80: 2.2 | BH80: 集団 平均 | BK80: =$BK$34 -> 内航船 平均 | BN80: 船員 平均 | CV80: 身体愁訴 | CW80: =HLOOKUP($CV80,'80項目＋データ'!$2:$6,CW$34,FALSE) ->  | CX80: =HLOOKUP($CV80,'80項目＋データ'!$2:$6,CX$34,FALSE) -> 3.3 | CY80: =HLOOKUP($CV80,'80項目＋データ'!$2:$6,CY$34,FALSE) -> 3.2 | CZ80: =HLOOKUP($CV80,'80項目＋データ'!$2:$6,CZ$34,FALSE) -> 3.2 | DF80: 身体愁訴 | DH80: 3.2 | DI80: 3.2
D81: =VLOOKUP(E81,重点改善項目!$A:$C,IF(集団レポート!$I$6="外航船",2,3),FALSE) -> ★ | E81: 多様な労働者への対応 | Q81: 2.5 | T81: 2.6 | DG81: =$DI$12 -> 集団平均 | DH81: =$BK$26 -> 内航船平均 | DI81: =$DG$12 -> 船員平均
D82: =VLOOKUP(E82,重点改善項目!$A:$C,IF(集団レポート!$I$6="外航船",2,3),FALSE) ->  | E82: キャリア形成 | Q82: 2.3 | T82: 2.4 | AX82: =VLOOKUP(AY82,重点改善項目!$A:$C,IF(集団レポート!$I$6="外航船",2,3),FALSE) ->  | AY82: 職場のハラスメント | BH82: =DG82 ->  | BK82: =DH82 -> 3.4 | BN82: =DI82 -> 3.5 | CV82: 職場のハラスメント | CW82: =HLOOKUP($CV82,'80項目＋データ'!$2:$6,CW$34,FALSE) ->  | CX82: =HLOOKUP($CV82,'80項目＋データ'!$2:$6,CX$34,FALSE) -> 3.6 | CY82: =HLOOKUP($CV82,'80項目＋データ'!$2:$6,CY$34,FALSE) -> 3.4 | CZ82: =HLOOKUP($CV82,'80項目＋データ'!$2:$6,CZ$34,FALSE) -> 3.5 | DF82: 職場のハラスメント | DG82: =CW82 ->  | DH82: =IF($I$6="外航船",CX82,CY82) -> 3.4 | DI82: =CZ82 -> 3.5
D83: =VLOOKUP(E83,重点改善項目!$A:$C,IF(集団レポート!$I$6="外航船",2,3),FALSE) ->  | E83: ワーク・セルフ・バランス （ポジティブ） | Q83: 2.1 | T83: 2.2 | DG83: =$DI$12 -> 集団平均 | DH83: =$BK$26 -> 内航船平均 | DI83: =$DG$12 -> 船員平均
CV84: 仕事満足度 | CW84: =HLOOKUP($CV84,'80項目＋データ'!$2:$6,CW$34,FALSE) ->  | CX84: =HLOOKUP($CV84,'80項目＋データ'!$2:$6,CX$34,FALSE) -> 3.0 | CY84: =HLOOKUP($CV84,'80項目＋データ'!$2:$6,CY$34,FALSE) -> 2.7 | CZ84: =HLOOKUP($CV84,'80項目＋データ'!$2:$6,CZ$34,FALSE) -> 2.8 | DF84: 仕事満足度 | DG84: =CW84 ->  | DH84: =IF($I$6="外航船",CX84,CY84) -> 2.7 | DI84: =CZ84 -> 2.8
AY85: 満足度 | CV85: 家庭満足度 | CW85: =HLOOKUP($CV85,'80項目＋データ'!$2:$6,CW$34,FALSE) ->  | CX85: =HLOOKUP($CV85,'80項目＋データ'!$2:$6,CX$34,FALSE) -> 3.0 | CY85: =HLOOKUP($CV85,'80項目＋データ'!$2:$6,CY$34,FALSE) -> 3.1 | CZ85: =HLOOKUP($CV85,'80項目＋データ'!$2:$6,CZ$34,FALSE) -> 3.1 | DF85: 家庭満足度 | DG85: =CW85 ->  | DH85: =IF($I$6="外航船",CX85,CY85) -> 3.1 | DI85: =CZ85 -> 3.1
BH86: 集団 平均 | BK86: =$BK$34 -> 内航船 平均 | BN86: 船員 平均 | DG86: =$DI$12 -> 集団平均 | DH86: =$BK$26 -> 内航船平均 | DI86: =$DG$12 -> 船員平均
CV87: 業務の厳しさ(外航船員) | DF87: 業務の厳しさ
AX88: =VLOOKUP(AY88,重点改善項目!$A:$C,IF(集団レポート!$I$6="外航船",2,3),FALSE) ->  | AY88: 仕事満足度 | BH88: =DG84 ->  | BK88: =DH84 -> 2.7 | BN88: =DI84 -> 2.8 | CV88: 人づきあい(外航船員) | DF88: 自分の時間
AX89: =VLOOKUP(AY89,重点改善項目!$A:$C,IF(集団レポート!$I$6="外航船",2,3),FALSE) ->  | AY89: 家庭満足度 | BH89: =DG85 ->  | BK89: =DH85 -> 3.1 | BN89: =DI85 -> 3.1 | CV89: 自分の時間(外航船員) | DF89: 人づきあい
CV91: 忙しさ | DF91: 忙しさ
CV92: 業務の危険さ過酷さ | DF92: 業務の危険さ過酷さ
CV93: 人づきあい | DF93: 人づきあい
CR94: 外航 | CS94: 内航船 | CU94: ラベル判定 | DG94: =$DI$12 -> 集団平均 | DH94: =$BK$26 -> 内航船平均 | DI94: =$DG$12 -> 船員平均
CR95: 業務の厳しさ | CS95: 忙しさ | CU95: =IF($I$6="内航船",CS95,CR95) -> 忙しさ | DF95: 船員1 | DG95: =IF(I6="外航船",CW102,CW105) ->  | DH95: =IF($I$6="外航船",CX102,CY105) -> 2.3 | DI95: 0
CR96: 自分の時間 | CS96: 業務の危険さ過酷さ | CU96: =IF($I$6="内航船",CS96,CR96) -> 業務の危険さ過酷さ | DF96: 船員2 | DG96: =IF(I7="外航船",CW103,CW106) ->  | DH96: =IF($I$6="外航船",CX103,CY106) -> 2.3 | DI96: 0
CR97: 人づきあい | CS97: 人づきあい | CU97: =IF($I$6="内航船",CS97,CR97) -> 人づきあい | DF97: 船員3 | DG97: =IF(I9="外航船",CW104,CW107) ->  | DH97: =IF($I$6="外航船",CX104,CY107) -> 2.5 | DI97: 0
CU100: 業務の厳しさ(外航船員) | CV100: 人づきあい(外航船員) | CW100: 自分の時間(外航船員) | CX100: 忙しさ(内航船員) | CY100: 過酷な環境(内航船員) | CZ100: 人づきあい(内航船員)
CV102: 業務の厳しさ(外航船員) | CW102: =HLOOKUP($CV102,'80項目＋データ'!$2:$6,CW$34,FALSE) ->  | CX102: =HLOOKUP($CV102,'80項目＋データ'!$2:$6,CX$34,FALSE) -> 1.9 | CY102: =HLOOKUP($CV102,'80項目＋データ'!$2:$6,CY$34,FALSE) ->  | CZ102: =HLOOKUP($CV102,'80項目＋データ'!$2:$6,CZ$34,FALSE) -> 
CV103: 人づきあい(外航船員) | CW103: =HLOOKUP($CV103,'80項目＋データ'!$2:$6,CW$34,FALSE) ->  | CX103: =HLOOKUP($CV103,'80項目＋データ'!$2:$6,CX$34,FALSE) -> 2.5 | CY103: =HLOOKUP($CV103,'80項目＋データ'!$2:$6,CY$34,FALSE) ->  | CZ103: =HLOOKUP($CV103,'80項目＋データ'!$2:$6,CZ$34,FALSE) -> 
CV104: 自分の時間(外航船員) | CW104: =HLOOKUP($CV104,'80項目＋データ'!$2:$6,CW$34,FALSE) ->  | CX104: =HLOOKUP($CV104,'80項目＋データ'!$2:$6,CX$34,FALSE) -> 2.4 | CY104: =HLOOKUP($CV104,'80項目＋データ'!$2:$6,CY$34,FALSE) ->  | CZ104: =HLOOKUP($CV104,'80項目＋データ'!$2:$6,CZ$34,FALSE) -> 
CV105: 忙しさ(内航船員) | CW105: =HLOOKUP($CV105,'80項目＋データ'!$2:$6,CW$34,FALSE) ->  | CX105: =HLOOKUP($CV105,'80項目＋データ'!$2:$6,CX$34,FALSE) ->  | CY105: =HLOOKUP($CV105,'80項目＋データ'!$2:$6,CY$34,FALSE) -> 2.3 | CZ105: =HLOOKUP($CV105,'80項目＋データ'!$2:$6,CZ$34,FALSE) -> 
CV106: 過酷な環境(内航船員) | CW106: =HLOOKUP($CV106,'80項目＋データ'!$2:$6,CW$34,FALSE) ->  | CX106: =HLOOKUP($CV106,'80項目＋データ'!$2:$6,CX$34,FALSE) ->  | CY106: =HLOOKUP($CV106,'80項目＋データ'!$2:$6,CY$34,FALSE) -> 2.3 | CZ106: =HLOOKUP($CV106,'80項目＋データ'!$2:$6,CZ$34,FALSE) -> 
CV107: 人づきあい(内航船員) | CW107: =HLOOKUP($CV107,'80項目＋データ'!$2:$6,CW$34,FALSE) ->  | CX107: =HLOOKUP($CV107,'80項目＋データ'!$2:$6,CX$34,FALSE) ->  | CY107: =HLOOKUP($CV107,'80項目＋データ'!$2:$6,CY$34,FALSE) -> 2.5 | CZ107: =HLOOKUP($CV107,'80項目＋データ'!$2:$6,CZ$34,FALSE) -> 

Sheet 80項目＋データ (hidden)
A1: 回答不備→ | C1: =""
B2: 仕事の量的負担 | C2: 仕事の質的負担 | D2: 身体的負担度 | E2: 職場での対人関係 | F2: 職場環境 | G2: 情緒的負担 | H2: 役割葛藤 | I2: ワーク・セルフ・バランス（ネガティブ） | J2: 仕事のコントロール | K2: 仕事の適性 | L2: 技能の活用 | M2: 仕事の意義 | N2: 役割明確さ | O2: 成長の機会 | P2: 上司のサポート | Q2: 同僚のサポート | R2: 家族友人のサポート | S2: 経済・地位報酬 | T2: 尊重報酬 | U2: 安定報酬 | V2: 上司のリーダー シップ | W2: 上司の公正な態度 | X2: ほめてもらえる職場 | Y2: 失敗を認める職場 | Z2: 経営層との信頼関係 | AA2: 変化への対応 | AB2: 個人の尊重 | AC2: 公正な人事評価 | AD2: 多様な労働者への対応 | AE2: キャリア形成 | AF2: ワーク・セルフ・バランス（ポジティブ） | AG2: ワーク・エンゲイジメント | AH2: 職場の一体感 | AI2: 活気 | AJ2: イライラ感 | AK2: 疲労感 | AL2: 不安感 | AM2: 抑うつ感 | AN2: 心理的ストレス反応合計 | AO2: 身体愁訴 | AP2: 職場のハラスメント | AQ2: 仕事満足度 | AR2: 家庭満足度 | AS2: 業務の厳しさ(外航船員) | AT2: 人づきあい(外航船員) | AU2: 自分の時間(外航船員) | AV2: 忙しさ(内航船員) | AW2: 過酷な環境(内航船員) | AX2: 人づきあい(内航船員)
A3: 本集団 | B3: =IFERROR('80項目計算'!A15,"") ->  | C3: =IFERROR('80項目計算'!B15,"") ->  | D3: =IFERROR('80項目計算'!C15,"") ->  | E3: =IFERROR('80項目計算'!D15,"") ->  | F3: =IFERROR('80項目計算'!E15,"") ->  | G3: =IFERROR('80項目計算'!F15,"") ->  | H3: =IFERROR('80項目計算'!G15,"") ->  | I3: =IFERROR('80項目計算'!H15,"") ->  | J3: =IFERROR('80項目計算'!I15,"") ->  | K3: =IFERROR('80項目計算'!J15,"") ->  | L3: =IFERROR('80項目計算'!K15,"") ->  | M3: =IFERROR('80項目計算'!L15,"") ->  | N3: =IFERROR('80項目計算'!M15,"") ->  | O3: =IFERROR('80項目計算'!N15,"") ->  | P3: =IFERROR('80項目計算'!O15,"") ->  | Q3: =IFERROR('80項目計算'!P15,"") ->  | R3: =IFERROR('80項目計算'!Q15,"") ->  | S3: =IFERROR('80項目計算'!R15,"") ->  | T3: =IFERROR('80項目計算'!S15,"") ->  | U3: =IFERROR('80項目計算'!T15,"") ->  | V3: =IFERROR('80項目計算'!U15,"") ->  | W3: =IFERROR('80項目計算'!V15,"") ->  | X3: =IFERROR('80項目計算'!W15,"") ->  | Y3: =IFERROR('80項目計算'!X15,"") ->  | Z3: =IFERROR('80項目計算'!Y15,"") ->  | AA3: =IFERROR('80項目計算'!Z15,"") ->  | AB3: =IFERROR('80項目計算'!AA15,"") ->  | AC3: =IFERROR('80項目計算'!AB15,"") ->  | AD3: =IFERROR('80項目計算'!AC15,"") ->  | AE3: =IFERROR('80項目計算'!AD15,"") ->  | AF3: =IFERROR('80項目計算'!AE15,"") ->  | AG3: =IFERROR('80項目計算'!AF15,"") ->  | AH3: =IFERROR('80項目計算'!AG15,"") ->  | AI3: =IFERROR('80項目計算'!AH15,"") ->  | AJ3: =IFERROR('80項目計算'!AI15,"") ->  | AK3: =IFERROR('80項目計算'!AJ15,"") ->  | AL3: =IFERROR('80項目計算'!AK15,"") ->  | AM3: =IFERROR('80項目計算'!AL15,"") ->  | AN3: =IFERROR('80項目計算'!AM15,"") ->  | AO3: =IFERROR('80項目計算'!AN15,"") ->  | AP3: =IFERROR('80項目計算'!AO15,"") ->  | AQ3: =IFERROR('80項目計算'!AP15,"") ->  | AR3: =IFERROR('80項目計算'!AQ15,"") ->  | AS3: =IFERROR('80項目計算'!AR15,"") ->  | AT3: =IFERROR('80項目計算'!AS15,"") ->  | AU3: =IFERROR('80項目計算'!AT15,"") ->  | AV3: =IFERROR('80項目計算'!AU15,"") ->  | AW3: =IFERROR('80項目計算'!AV15,"") ->  | AX3: =IFERROR('80項目計算'!AW15,"") -> 
A4: 外航船員 | B4: 1.9 | C4: 1.6 | D4: 2.0 | E4: 3.0 | F4: 2.2 | G4: 2.3 | H4: 2.4 | I4: 2.6 | J4: 2.8 | K4: 3.1 | L4: 3.4 | M4: 3.3 | N4: 3.5 | O4: 3.1 | P4: 2.6 | Q4: 2.8 | R4: 3.1 | S4: 2.8 | T4: 2.9 | U4: 3.1 | V4: 2.8 | W4: 3.0 | X4: 2.7 | Y4: 2.7 | Z4: 2.7 | AA4: 2.5 | AB4: 2.5 | AC4: 2.3 | AD4: 2.8 | AE4: 2.5 | AF4: 2.3 | AG4: 2.8 | AH4: 2.8 | AI4: 2.4 | AJ4: 3.0 | AK4: 2.8 | AL4: 2.8 | AM4: 3.2 | AN4: 2.8 | AO4: 3.3 | AP4: 3.6 | AQ4: 3.0 | AR4: 3.0 | AS4: 1.9 | AT4: 2.5 | AU4: 2.4 | AV4: ="" ->  | AW4: ="" ->  | AX4: ="" -> 
A5: 内航船員 | B5: 2.1 | C5: 2.0 | D5: 2.1 | E5: 2.9 | F5: 2.5 | G5: 2.4 | H5: 2.4 | I5: 2.7 | J5: 2.5 | K5: 2.9 | L5: 3.0 | M5: 2.9 | N5: 3.4 | O5: 2.7 | P5: 2.5 | Q5: 2.7 | R5: 3.2 | S5: 2.8 | T5: 2.8 | U5: 3.1 | V5: 2.7 | W5: 2.8 | X5: 2.7 | Y5: 2.7 | Z5: 2.5 | AA5: 2.4 | AB5: 2.3 | AC5: 2.1 | AD5: 2.5 | AE5: 2.3 | AF5: 2.1 | AG5: 2.5 | AH5: 2.5 | AI5: 2.3 | AJ5: 2.8 | AK5: 2.7 | AL5: 2.8 | AM5: 3.2 | AN5: 2.8 | AO5: 3.2 | AP5: 3.4 | AQ5: 2.7 | AR5: 3.1 | AS5: ="" ->  | AT5: ="" ->  | AU5: ="" ->  | AV5: 2.3 | AW5: 2.3 | AX5: 2.5
A6: 全船員 | B6: 2.1 | C6: 1.9 | D6: 2.1 | E6: 2.9 | F6: 2.4 | G6: 2.4 | H6: 2.4 | I6: 2.7 | J6: 2.6 | K6: 2.9 | L6: 3.1 | M6: 3.0 | N6: 3.4 | O6: 2.8 | P6: 2.6 | Q6: 2.7 | R6: 3.2 | S6: 2.8 | T6: 2.8 | U6: 3.1 | V6: 2.7 | W6: 2.8 | X6: 2.7 | Y6: 2.7 | Z6: 2.5 | AA6: 2.4 | AB6: 2.3 | AC6: 2.2 | AD6: 2.6 | AE6: 2.4 | AF6: 2.2 | AG6: 2.6 | AH6: 2.6 | AI6: 2.3 | AJ6: 2.9 | AK6: 2.8 | AL6: 2.8 | AM6: 3.2 | AN6: 2.8 | AO6: 3.2 | AP6: 3.5 | AQ6: 2.8 | AR6: 3.1 | AS6: ="" ->  | AT6: ="" ->  | AU6: ="" ->  | AV6: ="" ->  | AW6: ="" ->  | AX6: ="" -> 

Sheet 80項目計算 (hidden)
A1: 9-1 | B1: 9-2 | C1: 9-3 | D1: 9-4 | E1: 9-5 | F1: 9-6 | G1: 9-7 | H1: 9-8 | I1: 9-9 | J1: 9-10 | K1: 9-11 | L1: 9-12 | M1: 9-13 | N1: 9-14 | O1: 9-15 | P1: 9-16 | Q1: 9-17 | R1: 10-1 | S1: 10-2 | T1: 10-3 | U1: 10-4 | V1: 10-5 | W1: 10-6 | X1: 10-7 | Y1: 10-8 | Z1: 10-9 | AA1: 10-10 | AB1: 10-11 | AC1: 10-12 | AD1: 10-13 | AE1: 10-14 | AF1: 10-15 | AG1: 10-16 | AH1: 10-17 | AI1: 10-18 | AJ1: 10-19 | AK1: 10-20 | AL1: 10-21 | AM1: 10-22 | AN1: 10-23 | AO1: 10-24 | AP1: 10-25 | AQ1: 10-26 | AR1: 10-27 | AS1: 10-28 | AT1: 10-29 | AU1: 11-1 | AV1: 11-2 | AW1: 11-3 | AX1: 11-4 | AY1: 11-5 | AZ1: 11-6 | BA1: 11-7 | BB1: 11-8 | BC1: 11-9 | BD1: 12-1 | BE1: 12-2 | BF1: 13-1 | BG1: 13-2 | BH1: 13-3 | BI1: 13-4 | BJ1: 14-1 | BK1: 14-2 | BL1: 14-3 | BM1: 14-4 | BN1: 14-5 | BO1: 14-6 | BP1: 14-7 | BQ1: 15-1 | BR1: 15-2 | BS1: 15-3 | BT1: 15-4 | BU1: 15-5 | BV1: 15-6 | BW1: 15-7 | BX1: 15-8 | BY1: 16-1 | BZ1: 16-2 | CA1: 16-3 | CB1: 16-4 | CC1: 17外-1 | CD1: 17外-2 | CE1: 17外-3 | CF1: 17外-4 | CG1: 17外-5 | CH1: 17外-6 | CI1: 17外-7 | CJ1: 17外-8 | CK1: 17外-9 | CL1: 17外-10 | CM1: 17内-1 | CN1: 17内-2 | CO1: 17内-3 | CP1: 17内-4 | CQ1: 17内-5 | CR1: 17内-6 | CS1: 17内-7 | CT1: 17内-8 | CU1: 17内-9 | CV1: 17内-10
A2: =AVERAGE(生データ!P12:P13) ->  | B2: =AVERAGE(生データ!Q12:Q13) ->  | C2: =AVERAGE(生データ!R12:R13) ->  | D2: =AVERAGE(生データ!S12:S13) ->  | E2: =AVERAGE(生データ!T12:T13) ->  | F2: =AVERAGE(生データ!U12:U13) ->  | G2: =AVERAGE(生データ!V12:V13) ->  | H2: =AVERAGE(生データ!W12:W13) ->  | I2: =AVERAGE(生データ!X12:X13) ->  | J2: =AVERAGE(生データ!Y12:Y13) ->  | K2: =AVERAGE(生データ!Z12:Z13) ->  | L2: =AVERAGE(生データ!AA12:AA13) ->  | M2: =AVERAGE(生データ!AB12:AB13) ->  | N2: =AVERAGE(生データ!AC12:AC13) ->  | O2: =AVERAGE(生データ!AD12:AD13) ->  | P2: =AVERAGE(生データ!AE12:AE13) ->  | Q2: =AVERAGE(生データ!AF12:AF13) ->  | R2: =AVERAGE(生データ!AG12:AG13) ->  | S2: =AVERAGE(生データ!AH12:AH13) ->  | T2: =AVERAGE(生データ!AI12:AI13) ->  | U2: =AVERAGE(生データ!AJ12:AJ13) ->  | V2: =AVERAGE(生データ!AK12:AK13) ->  | W2: =AVERAGE(生データ!AL12:AL13) ->  | X2: =AVERAGE(生データ!AM12:AM13) ->  | Y2: =AVERAGE(生データ!AN12:AN13) ->  | Z2: =AVERAGE(生データ!AO12:AO13) ->  | AA2: =AVERAGE(生データ!AP12:AP13) ->  | AB2: =AVERAGE(生データ!AQ12:AQ13) ->  | AC2: =AVERAGE(生データ!AR12:AR13) ->  | AD2: =AVERAGE(生データ!AS12:AS13) ->  | AE2: =AVERAGE(生データ!AT12:AT13) ->  | AF2: =AVERAGE(生データ!AU12:AU13) ->  | AG2: =AVERAGE(生データ!AV12:AV13) ->  | AH2: =AVERAGE(生データ!AW12:AW13) ->  | AI2: =AVERAGE(生データ!AX12:AX13) ->  | AJ2: =AVERAGE(生データ!AY12:AY13) ->  | AK2: =AVERAGE(生データ!AZ12:AZ13) ->  | AL2: =AVERAGE(生データ!BA12:BA13) ->  | AM2: =AVERAGE(生データ!BB12:BB13) ->  | AN2: =AVERAGE(生データ!BC12:BC13) ->  | AO2: =AVERAGE(生データ!BD12:BD13) ->  | AP2: =AVERAGE(生データ!BE12:BE13) ->  | AQ2: =AVERAGE(生データ!BF12:BF13) ->  | AR2: =AVERAGE(生データ!BG12:BG13) ->  | AS2: =AVERAGE(生データ!BH12:BH13) ->  | AT2: =AVERAGE(生データ!BI12:BI13) ->  | AU2: =AVERAGE(生データ!BJ12:BJ13) ->  | AV2: =AVERAGE(生データ!BK12:BK13) ->  | AW2: =AVERAGE(生データ!BL12:BL13) ->  | AX2: =AVERAGE(生データ!BM12:BM13) ->  | AY2: =AVERAGE(生データ!BN12:BN13) ->  | AZ2: =AVERAGE(生データ!BO12:BO13) ->  | BA2: =AVERAGE(生データ!BP12:BP13) ->  | BB2: =AVERAGE(生データ!BQ12:BQ13) ->  | BC2: =AVERAGE(生データ!BR12:BR13) ->  | BD2: =AVERAGE(生データ!BS12:BS13) ->  | BE2: =AVERAGE(生データ!BT12:BT13) ->  | BF2: =AVERAGE(生データ!BU12:BU13) ->  | BG2: =AVERAGE(生データ!BV12:BV13) ->  | BH2: =AVERAGE(生データ!BW12:BW13) ->  | BI2: =AVERAGE(生データ!BX12:BX13) ->  | BJ2: =AVERAGE(生データ!BY12:BY13) ->  | BK2: =AVERAGE(生データ!BZ12:BZ13) ->  | BL2: =AVERAGE(生データ!CA12:CA13) ->  | BM2: =AVERAGE(生データ!CB12:CB13) ->  | BN2: =AVERAGE(生データ!CC12:CC13) ->  | BO2: =AVERAGE(生データ!CD12:CD13) ->  | BP2: =AVERAGE(生データ!CE12:CE13) ->  | BQ2: =AVERAGE(生データ!CF12:CF13) ->  | BR2: =AVERAGE(生データ!CG12:CG13) ->  | BS2: =AVERAGE(生データ!CH12:CH13) ->  | BT2: =AVERAGE(生データ!CI12:CI13) ->  | BU2: =AVERAGE(生データ!CJ12:CJ13) ->  | BV2: =AVERAGE(生データ!CK12:CK13) ->  | BW2: =AVERAGE(生データ!CL12:CL13) ->  | BX2: =AVERAGE(生データ!CM12:CM13) ->  | BY2: =AVERAGE(生データ!CN12:CN13) ->  | BZ2: =AVERAGE(生データ!CO12:CO13) ->  | CA2: =AVERAGE(生データ!CP12:CP13) ->  | CB2: =AVERAGE(生データ!CQ12:CQ13) ->  | CC2: =AVERAGE(生データ!CR12:CR13) ->  | CD2: =AVERAGE(生データ!CS12:CS13) ->  | CE2: =AVERAGE(生データ!CT12:CT13) ->  | CF2: =AVERAGE(生データ!CU12:CU13) ->  | CG2: =AVERAGE(生データ!CV12:CV13) ->  | CH2: =AVERAGE(生データ!CW12:CW13) ->  | CI2: =AVERAGE(生データ!CX12:CX13) ->  | CJ2: =AVERAGE(生データ!CY12:CY13) ->  | CK2: =AVERAGE(生データ!CZ12:CZ13) ->  | CL2: =AVERAGE(生データ!DA12:DA13) ->  | CM2: =AVERAGE(生データ!DB12:DB13) ->  | CN2: =AVERAGE(生データ!DC12:DC13) ->  | CO2: =AVERAGE(生データ!DD12:DD13) ->  | CP2: =AVERAGE(生データ!DE12:DE13) ->  | CQ2: =AVERAGE(生データ!DF12:DF13) ->  | CR2: =AVERAGE(生データ!DG12:DG13) ->  | CS2: =AVERAGE(生データ!DH12:DH13) ->  | CT2: =AVERAGE(生データ!DI12:DI13) ->  | CU2: =AVERAGE(生データ!DJ12:DJ13) ->  | CV2: =AVERAGE(生データ!DK12:DK13) -> 
A3: 悪側1 良側4
A4: 1 | B4: 1 | C4: 1 | D4: 1 | E4: 1 | F4: 1 | G4: 1 | H4: 4 | I4: 4 | J4: 4 | K4: 1 | L4: 1 | M4: 1 | N4: 4 | O4: 1 | P4: 4 | Q4: 4 | R4: 1 | S4: 1 | T4: 1 | U4: 4 | V4: 4 | W4: 4 | X4: 4 | Y4: 4 | Z4: 4 | AA4: 4 | AB4: 4 | AC4: 4 | AD4: 4 | AE4: 4 | AF4: 4 | AG4: 4 | AH4: 4 | AI4: 4 | AJ4: 4 | AK4: 4 | AL4: 4 | AM4: 4 | AN4: 4 | AO4: 4 | AP4: 4 | AQ4: 4 | AR4: 4 | AS4: 4 | AT4: 4 | AU4: 4 | AV4: 4 | AW4: 4 | AX4: 4 | AY4: 4 | AZ4: 4 | BA4: 4 | BB4: 4 | BC4: 4 | BD4: 4 | BE4: 4 | BF4: 1 | BG4: 1 | BH4: 4 | BI4: 4 | BJ4: 4 | BK4: 4 | BL4: 1 | BM4: 4 | BN4: 4 | BO4: 4 | BP4: 4 | BQ4: 4 | BR4: 4 | BS4: 4 | BT4: 4 | BU4: 4 | BV4: 4 | BW4: 1 | BX4: 4 | BY4: 1 | BZ4: 4 | CA4: 4 | CB4: 4 | CC4: 1 | CD4: 1 | CE4: 1 | CF4: 1 | CG4: 1 | CH4: 1 | CI4: 1 | CJ4: 1 | CK4: 1 | CL4: 1 | CM4: 1 | CN4: 1 | CO4: 1 | CP4: 1 | CQ4: 1 | CR4: 1 | CS4: 1 | CT4: 1 | CU4: 1 | CV4: 1
A5: オフセット
A6: =IF(A4=1,0,5) -> 0 | B6: =IF(B4=1,0,5) -> 0 | C6: 0 | D6: 0 | E6: 0 | F6: 0 | G6: 0 | H6: 5 | I6: 5 | J6: 5 | K6: 0 | L6: 0 | M6: 0 | N6: 5 | O6: 0 | P6: 5 | Q6: 5 | R6: 0 | S6: 0 | T6: 0 | U6: 5 | V6: 5 | W6: 5 | X6: 5 | Y6: 5 | Z6: 5 | AA6: 5 | AB6: 5 | AC6: 5 | AD6: 5 | AE6: 5 | AF6: 5 | AG6: 5 | AH6: 5 | AI6: 5 | AJ6: 5 | AK6: 5 | AL6: 5 | AM6: 5 | AN6: 5 | AO6: 5 | AP6: 5 | AQ6: 5 | AR6: 5 | AS6: 5 | AT6: 5 | AU6: 5 | AV6: 5 | AW6: 5 | AX6: 5 | AY6: 5 | AZ6: 5 | BA6: 5 | BB6: 5 | BC6: 5 | BD6: 5 | BE6: 5 | BF6: 0 | BG6: 0 | BH6: 5 | BI6: 5 | BJ6: 5 | BK6: 5 | BL6: 0 | BM6: 5 | BN6: =IF(BN4=1,0,5) -> 5 | BO6: 5 | BP6: 5 | BQ6: 5 | BR6: 5 | BS6: 5 | BT6: 5 | BU6: 5 | BV6: 5 | BW6: 0 | BX6: 5 | BY6: 0 | BZ6: 5 | CA6: 5 | CB6: 5 | CC6: 0 | CD6: 0 | CE6: 0 | CF6: 0 | CG6: 0 | CH6: 0 | CI6: 0 | CJ6: 0 | CK6: 0 | CL6: 0 | CM6: 0 | CN6: 0 | CO6: 0 | CP6: 0 | CQ6: 0 | CR6: 0 | CS6: 0 | CT6: 0 | CU6: 0 | CV6: 0
A7: 反転
A8: =IF(A4=1,1,-1) -> 1 | B8: =IF(B4=1,1,-1) -> 1 | C8: 1 | D8: 1 | E8: 1 | F8: 1 | G8: 1 | H8: -1 | I8: -1 | J8: -1 | K8: 1 | L8: 1 | M8: 1 | N8: -1 | O8: 1 | P8: -1 | Q8: -1 | R8: 1 | S8: 1 | T8: 1 | U8: -1 | V8: -1 | W8: -1 | X8: -1 | Y8: -1 | Z8: -1 | AA8: -1 | AB8: -1 | AC8: -1 | AD8: -1 | AE8: -1 | AF8: -1 | AG8: -1 | AH8: -1 | AI8: -1 | AJ8: -1 | AK8: -1 | AL8: -1 | AM8: -1 | AN8: -1 | AO8: -1 | AP8: -1 | AQ8: -1 | AR8: -1 | AS8: -1 | AT8: -1 | AU8: -1 | AV8: -1 | AW8: -1 | AX8: -1 | AY8: -1 | AZ8: -1 | BA8: -1 | BB8: -1 | BC8: -1 | BD8: -1 | BE8: -1 | BF8: 1 | BG8: 1 | BH8: -1 | BI8: -1 | BJ8: -1 | BK8: -1 | BL8: 1 | BM8: -1 | BN8: =IF(BN4=1,1,-1) -> -1 | BO8: -1 | BP8: -1 | BQ8: -1 | BR8: -1 | BS8: -1 | BT8: -1 | BU8: -1 | BV8: -1 | BW8: 1 | BX8: -1 | BY8: 1 | BZ8: -1 | CA8: -1 | CB8: -1 | CC8: 1 | CD8: 1 | CE8: 1 | CF8: 1 | CG8: 1 | CH8: 1 | CI8: 1 | CJ8: 1 | CK8: 1 | CL8: 1 | CM8: 1 | CN8: 1 | CO8: 1 | CP8: 1 | CQ8: 1 | CR8: 1 | CS8: 1 | CT8: 1 | CU8: 1 | CV8: 1
A9: 調整後
A10: =A2*A8+A6 ->  | B10: =B2*B8+B6 ->  | BN10: =BN2*BN8+BN6 -> 
A12: 仕事の量的負担 | B12: 仕事の量的負担 | C12: 仕事の量的負担 | D12: 仕事の質的負担 | E12: 仕事の質的負担 | F12: 仕事の質的負担 | G12: 身体的負担度 | H12: 仕事のコントロール | I12: 仕事のコントロール | J12: 仕事のコントロール | K12: 技能の活用 | L12: 職場での対人関係 | M12: 職場での対人関係 | N12: 職場での対人関係 | O12: 職場環境 | P12: 仕事の適正 | Q12: 仕事の意義 | R12: 活気 | S12: 活気 | T12: 活気 | U12: イライラ感 | V12: イライラ感 | W12: イライラ感 | X12: 疲労感 | Y12: 疲労感 | Z12: 疲労感 | AA12: 不安感 | AB12: 不安感 | AC12: 不安感 | AD12: 抑うつ感 | AE12: 抑うつ感 | AF12: 抑うつ感 | AG12: 抑うつ感 | AH12: 抑うつ感 | AI12: 抑うつ感 | AJ12: 身体愁訴 | AK12: 身体愁訴 | AL12: 身体愁訴 | AM12: 身体愁訴 | AN12: 身体愁訴 | AO12: 身体愁訴 | AP12: 身体愁訴 | AQ12: 身体愁訴 | AR12: 身体愁訴 | AS12: 身体愁訴 | AT12: 身体愁訴 | AU12: 上司のサポート | AV12: 同僚のサポート | AW12: 家族友人のサポート | AX12: 上司のサポート | AY12: 同僚のサポート | AZ12: 家族友人のサポート | BA12: 上司のサポート | BB12: 同僚のサポート | BC12: 家族友人のサポート | BD12: 仕事満足度 | BE12: 家庭満足度 | BF12: 情緒的負担 | BG12: 役割葛藤 | BH12: 役割明確さ | BI12: 成長の機会 | BJ12: 経済・地位報酬 | BK12: 尊重報酬 | BL12: 安定報酬 | BM12: 上司のリーダーシップ | BN12: 上司の公正な態度 | BO12: ほめてもらえる職場 | BP12: 失敗を認める職場 | BQ12: 経営層との信頼関係 | BR12: 変化への対応 | BS12: 個人の尊重 | BT12: 公正な人事評価 | BU12: 多様な労働者への対応 | BV12: キャリア形成 | BW12: ワーク・セルフ・バランス（ネガティブ） | BX12: ワーク・セルフ・バランス（ポジティブ） | BY12: 職場のハラスメント | BZ12: 職場の一体感 | CA12: ワーク・エンゲイジメント | CB12: ワーク・エンゲイジメント | CC12: 業務の厳しさ(外航船員) | CD12: 人づきあい(外航船員) | CE12: 業務の厳しさ(外航船員) | CF12: 業務の厳しさ(外航船員) | CG12: 人づきあい(外航船員) | CH12: 業務の厳しさ(外航船員) | CI12: 自分の時間(外航船員) | CJ12: 業務の厳しさ(外航船員) | CK12: 自分の時間(外航船員) | CL12: 自分の時間(外航船員) | CM12: 忙しさ(内航船員) | CN12: 人づきあい(内航船員) | CO12: 過酷な環境(内航船員) | CP12: 忙しさ(内航船員) | CQ12: 人づきあい(内航船員) | CR12: 忙しさ(内航船員) | CS12: 過酷な環境(内航船員) | CT12: 過酷な環境(内航船員) | CU12: 忙しさ(内航船員) | CV12: 忙しさ(内航船員)
A14: 仕事の量的負担 | B14: 仕事の質的負担 | C14: 身体的負担度 | D14: 職場での対人関係 | E14: 職場環境 | F14: 情緒的負担 | G14: 役割葛藤 | H14: ワーク・セルフ・バランス（ネガティブ） | I14: 仕事のコントロール | J14: 仕事の適正 | K14: 技能の活用 | L14: 仕事の意義 | M14: 役割明確さ | N14: 成長の機会 | O14: 上司のサポート | P14: 同僚のサポート | Q14: 家族友人のサポート | R14: 経済・地位報酬 | S14: 尊重報酬 | T14: 安定報酬 | U14: 上司のリーダーシップ | V14: 上司の公正な態度 | W14: ほめてもらえる職場 | X14: 失敗を認める職場 | Y14: 経営層との信頼関係 | Z14: 変化への対応 | AA14: 個人の尊重 | AB14: 公正な人事評価 | AC14: 多様な労働者への対応 | AD14: キャリア形成 | AE14: ワーク・セルフ・バランス（ポジティブ） | AF14: ワーク・エンゲイジメント | AG14: 職場の一体感 | AH14: 活気 | AI14: イライラ感 | AJ14: 疲労感 | AK14: 不安感 | AL14: 抑うつ感 | AM14: 心理的ストレス反応合計 | AN14: 身体愁訴 | AO14: 職場のハラスメント | AP14: 仕事満足度 | AQ14: 家庭満足度 | AR14: 業務の厳しさ(外航船員) | AS14: 人づきあい(外航船員) | AT14: 自分の時間(外航船員) | AU14: 忙しさ(内航船員) | AV14: 過酷な環境(内航船員) | AW14: 人づきあい(内航船員)
A15: =AVERAGEIF($A$12:$CV$12,A14,$A$10:$CV$10) ->  | B15: =AVERAGEIF($A$12:$CV$12,B14,$A$10:$CV$10) ->  | AM15: =AVERAGE(AH15:AL15) -> 
A17: 仕事の量的負担 | B17: 仕事の質的負担 | C17: 身体的負担度 | D17: 職場での対人関係 | E17: 職場環境 | F17: 情緒的負担 | G17: 役割葛藤 | H17: ワーク・セルフ・バランス（ネガティブ） | I17: 仕事のコントロール | J17: 仕事の適性 | K17: 技能の活用 | L17: 仕事の意義 | M17: 役割明確さ | N17: 成長の機会 | O17: 上司のサポート | P17: 同僚のサポート | Q17: 家族友人のサポート | R17: 経済・地位報酬 | S17: 尊重報酬 | T17: 安定報酬 | U17: 上司のリーダー シップ | V17: 上司の公正な態度 | W17: ほめてもらえる職場 | X17: 失敗を認める職場 | Y17: 経営層との信頼関係 | Z17: 変化への対応 | AA17: 個人の尊重 | AB17: 公正な人事評価 | AC17: 多様な労働者への対応 | AD17: キャリア形成 | AE17: ワーク・セルフ・バランス（ポジティブ） | AF17: ワーク・エンゲイジメント | AG17: 職場の一体感 | AH17: 活気 | AI17: イライラ感 | AJ17: 疲労感 | AK17: 不安感 | AL17: 抑うつ感 | AM17: 心理的ストレス反応合計 | AN17: 身体愁訴 | AO17: 職場のハラスメント | AP17: 仕事満足度 | AQ17: 家庭満足度
A18: =A17=A14 -> TRUE | B18: =B17=B14 -> TRUE | C18: TRUE | D18: TRUE | E18: TRUE | F18: TRUE | G18: TRUE | H18: TRUE | I18: TRUE | J18: FALSE | K18: TRUE | L18: TRUE | M18: TRUE | N18: TRUE | O18: TRUE | P18: TRUE | Q18: TRUE | R18: TRUE | S18: TRUE | T18: TRUE | U18: FALSE | V18: TRUE | W18: TRUE | X18: TRUE | Y18: TRUE | Z18: TRUE | AA18: TRUE | AB18: TRUE | AC18: TRUE | AD18: TRUE | AE18: TRUE | AF18: TRUE | AG18: TRUE | AH18: TRUE | AI18: TRUE | AJ18: TRUE | AK18: TRUE | AL18: TRUE | AM18: TRUE | AN18: TRUE | AO18: TRUE | AP18: TRUE | AQ18: TRUE

Sheet 項目表 (hidden)
A1: 全体人数 | B1: =生データ!D8 -> 0 | C1: =B1<10 -> TRUE | D1: ←10名未満フラグ
A2: 男性人数 | B2: =COUNTIF(分析データ一覧!H:H,"男性") -> 0
A3: 女性人数 | B3: =COUNTIF(分析データ一覧!H:H,"女性") -> 0
A4: 不明 | B4: =B1-B2-B3 -> 0
A5: 高ストレス者数 | B5: =COUNTIF(分析データ一覧!Q:Q,"高ストレス") -> 0
A6: 高ストレス割合 | B6: =B5/B1 -> 
A7: 外航船 / 内航船 | B7: =生データ!G2 -> 内航船
A8: レポート作成日 | B8: =IF(生データ!G3<>"",TEXT(生データ!G3,"YYYY年MM月DD日"),"----年--月--日") -> 2020年04月22日
A9: 実施開始日 | B9: =IF(生データ!G4<>"",TEXT(生データ!G4,"YYYY年MM月DD日"),"----年--月--日") -> 2020年02月01日
A10: 実施終了日 | B10: =IF(生データ!G5<>"",TEXT(生データ!G5,"YYYY年MM月DD日"),"----年--月--日") -> 2020年02月20日
A11: 集団名 | B11: =IF(生データ!G6<>"",生データ!G6,"") -> 株式会社○○商船
A12: 実施期間 | B12: =B9&" 〜 "&B10 -> 2020年02月01日 〜 2020年02月20日
A13: レポートファイル名 | B13: ="レポート_"&IF(B11<>"", B11,"不明")&"_"&B8&".pdf" -> レポート_株式会社○○商船_2020年04月22日.pdf
A14: 高ストレス判定データ | B14: ="高ストレス者分析データ_"&IF(B11<>"", B11,"不明")&"_"&B8&".xlsx" -> 高ストレス者分析データ_株式会社○○商船_2020年04月22日.xlsx

Sheet 重点改善項目 (hidden)
B1: 外航船 | C1: 内航船
A2: 仕事の量的負担 | B2: ★
A3: 仕事の質的負担
A4: 身体的負担度
A5: 職場での対人関係
A6: 職場環境
A7: 情緒的負担 | C7: ★
A8: 役割葛藤 | B8: ★ | C8: ★
A9: ワーク・セルフ・バランス （ネガティブ）
A10: 仕事のコントロール | C10: ★
A11: 仕事の適性
A12: 技能の活用
A13: 仕事の意義
A14: 役割明確さ
A15: 成長の機会
A16: 上司のサポート | C16: ★
A17: 同僚のサポート
A18: 家族友人のサポート | C18: ★
A19: 経済・地位報酬
A20: 尊重報酬
A21: 安定報酬
A22: 上司のリーダー シップ
A23: 上司の公正な態度
A24: ほめてもらえる職場
A25: 失敗を認める職場
A26: 経営層との信頼関係
A27: 変化への対応 | B27: ★
A28: 個人の尊重 | C28: ★
A29: 公正な人事評価
A30: 多様な労働者への対応 | C30: ★
A31: キャリア形成
A32: ワーク・セルフ・バランス （ポジティブ）
A33: ワーク・エンゲイジメント
A34: 職場の一体感
A35: 活気
A36: イライラ感
A37: 疲労感
A38: 不安感
A39: 抑うつ感
A40: 身体愁訴
A41: 職場のハラスメント
A42: 仕事満足度
A43: 家庭満足度
A44: 忙しさ
A45: 業務の危険さ過酷さ
A46: 人づきあい | B46: ★ | C46: ★ | D46: 内航船外航船共通項目名
A47: 業務の厳しさ
A48: 自分の時間 | B48: ★
A49: 心理的ストレス反応合計
